{"text_format":"1","workbook":"xlsx","n_sheets":3,"sheets":["Teacher Notes","Task","Chart"],"not_rendered":{"charts":4,"images":1,"macros":1,"external_links":0,"defined_names":15,"comments":0,"pivot_tables":0},"unopened":[],"bounds":{"document_bytes":16777216,"sheet_cells":100000,"rows_first":2000,"rows_last":500,"rows_between":2000,"halvings":0,"cell_chars":16384,"cell_head_chars":4096},"cells_cut":0,"cells_raw":0,"read":"whole","date_system":"1900"}

{"sheet":"Teacher Notes","index":0,"n_rows":3,"n_cols":1,"rows_kept":3,"cut":false,"hidden":false,"merged":[]}
[]
["Refer to the word document:"]
["sample-proportion-teacher-notes.DOCX"]

{"sheet":"Task","index":1,"n_rows":2001,"n_cols":32,"rows_kept":2001,"cut":false,"hidden":false,"merged":[]}
[null,"ME-S1: Investigating sample proportion",null,null,null,null,null,"Sample","Score",null,"Sample Proportion","Frequency",null,"Population",null,null,null,"fx","(x-xbar)","n*(x-xbar)^2",null,"Rand()","Random Rank","True Rank","Value",{"$f":"COUNTIF(I:I,\"<=\"&C6)","v":0},null,"Sample","Score",null,null,"Population"]
[null,"Enter a mean",60,null,null,null,null,{"$f":"IF(P2<=$C$8,P2,\"\")","v":1},null,null,{"$f":"IF(Q2>0,H2&\"/\"&$C$8,\"\")","v":"1/20"},null,null,61,null,1,{"$f":"IF(P2<=$C$8,P2,0)","v":1},{"$f":"IF(Q2=0,\"\",H2*L2/sample_size)","v":0},{"$f":"IF(Q2=0,\"\",H2/sample_size-$C$31)","v":{"$error":"#DIV/0!"}},{"$f":"IF(Q2=0,\"\",S2^2*L2)","v":{"$error":"#DIV/0!"}},null,{"$f":"IF(N2=\"\",\"\",RAND())","v":0.47930469239765139},{"$f":"RANK(V2,$V:$V)","v":1092},{"$f":"RANK(Y2,Y:Y,1)","v":1058},{"$f":"N2","v":61},{"$f":"IF(Q2>0,L2+IF(H2=$Z$1,1,0),\"\")","v":0},null,{"$f":"Q2","v":1},{"$f":"IF(AB2>0,VLOOKUP(H2,W:Y,3,FALSE),\"\")","v":58},null,null,{"$f":"ROUND(NORMINV(RAND(),mean,stddev),0)","v":54}]
[null,"Enter a standard deviation",5,null,null,null,null,2,null,null,"2/20",null,null,60,null,{"$f":"P2+1","v":2},2,0,{"$f":"IF(Q3=0,\"\",H3/sample_size-$C$31)","v":{"$error":"#DIV/0!"}},{"$f":"IF(Q3=0,\"\",S3^2*L3)","v":{"$error":"#DIV/0!"}},null,0.79428987976845378,{"$f":"RANK(V3,$V:$V)","v":430},{"$f":"RANK(Y3,Y:Y,1)","v":903},{"$f":"N3","v":60},0,null,2,49,null,null,{"$f":"ROUND(NORMINV(RAND(),mean,stddev),0)","v":55}]
[null,null,null,null,null,null,null,3,null,null,"3/20",null,null,59,null,{"$f":"P3+1","v":3},3,0,{"$f":"IF(Q4=0,\"\",H4/sample_size-$C$31)","v":{"$error":"#DIV/0!"}},{"$error":"#DIV/0!"},null,0.69977218202996772,626,745,59,0,null,3,47,null,null,67]
[null,null,null,null,null,null,null,4,null,null,"4/20",null,null,57,null,4,4,0,{"$f":"IF(Q5=0,\"\",H5/sample_size-$C$31)","v":{"$error":"#DIV/0!"}},{"$error":"#DIV/0!"},null,0.7132743362080306,600,487,57,0,null,4,66,null,null,63]
[null,"Select a range of values to consider: ≤",55,null,"np",{"$f":"C8*C7","v":3.61},null,5,null,null,"5/20",null,null,62,null,5,5,0,{"$f":"IF(Q6=0,\"\",H6/sample_size-$C$31)","v":{"$error":"#DIV/0!"}},{"$error":"#DIV/0!"},null,0.40985427251668927,1215,1196,62,0,null,5,50,null,null,62]
[null,{"$f":"\"Proportion in population ≤ \"&C6&\" (p)\"","v":"Proportion in population ≤ 55 (p)"},{"$f":"COUNTIF(N:N,\"<=\"&C6)/COUNT(N:N)","v":0.18049999999999999},null,"n(1-p)",{"$f":"C8*(1-C7)","v":16.39},null,6,null,null,"6/20",null,null,60,null,6,6,0,{"$f":"IF(Q7=0,\"\",H7/sample_size-$C$31)","v":{"$error":"#DIV/0!"}},{"$error":"#DIV/0!"},null,0.13349617439895589,1745,903,60,0,null,6,60,null,null,62]
[null,"Select a sample size (n)",20,null,null,{"$f":"SQRT((C7*(1-C7)/sample_size))","v":8.5999927325550687E-2},null,7,null,null,"7/20",null,null,57,null,7,7,0,{"$f":"IF(Q8=0,\"\",H8/sample_size-$C$31)","v":{"$error":"#DIV/0!"}},{"$error":"#DIV/0!"},null,0.12004018725149779,1769,487,57,0,null,7,56,null,null,51]
[null,null,null,null,null,null,null,8,null,null,"8/20",null,null,60,null,8,8,0,{"$f":"IF(Q9=0,\"\",H9/sample_size-$C$31)","v":{"$error":"#DIV/0!"}},{"$error":"#DIV/0!"},null,0.31480949128963098,1397,903,60,0,null,8,60,null,null,56]
[null,null,null,null,null,null,null,9,null,null,"9/20",null,null,60,null,9,9,0,{"$f":"IF(Q10=0,\"\",H10/sample_size-$C$31)","v":{"$error":"#DIV/0!"}},{"$error":"#DIV/0!"},null,0.53281277642192093,971,903,60,0,null,9,61,null,null,62]
[null,"Sample proportion:",{"$f":"COUNTIF(I:I,\"<=\"&C6)&\"/\"&C8","v":"0/20"},null,null,null,null,10,null,null,"10/20",null,null,66,null,10,10,0,{"$f":"IF(Q11=0,\"\",H11/sample_size-$C$31)","v":{"$error":"#DIV/0!"}},{"$error":"#DIV/0!"},null,0.50931165986427029,1020,1710,66,0,null,10,62,null,null,50]
[null,null,null,null,null,null,null,11,null,null,"11/20",null,null,66,null,11,11,0,{"$f":"IF(Q12=0,\"\",H12/sample_size-$C$31)","v":{"$error":"#DIV/0!"}},{"$error":"#DIV/0!"},null,0.66127203210617724,715,1710,66,0,null,11,64,null,null,58]
[null,null,null,null,null,null,null,12,null,null,"12/20",null,null,61,null,12,12,0,{"$f":"IF(Q13=0,\"\",H13/sample_size-$C$31)","v":{"$error":"#DIV/0!"}},{"$error":"#DIV/0!"},null,0.7894347099985255,441,1058,61,0,null,12,58,null,null,66]
[null,null,null,null,null,null,null,13,null,null,"13/20",null,null,62,null,13,13,0,{"$f":"IF(Q14=0,\"\",H14/sample_size-$C$31)","v":{"$error":"#DIV/0!"}},{"$error":"#DIV/0!"},null,0.94016581827972789,130,1196,62,0,null,13,60,null,null,55]
[null,null,null,null,null,null,null,14,null,null,"14/20",null,null,59,null,14,14,0,{"$f":"IF(Q15=0,\"\",H15/sample_size-$C$31)","v":{"$error":"#DIV/0!"}},{"$error":"#DIV/0!"},null,0.63621333908672517,774,745,59,0,null,14,66,null,null,61]
[null,null,null,null,null,null,null,15,null,null,"15/20",null,null,54,null,15,15,0,{"$f":"IF(Q16=0,\"\",H16/sample_size-$C$31)","v":{"$error":"#DIV/0!"}},{"$error":"#DIV/0!"},null,0.41547172866379267,1200,201,54,0,null,15,55,null,null,68]
[null,null,null,null,null,null,null,16,null,null,"16/20",null,null,53,null,16,16,0,{"$f":"IF(Q17=0,\"\",H17/sample_size-$C$31)","v":{"$error":"#DIV/0!"}},{"$error":"#DIV/0!"},null,0.18313498461977418,1653,139,53,0,null,16,61,null,null,64]
[null,null,null,null,null,null,null,17,null,null,"17/20",null,null,56,null,17,17,0,{"$f":"IF(Q18=0,\"\",H18/sample_size-$C$31)","v":{"$error":"#DIV/0!"}},{"$error":"#DIV/0!"},null,{"$f":"IF(N18=\"\",\"\",RAND())","v":0.91696907962617458},174,362,56,0,null,17,60,null,null,56]
[null,null,null,null,null,null,null,18,null,null,"18/20",null,null,55,null,18,18,0,{"$f":"IF(Q19=0,\"\",H19/sample_size-$C$31)","v":{"$error":"#DIV/0!"}},{"$error":"#DIV/0!"},null,0.40521316564822474,1229,269,55,0,null,18,64,null,null,47]
[null,null,null,null,null,null,null,19,null,null,"19/20",null,null,64,null,19,19,0,{"$f":"IF(Q20=0,\"\",H20/sample_size-$C$31)","v":{"$error":"#DIV/0!"}},{"$error":"#DIV/0!"},null,0.342858304609437,1347,1487,64,0,null,19,69,null,null,64]
[null,null,null,null,null,null,null,20,null,null,"20/20",null,null,65,null,20,20,0,{"$f":"IF(Q21=0,\"\",H21/sample_size-$C$31)","v":{"$error":"#DIV/0!"}},{"$error":"#DIV/0!"},null,0.6330412128494044,778,1609,65,0,null,20,63,null,null,60]
[null,null,null,null,null,null,null,"",null,null,"",null,null,63,null,21,0,"",{"$f":"IF(Q22=0,\"\",H22/sample_size-$C$31)","v":""},"",null,1.7705710072712599E-2,1966,1349,63,"",null,0,"",null,null,53]
[null,null,null,null,null,null,null,"",null,null,"",null,null,62,null,22,0,"",{"$f":"IF(Q23=0,\"\",H23/sample_size-$C$31)","v":""},"",null,1.9849827181112389E-2,1959,1196,62,"",null,0,"",null,null,47]
[null,null,null,null,null,null,null,"",null,null,"",null,null,55,null,23,0,"",{"$f":"IF(Q24=0,\"\",H24/sample_size-$C$31)","v":""},"",null,0.37018749974173359,1290,269,55,"",null,0,"",null,null,57]
[null,null,null,null,null,null,null,"",null,null,"",null,null,69,null,24,0,"",{"$f":"IF(Q25=0,\"\",H25/sample_size-$C$31)","v":""},"",null,0.23899906008645233,1547,1909,69,"",null,0,"",null,null,54]
[null,null,null,null,null,null,null,"",null,null,"",null,null,58,null,25,0,"",{"$f":"IF(Q26=0,\"\",H26/sample_size-$C$31)","v":""},"",null,0.52302961764980327,990,615,58,"",null,0,"",null,null,63]
[null,null,null,null,null,null,null,"",null,null,"",null,null,58,null,26,0,"",{"$f":"IF(Q27=0,\"\",H27/sample_size-$C$31)","v":""},"",null,0.235993113132696,1553,615,58,"",null,0,"",null,null,62]
[null,null,null,null,null,null,null,"",null,null,"",null,null,62,null,27,0,"",{"$f":"IF(Q28=0,\"\",H28/sample_size-$C$31)","v":""},"",null,0.54168506157890239,954,1196,62,"",null,0,"",null,null,62]
[null,"Sample proportion statistics",null,null,null,null,null,"",null,null,"",null,null,57,null,28,0,"",{"$f":"IF(Q29=0,\"\",H29/sample_size-$C$31)","v":""},"",null,0.24467782611201916,1534,487,57,"",null,0,"",null,null,53]
[null,"Samples obtained:",{"$f":"SUM(L:L)","v":0},null,null,null,null,"",null,null,"",null,null,57,null,29,0,"",{"$f":"IF(Q30=0,\"\",H30/sample_size-$C$31)","v":""},"",null,0.34587728298664189,1341,487,57,"",null,0,"",null,null,58]
[null,"Mean",{"$f":"SUM(R:R)/C30","v":{"$error":"#DIV/0!"}},null,null,null,null,"",null,null,"",null,null,63,null,30,0,"",{"$f":"IF(Q31=0,\"\",H31/sample_size-$C$31)","v":""},"",null,0.94107193840220627,129,1349,63,"",null,0,"",null,null,56]
[null,"Standard deviation",{"$f":"SQRT(SUM(T:T)/(C30-1))","v":{"$error":"#DIV/0!"}},null,null,null,null,"",null,null,"",null,null,58,null,31,0,"",{"$f":"IF(Q32=0,\"\",H32/sample_size-$C$31)","v":""},"",null,0.44141073146947396,1161,615,58,"",null,0,"",null,null,62]
[null,null,null,null,null,null,null,"",null,null,"",null,null,60,null,32,0,"",{"$f":"IF(Q33=0,\"\",H33/sample_size-$C$31)","v":""},"",null,0.72481887765108144,577,903,60,"",null,0,"",null,null,64]
[null,null,null,null,null,null,null,{"$f":"IF(P34<=$C$8,P34,\"\")","v":""},null,null,{"$f":"IF(Q34>0,H34&\"/\"&$C$8,\"\")","v":""},null,null,50,null,33,{"$f":"IF(P34<=$C$8,P34,0)","v":0},{"$f":"IF(Q34=0,\"\",H34*L34/sample_size)","v":""},{"$f":"IF(Q34=0,\"\",H34/sample_size-$C$31)","v":""},"",null,0.7918566158230298,436,37,50,{"$f":"IF(Q34>0,L34+IF(H34=$Z$1,1,0),\"\")","v":""},null,{"$f":"Q34","v":0},{"$f":"IF(AB34>0,VLOOKUP(H34,W:Y,3,FALSE),\"\")","v":""},null,null,61]
[null,null,null,null,null,null,null,"",null,null,"",null,null,67,null,34,0,"",{"$f":"IF(Q35=0,\"\",H35/sample_size-$C$31)","v":""},"",null,0.31793321707849542,1389,1791,67,"",null,0,"",null,null,69]
[null,null,null,null,null,null,null,"",null,null,"",null,null,67,null,35,0,"",{"$f":"IF(Q36=0,\"\",H36/sample_size-$C$31)","v":""},"",null,0.25208783963968295,1521,1791,67,"",null,0,"",null,null,55]
[null,null,null,null,null,null,null,"",null,null,"",null,null,59,null,36,0,"",{"$f":"IF(Q37=0,\"\",H37/sample_size-$C$31)","v":""},"",null,0.36596356158956844,1299,745,59,"",null,0,"",null,null,62]
[null,null,null,null,null,null,null,"",null,null,"",null,null,64,null,37,0,"",{"$f":"IF(Q38=0,\"\",H38/sample_size-$C$31)","v":""},"",null,0.69995076098859643,625,1487,64,"",null,0,"",null,null,57]
[null,null,null,null,null,null,null,"",null,null,"",null,null,60,null,38,0,"",{"$f":"IF(Q39=0,\"\",H39/sample_size-$C$31)","v":""},"",null,0.10163777691394416,1803,903,60,"",null,0,"",null,null,68]
[null,null,null,null,null,null,null,"",null,null,"",null,null,61,null,39,0,"",{"$f":"IF(Q40=0,\"\",H40/sample_size-$C$31)","v":""},"",null,0.6941041267771435,641,1058,61,"",null,0,"",null,null,59]
[null,null,null,null,null,null,null,"",null,null,"",null,null,62,null,40,0,"",{"$f":"IF(Q41=0,\"\",H41/sample_size-$C$31)","v":""},"",null,0.75184419905967559,524,1196,62,"",null,0,"",null,null,69]
[null,null,null,null,null,null,null,"",null,null,"",null,null,49,null,41,0,"",{"$f":"IF(Q42=0,\"\",H42/sample_size-$C$31)","v":""},"",null,0.68379620316440215,662,19,49,"",null,0,"",null,null,61]
[null,null,null,null,null,null,null,"",null,null,"",null,null,61,null,42,0,"",{"$f":"IF(Q43=0,\"\",H43/sample_size-$C$31)","v":""},"",null,0.91166798733547183,186,1058,61,"",null,0,"",null,null,62]
[null,null,null,null,null,null,null,"",null,null,"",null,null,57,null,43,0,"",{"$f":"IF(Q44=0,\"\",H44/sample_size-$C$31)","v":""},"",null,0.79818938897550185,424,487,57,"",null,0,"",null,null,57]
[null,null,null,null,null,null,null,"",null,null,"",null,null,65,null,44,0,"",{"$f":"IF(Q45=0,\"\",H45/sample_size-$C$31)","v":""},"",null,0.87239763029556971,263,1609,65,"",null,0,"",null,null,60]
[null,null,null,null,null,null,null,"",null,null,"",null,null,57,null,45,0,"",{"$f":"IF(Q46=0,\"\",H46/sample_size-$C$31)","v":""},"",null,0.82448127332908194,367,487,57,"",null,0,"",null,null,61]
[null,null,null,null,null,null,null,"",null,null,"",null,null,70,null,46,0,"",{"$f":"IF(Q47=0,\"\",H47/sample_size-$C$31)","v":""},"",null,0.70702592390777441,611,1946,70,"",null,0,"",null,null,51]
[null,null,null,null,null,null,null,"",null,null,"",null,null,67,null,47,0,"",{"$f":"IF(Q48=0,\"\",H48/sample_size-$C$31)","v":""},"",null,0.83606811704979667,334,1791,67,"",null,0,"",null,null,62]
[null,null,null,null,null,null,null,"",null,null,"",null,null,60,null,48,0,"",{"$f":"IF(Q49=0,\"\",H49/sample_size-$C$31)","v":""},"",null,0.6426685064041503,759,903,60,"",null,0,"",null,null,55]
[null,null,null,null,null,null,null,"",null,null,"",null,null,64,null,49,0,"",{"$f":"IF(Q50=0,\"\",H50/sample_size-$C$31)","v":""},"",null,0.27885105115295539,1459,1487,64,"",null,0,"",null,null,64]
[null,null,null,null,null,null,null,"",null,null,"",null,null,60,null,50,0,"",{"$f":"IF(Q51=0,\"\",H51/sample_size-$C$31)","v":""},"",null,0.60465368654424512,833,903,60,"",null,0,"",null,null,57]
[null,null,null,null,null,null,null,"",null,null,"",null,null,60,null,{"$f":"P51+1","v":51},0,"",{"$f":"IF(Q52=0,\"\",H52/sample_size-$C$31)","v":""},"",null,0.55593720707233929,925,903,60,"",null,{"$f":"Q52","v":0},"",null,null,62]
[null,null,null,null,null,null,null,"",null,null,"",null,null,60,null,52,0,"",{"$f":"IF(Q53=0,\"\",H53/sample_size-$C$31)","v":""},"",null,7.1008956962878234E-2,1854,903,60,"",null,0,"",null,null,62]
[null,null,null,null,null,null,null,"",null,null,"",null,null,48,null,53,0,"",{"$f":"IF(Q54=0,\"\",H54/sample_size-$C$31)","v":""},"",null,0.74481555341717143,538,13,48,"",null,0,"",null,null,62]
[null,null,null,null,null,null,null,"",null,null,"",null,null,67,null,54,0,"",{"$f":"IF(Q55=0,\"\",H55/sample_size-$C$31)","v":""},"",null,0.83102428374760273,348,1791,67,"",null,0,"",null,null,66]
[null,null,null,null,null,null,null,"",null,null,"",null,null,60,null,55,0,"",{"$f":"IF(Q56=0,\"\",H56/sample_size-$C$31)","v":""},"",null,0.33261719548133395,1362,903,60,"",null,0,"",null,null,62]
[null,null,null,null,null,null,null,"",null,null,"",null,null,70,null,56,0,"",{"$f":"IF(Q57=0,\"\",H57/sample_size-$C$31)","v":""},"",null,0.48988337641711122,1063,1946,70,"",null,0,"",null,null,55]
[null,null,null,null,null,null,null,"",null,null,"",null,null,65,null,57,0,"",{"$f":"IF(Q58=0,\"\",H58/sample_size-$C$31)","v":""},"",null,0.92791023223152447,152,1609,65,"",null,0,"",null,null,54]
[null,null,null,null,null,null,null,"",null,null,"",null,null,66,null,58,0,"",{"$f":"IF(Q59=0,\"\",H59/sample_size-$C$31)","v":""},"",null,0.43082808307775955,1178,1710,66,"",null,0,"",null,null,46]
[null,null,null,null,null,null,null,"",null,null,"",null,null,60,null,59,0,"",{"$f":"IF(Q60=0,\"\",H60/sample_size-$C$31)","v":""},"",null,0.34572594032838777,1342,903,60,"",null,0,"",null,null,65]
[null,null,null,null,null,null,null,"",null,null,"",null,null,60,null,60,0,"",{"$f":"IF(Q61=0,\"\",H61/sample_size-$C$31)","v":""},"",null,0.39282590341507406,1251,903,60,"",null,0,"",null,null,49]
[null,null,null,null,null,null,null,"",null,null,"",null,null,69,null,61,0,"",{"$f":"IF(Q62=0,\"\",H62/sample_size-$C$31)","v":""},"",null,0.23653263228345334,1552,1909,69,"",null,0,"",null,null,65]
[null,null,null,null,null,null,null,"",null,null,"",null,null,56,null,62,0,"",{"$f":"IF(Q63=0,\"\",H63/sample_size-$C$31)","v":""},"",null,0.96245815778096933,83,362,56,"",null,0,"",null,null,60]
[null,null,null,null,null,null,null,"",null,null,"",null,null,64,null,63,0,"",{"$f":"IF(Q64=0,\"\",H64/sample_size-$C$31)","v":""},"",null,0.2891597991360334,1440,1487,64,"",null,0,"",null,null,53]
[null,null,null,null,null,null,null,"",null,null,"",null,null,53,null,64,0,"",{"$f":"IF(Q65=0,\"\",H65/sample_size-$C$31)","v":""},"",null,0.72877251285315925,568,139,53,"",null,0,"",null,null,58]
[null,null,null,null,null,null,null,{"$f":"IF(P66<=$C$8,P66,\"\")","v":""},null,null,{"$f":"IF(Q66>0,H66&\"/\"&$C$8,\"\")","v":""},null,null,53,null,65,{"$f":"IF(P66<=$C$8,P66,0)","v":0},{"$f":"IF(Q66=0,\"\",H66*L66/sample_size)","v":""},{"$f":"IF(Q66=0,\"\",H66/sample_size-$C$31)","v":""},"",null,{"$f":"IF(N66=\"\",\"\",RAND())","v":0.81492746381744841},388,139,{"$f":"N66","v":53},{"$f":"IF(Q66>0,L66+IF(H66=$Z$1,1,0),\"\")","v":""},null,0,{"$f":"IF(AB66>0,VLOOKUP(H66,W:Y,3,FALSE),\"\")","v":""},null,null,{"$f":"ROUND(NORMINV(RAND(),mean,stddev),0)","v":70}]
[null,null,null,null,null,null,null,"",null,null,"",null,null,53,null,66,0,"",{"$f":"IF(Q67=0,\"\",H67/sample_size-$C$31)","v":""},{"$f":"IF(Q67=0,\"\",S67^2*L67)","v":""},null,0.72186144817234865,{"$f":"RANK(V67,$V:$V)","v":583},{"$f":"RANK(Y67,Y:Y,1)","v":139},53,"",null,0,"",null,null,52]
[null,null,null,null,null,null,null,"",null,null,"",null,null,62,null,67,0,"",{"$f":"IF(Q68=0,\"\",H68/sample_size-$C$31)","v":""},"",null,2.3953398165145856E-2,1947,1196,62,"",null,0,"",null,null,50]
[null,null,null,null,null,null,null,"",null,null,"",null,null,57,null,68,0,"",{"$f":"IF(Q69=0,\"\",H69/sample_size-$C$31)","v":""},"",null,0.48944111225354947,1064,487,57,"",null,0,"",null,null,66]
[null,null,null,null,null,null,null,"",null,null,"",null,null,58,null,69,0,"",{"$f":"IF(Q70=0,\"\",H70/sample_size-$C$31)","v":""},"",null,0.18055671886511149,1658,615,58,"",null,0,"",null,null,56]
[null,null,null,null,null,null,null,"",null,null,"",null,null,63,null,70,0,"",{"$f":"IF(Q71=0,\"\",H71/sample_size-$C$31)","v":""},"",null,0.61668858791457826,804,1349,63,"",null,0,"",null,null,70]
[null,null,null,null,null,null,null,"",null,null,"",null,null,54,null,71,0,"",{"$f":"IF(Q72=0,\"\",H72/sample_size-$C$31)","v":""},"",null,0.70453666541355331,615,201,54,"",null,0,"",null,null,62]
[null,null,null,null,null,null,null,"",null,null,"",null,null,58,null,72,0,"",{"$f":"IF(Q73=0,\"\",H73/sample_size-$C$31)","v":""},"",null,0.19223228358172961,1643,615,58,"",null,0,"",null,null,59]
[null,null,null,null,null,null,null,"",null,null,"",null,null,69,null,73,0,"",{"$f":"IF(Q74=0,\"\",H74/sample_size-$C$31)","v":""},"",null,0.77913425590065677,458,1909,69,"",null,0,"",null,null,59]
[null,null,null,null,null,null,null,"",null,null,"",null,null,56,null,74,0,"",{"$f":"IF(Q75=0,\"\",H75/sample_size-$C$31)","v":""},"",null,0.41587972833984055,1199,362,56,"",null,0,"",null,null,68]
[null,null,null,null,null,null,null,"",null,null,"",null,null,67,null,75,0,"",{"$f":"IF(Q76=0,\"\",H76/sample_size-$C$31)","v":""},"",null,0.13564492999688027,1742,1791,67,"",null,0,"",null,null,59]
[null,null,null,null,null,null,null,"",null,null,"",null,null,62,null,76,0,"",{"$f":"IF(Q77=0,\"\",H77/sample_size-$C$31)","v":""},"",null,0.10292343711741259,1800,1196,62,"",null,0,"",null,null,66]
[null,null,null,null,null,null,null,"",null,null,"",null,null,59,null,77,0,"",{"$f":"IF(Q78=0,\"\",H78/sample_size-$C$31)","v":""},"",null,0.73718824120718862,550,745,59,"",null,0,"",null,null,59]
[null,null,null,null,null,null,null,"",null,null,"",null,null,52,null,78,0,"",{"$f":"IF(Q79=0,\"\",H79/sample_size-$C$31)","v":""},"",null,0.8620642475275001,279,95,52,"",null,0,"",null,null,59]
[null,null,null,null,null,null,null,"",null,null,"",null,null,51,null,79,0,"",{"$f":"IF(Q80=0,\"\",H80/sample_size-$C$31)","v":""},"",null,0.82299056319286423,373,63,51,"",null,0,"",null,null,58]
[null,null,null,null,null,null,null,"",null,null,"",null,null,62,null,80,0,"",{"$f":"IF(Q81=0,\"\",H81/sample_size-$C$31)","v":""},"",null,0.70797904116192156,609,1196,62,"",null,0,"",null,null,56]
[null,null,null,null,null,null,null,"",null,null,"",null,null,59,null,81,0,"",{"$f":"IF(Q82=0,\"\",H82/sample_size-$C$31)","v":""},"",null,0.40391303603787465,1231,745,59,"",null,0,"",null,null,65]
[null,null,null,null,null,null,null,"",null,null,"",null,null,63,null,82,0,"",{"$f":"IF(Q83=0,\"\",H83/sample_size-$C$31)","v":""},"",null,0.91199020324199398,184,1349,63,"",null,0,"",null,null,54]
[null,null,null,null,null,null,null,"",null,null,"",null,null,51,null,83,0,"",{"$f":"IF(Q84=0,\"\",H84/sample_size-$C$31)","v":""},"",null,0.77665945975080253,466,63,51,"",null,0,"",null,null,62]
[null,null,null,null,null,null,null,"",null,null,"",null,null,60,null,84,0,"",{"$f":"IF(Q85=0,\"\",H85/sample_size-$C$31)","v":""},"",null,0.160279689567698,1696,903,60,"",null,0,"",null,null,65]
[null,null,null,null,null,null,null,"",null,null,"",null,null,61,null,85,0,"",{"$f":"IF(Q86=0,\"\",H86/sample_size-$C$31)","v":""},"",null,3.0320509358812364E-2,1934,1058,61,"",null,0,"",null,null,59]
[null,null,null,null,null,null,null,"",null,null,"",null,null,54,null,86,0,"",{"$f":"IF(Q87=0,\"\",H87/sample_size-$C$31)","v":""},"",null,0.80207277415894951,417,201,54,"",null,0,"",null,null,61]
[null,null,null,null,null,null,null,"",null,null,"",null,null,68,null,87,0,"",{"$f":"IF(Q88=0,\"\",H88/sample_size-$C$31)","v":""},"",null,0.60718326051100202,823,1857,68,"",null,0,"",null,null,65]
[null,null,null,null,null,null,null,"",null,null,"",null,null,57,null,88,0,"",{"$f":"IF(Q89=0,\"\",H89/sample_size-$C$31)","v":""},"",null,9.5235472830359935E-2,1810,487,57,"",null,0,"",null,null,57]
[null,null,null,null,null,null,null,"",null,null,"",null,null,62,null,89,0,"",{"$f":"IF(Q90=0,\"\",H90/sample_size-$C$31)","v":""},"",null,0.32096697846779609,1381,1196,62,"",null,0,"",null,null,64]
[null,null,null,null,null,null,null,"",null,null,"",null,null,65,null,90,0,"",{"$f":"IF(Q91=0,\"\",H91/sample_size-$C$31)","v":""},"",null,8.3475630913458887E-2,1828,1609,65,"",null,0,"",null,null,55]
[null,null,null,null,null,null,null,"",null,null,"",null,null,59,null,91,0,"",{"$f":"IF(Q92=0,\"\",H92/sample_size-$C$31)","v":""},"",null,0.26650930664377692,1483,745,59,"",null,0,"",null,null,54]
[null,null,null,null,null,null,null,"",null,null,"",null,null,70,null,92,0,"",{"$f":"IF(Q93=0,\"\",H93/sample_size-$C$31)","v":""},"",null,0.52652997877835772,985,1946,70,"",null,0,"",null,null,67]
[null,null,null,null,null,null,null,"",null,null,"",null,null,62,null,93,0,"",{"$f":"IF(Q94=0,\"\",H94/sample_size-$C$31)","v":""},"",null,0.31545179836147197,1395,1196,62,"",null,0,"",null,null,66]
[null,null,null,null,null,null,null,"",null,null,"",null,null,58,null,94,0,"",{"$f":"IF(Q95=0,\"\",H95/sample_size-$C$31)","v":""},"",null,0.34510541204096878,1344,615,58,"",null,0,"",null,null,64]
[null,null,null,null,null,null,null,"",null,null,"",null,null,62,null,95,0,"",{"$f":"IF(Q96=0,\"\",H96/sample_size-$C$31)","v":""},"",null,0.45500582547383317,1132,1196,62,"",null,0,"",null,null,58]
[null,null,null,null,null,null,null,"",null,null,"",null,null,58,null,96,0,"",{"$f":"IF(Q97=0,\"\",H97/sample_size-$C$31)","v":""},"",null,0.7087381335686247,607,615,58,"",null,0,"",null,null,73]
[null,null,null,null,null,null,null,"",null,null,"",null,null,59,null,97,{"$f":"IF(P98<=$C$8,P98,0)","v":0},{"$f":"IF(Q98=0,\"\",H98*L98/sample_size)","v":""},{"$f":"IF(Q98=0,\"\",H98/sample_size-$C$31)","v":""},"",null,0.57278427125148779,897,745,59,"",null,0,{"$f":"IF(AB98>0,VLOOKUP(H98,W:Y,3,FALSE),\"\")","v":""},null,null,67]
[null,null,null,null,null,null,null,"",null,null,"",null,null,64,null,98,0,"",{"$f":"IF(Q99=0,\"\",H99/sample_size-$C$31)","v":""},"",null,0.97240830803211864,59,1487,64,"",null,0,"",null,null,64]
[null,null,null,null,null,null,null,"",null,null,"",null,null,57,null,99,0,"",{"$f":"IF(Q100=0,\"\",H100/sample_size-$C$31)","v":""},"",null,0.50928378021839538,1021,487,57,"",null,0,"",null,null,58]
[null,null,null,null,null,null,null,"",null,null,"",null,null,63,null,100,0,"",{"$f":"IF(Q101=0,\"\",H101/sample_size-$C$31)","v":""},"",null,0.27838644332643658,1460,1349,63,"",null,0,"",null,null,54]
[null,null,null,null,null,null,null,null,null,null,null,null,null,63,null,null,null,null,null,null,null,0.84696093972752484,312,1349,63,null,null,null,null,null,null,66]
[null,null,null,null,null,null,null,null,null,null,null,null,null,61,null,null,null,null,null,null,null,0.48218131873913062,1086,1058,61,null,null,null,null,null,null,57]
[null,null,null,null,null,null,null,null,null,null,null,null,null,62,null,null,null,null,null,null,null,0.39926713411434289,1241,1196,62,null,null,null,null,null,null,57]
[null,null,null,null,null,null,null,null,null,null,null,null,null,55,null,null,null,null,null,null,null,0.14295887346261782,1728,269,55,null,null,null,null,null,null,56]
[null,null,null,null,null,null,null,null,null,null,null,null,null,54,null,null,null,null,null,null,null,0.80690275615913365,408,201,54,null,null,null,null,null,null,56]
[null,null,null,null,null,null,null,null,null,null,null,null,null,63,null,null,null,null,null,null,null,0.28478353845287829,1449,1349,63,null,null,null,null,null,null,62]
[null,null,null,null,null,null,null,null,null,null,null,null,null,66,null,null,null,null,null,null,null,0.79234426365353716,435,1710,66,null,null,null,null,null,null,69]
[null,null,null,null,null,null,null,null,null,null,null,null,null,64,null,null,null,null,null,null,null,0.35670273282675147,1321,1487,64,null,null,null,null,null,null,62]
[null,null,null,null,null,null,null,null,null,null,null,null,null,63,null,null,null,null,null,null,null,0.16008702277531128,1697,1349,63,null,null,null,null,null,null,59]
[null,null,null,null,null,null,null,null,null,null,null,null,null,61,null,null,null,null,null,null,null,0.77097017580381622,484,1058,61,null,null,null,null,null,null,60]
[null,null,null,null,null,null,null,null,null,null,null,null,null,71,null,null,null,null,null,null,null,0.65775583013183947,720,1971,71,null,null,null,null,null,null,61]
[null,null,null,null,null,null,null,null,null,null,null,null,null,63,null,null,null,null,null,null,null,0.17594929090967326,1666,1349,63,null,null,null,null,null,null,68]
[null,null,null,null,null,null,null,null,null,null,null,null,null,67,null,null,null,null,null,null,null,0.72839325722794379,570,1791,67,null,null,null,null,null,null,65]
[null,null,null,null,null,null,null,null,null,null,null,null,null,59,null,null,null,null,null,null,null,0.81261947020189174,397,745,59,null,null,null,null,null,null,59]
[null,null,null,null,null,null,null,null,null,null,null,null,null,57,null,null,null,null,null,null,null,3.3665961185944449E-2,1923,487,57,null,null,null,null,null,null,66]
[null,null,null,null,null,null,null,null,null,null,null,null,null,57,null,null,null,null,null,null,null,0.40213663315860326,1235,487,57,null,null,null,null,null,null,61]
[null,null,null,null,null,null,null,null,null,null,null,null,null,58,null,null,null,null,null,null,null,0.13347993466679042,1746,615,58,null,null,null,null,null,null,52]
[null,null,null,null,null,null,null,null,null,null,null,null,null,57,null,null,null,null,null,null,null,0.8557887362906581,288,487,57,null,null,null,null,null,null,59]
[null,null,null,null,null,null,null,null,null,null,null,null,null,61,null,null,null,null,null,null,null,0.91765468058105282,173,1058,61,null,null,null,null,null,null,56]
[null,null,null,null,null,null,null,null,null,null,null,null,null,61,null,null,null,null,null,null,null,0.97846852269781881,41,1058,61,null,null,null,null,null,null,51]
[null,null,null,null,null,null,null,null,null,null,null,null,null,55,null,null,null,null,null,null,null,0.76079173332408001,504,269,55,null,null,null,null,null,null,56]
[null,null,null,null,null,null,null,null,null,null,null,null,null,59,null,null,null,null,null,null,null,0.3474554725839919,1337,745,59,null,null,null,null,null,null,57]
[null,null,null,null,null,null,null,null,null,null,null,null,null,56,null,null,null,null,null,null,null,0.6018937649337962,840,362,56,null,null,null,null,null,null,53]
[null,null,null,null,null,null,null,null,null,null,null,null,null,58,null,null,null,null,null,null,null,0.38645333579827479,1261,615,58,null,null,null,null,null,null,57]
[null,null,null,null,null,null,null,null,null,null,null,null,null,63,null,null,null,null,null,null,null,0.36260596412387103,1310,1349,63,null,null,null,null,null,null,48]
[null,null,null,null,null,null,null,null,null,null,null,null,null,59,null,null,null,null,null,null,null,0.97430113333058765,52,745,59,null,null,null,null,null,null,64]
[null,null,null,null,null,null,null,null,null,null,null,null,null,63,null,null,null,null,null,null,null,0.2502087953116483,1524,1349,63,null,null,null,null,null,null,55]
[null,null,null,null,null,null,null,null,null,null,null,null,null,59,null,null,null,null,null,null,null,0.30322928381991343,1419,745,59,null,null,null,null,null,null,60]
[null,null,null,null,null,null,null,null,null,null,null,null,null,54,null,null,null,null,null,null,null,{"$f":"IF(N130=\"\",\"\",RAND())","v":0.75341358367707223},519,201,{"$f":"N130","v":54},null,null,null,null,null,null,{"$f":"ROUND(NORMINV(RAND(),mean,stddev),0)","v":67}]
[null,null,null,null,null,null,null,null,null,null,null,null,null,66,null,null,null,null,null,null,null,0.71659104675187102,{"$f":"RANK(V131,$V:$V)","v":590},{"$f":"RANK(Y131,Y:Y,1)","v":1710},66,null,null,null,null,null,null,58]
[null,null,null,null,null,null,null,null,null,null,null,null,null,62,null,null,null,null,null,null,null,0.96739085779474654,72,1196,62,null,null,null,null,null,null,63]
[null,null,null,null,null,null,null,null,null,null,null,null,null,63,null,null,null,null,null,null,null,0.51830763073184571,1004,1349,63,null,null,null,null,null,null,61]
[null,null,null,null,null,null,null,null,null,null,null,null,null,64,null,null,null,null,null,null,null,0.72358788055280887,580,1487,64,null,null,null,null,null,null,59]
[null,null,null,null,null,null,null,null,null,null,null,null,null,59,null,null,null,null,null,null,null,0.26937826862415681,1478,745,59,null,null,null,null,null,null,60]
[null,null,null,null,null,null,null,null,null,null,null,null,null,69,null,null,null,null,null,null,null,0.41032260124668918,1214,1909,69,null,null,null,null,null,null,64]
[null,null,null,null,null,null,null,null,null,null,null,null,null,63,null,null,null,null,null,null,null,0.81339762595423304,392,1349,63,null,null,null,null,null,null,66]
[null,null,null,null,null,null,null,null,null,null,null,null,null,67,null,null,null,null,null,null,null,0.9556533320797157,99,1791,67,null,null,null,null,null,null,62]
[null,null,null,null,null,null,null,null,null,null,null,null,null,58,null,null,null,null,null,null,null,0.36066198258712889,1314,615,58,null,null,null,null,null,null,64]
[null,null,null,null,null,null,null,null,null,null,null,null,null,65,null,null,null,null,null,null,null,0.40158484487893198,1238,1609,65,null,null,null,null,null,null,75]
[null,null,null,null,null,null,null,null,null,null,null,null,null,60,null,null,null,null,null,null,null,0.23011089187313372,1564,903,60,null,null,null,null,null,null,53]
[null,null,null,null,null,null,null,null,null,null,null,null,null,60,null,null,null,null,null,null,null,0.96052741814842701,87,903,60,null,null,null,null,null,null,62]
[null,null,null,null,null,null,null,null,null,null,null,null,null,63,null,null,null,null,null,null,null,0.65608336014466972,727,1349,63,null,null,null,null,null,null,58]
[null,null,null,null,null,null,null,null,null,null,null,null,null,54,null,null,null,null,null,null,null,0.56523352182473674,914,201,54,null,null,null,null,null,null,59]
[null,null,null,null,null,null,null,null,null,null,null,null,null,62,null,null,null,null,null,null,null,0.87915159928766073,249,1196,62,null,null,null,null,null,null,57]
[null,null,null,null,null,null,null,null,null,null,null,null,null,70,null,null,null,null,null,null,null,0.9781079562977909,45,1946,70,null,null,null,null,null,null,56]
[null,null,null,null,null,null,null,null,null,null,null,null,null,68,null,null,null,null,null,null,null,0.37950684380890454,1274,1857,68,null,null,null,null,null,null,59]
[null,null,null,null,null,null,null,null,null,null,null,null,null,59,null,null,null,null,null,null,null,0.8818267883604517,240,745,59,null,null,null,null,null,null,58]
[null,null,null,null,null,null,null,null,null,null,null,null,null,62,null,null,null,null,null,null,null,0.92371598130557642,159,1196,62,null,null,null,null,null,null,52]
[null,null,null,null,null,null,null,null,null,null,null,null,null,61,null,null,null,null,null,null,null,0.97690700179352219,47,1058,61,null,null,null,null,null,null,63]
[null,null,null,null,null,null,null,null,null,null,null,null,null,52,null,null,null,null,null,null,null,9.9964344049146892E-2,1804,95,52,null,null,null,null,null,null,62]
[null,null,null,null,null,null,null,null,null,null,null,null,null,55,null,null,null,null,null,null,null,0.54037238228403683,958,269,55,null,null,null,null,null,null,59]
[null,null,null,null,null,null,null,null,null,null,null,null,null,57,null,null,null,null,null,null,null,0.27064821812739248,1475,487,57,null,null,null,null,null,null,59]
[null,null,null,null,null,null,null,null,null,null,null,null,null,61,null,null,null,null,null,null,null,0.76208532648709593,500,1058,61,null,null,null,null,null,null,58]
[null,null,null,null,null,null,null,null,null,null,null,null,null,62,null,null,null,null,null,null,null,4.0891235276188098E-2,1902,1196,62,null,null,null,null,null,null,68]
[null,null,null,null,null,null,null,null,null,null,null,null,null,53,null,null,null,null,null,null,null,0.18119439018834216,1656,139,53,null,null,null,null,null,null,57]
[null,null,null,null,null,null,null,null,null,null,null,null,null,65,null,null,null,null,null,null,null,0.15991357181773869,1698,1609,65,null,null,null,null,null,null,62]
[null,null,null,null,null,null,null,null,null,null,null,null,null,60,null,null,null,null,null,null,null,0.94200789813973929,127,903,60,null,null,null,null,null,null,61]
[null,null,null,null,null,null,null,null,null,null,null,null,null,61,null,null,null,null,null,null,null,0.79832125810967547,423,1058,61,null,null,null,null,null,null,65]
[null,null,null,null,null,null,null,null,null,null,null,null,null,52,null,null,null,null,null,null,null,0.77647104330929317,467,95,52,null,null,null,null,null,null,55]
[null,null,null,null,null,null,null,null,null,null,null,null,null,59,null,null,null,null,null,null,null,4.7707053376513153E-2,1893,745,59,null,null,null,null,null,null,65]
[null,null,null,null,null,null,null,null,null,null,null,null,null,61,null,null,null,null,null,null,null,0.39319485039928448,1250,1058,61,null,null,null,null,null,null,60]
[null,null,null,null,null,null,null,null,null,null,null,null,null,59,null,null,null,null,null,null,null,0.72591061858718653,575,745,59,null,null,null,null,null,null,70]
[null,null,null,null,null,null,null,null,null,null,null,null,null,62,null,null,null,null,null,null,null,0.92005214785148126,168,1196,62,null,null,null,null,null,null,48]
[null,null,null,null,null,null,null,null,null,null,null,null,null,63,null,null,null,null,null,null,null,0.19397619908452546,1640,1349,63,null,null,null,null,null,null,52]
[null,null,null,null,null,null,null,null,null,null,null,null,null,62,null,null,null,null,null,null,null,0.96988521079101997,65,1196,62,null,null,null,null,null,null,63]
[null,null,null,null,null,null,null,null,null,null,null,null,null,61,null,null,null,null,null,null,null,0.16241673161636849,1691,1058,61,null,null,null,null,null,null,56]
[null,null,null,null,null,null,null,null,null,null,null,null,null,61,null,null,null,null,null,null,null,0.50343633419445155,1034,1058,61,null,null,null,null,null,null,64]
[null,null,null,null,null,null,null,null,null,null,null,null,null,67,null,null,null,null,null,null,null,0.93416791218866368,142,1791,67,null,null,null,null,null,null,68]
[null,null,null,null,null,null,null,null,null,null,null,null,null,55,null,null,null,null,null,null,null,0.89830302817213736,211,269,55,null,null,null,null,null,null,53]
[null,null,null,null,null,null,null,null,null,null,null,null,null,56,null,null,null,null,null,null,null,0.46233193572435227,1119,362,56,null,null,null,null,null,null,58]
[null,null,null,null,null,null,null,null,null,null,null,null,null,63,null,null,null,null,null,null,null,0.58420447449134705,877,1349,63,null,null,null,null,null,null,60]
[null,null,null,null,null,null,null,null,null,null,null,null,null,58,null,null,null,null,null,null,null,0.20576842079896662,1616,615,58,null,null,null,null,null,null,53]
[null,null,null,null,null,null,null,null,null,null,null,null,null,62,null,null,null,null,null,null,null,0.11911011860300569,1772,1196,62,null,null,null,null,null,null,63]
[null,null,null,null,null,null,null,null,null,null,null,null,null,63,null,null,null,null,null,null,null,8.324702477475443E-2,1830,1349,63,null,null,null,null,null,null,61]
[null,null,null,null,null,null,null,null,null,null,null,null,null,60,null,null,null,null,null,null,null,0.58049882308989309,884,903,60,null,null,null,null,null,null,66]
[null,null,null,null,null,null,null,null,null,null,null,null,null,55,null,null,null,null,null,null,null,0.56302501805875393,918,269,55,null,null,null,null,null,null,70]
[null,null,null,null,null,null,null,null,null,null,null,null,null,63,null,null,null,null,null,null,null,0.94207892349011679,126,1349,63,null,null,null,null,null,null,62]
[null,null,null,null,null,null,null,null,null,null,null,null,null,66,null,null,null,null,null,null,null,0.83555396923391279,336,1710,66,null,null,null,null,null,null,60]
[null,null,null,null,null,null,null,null,null,null,null,null,null,64,null,null,null,null,null,null,null,0.33714536048448751,1355,1487,64,null,null,null,null,null,null,59]
[null,null,null,null,null,null,null,null,null,null,null,null,null,62,null,null,null,null,null,null,null,0.47321659842004127,1104,1196,62,null,null,null,null,null,null,56]
[null,null,null,null,null,null,null,null,null,null,null,null,null,60,null,null,null,null,null,null,null,0.58387478704603513,879,903,60,null,null,null,null,null,null,63]
[null,null,null,null,null,null,null,null,null,null,null,null,null,54,null,null,null,null,null,null,null,0.83517356531653386,338,201,54,null,null,null,null,null,null,60]
[null,null,null,null,null,null,null,null,null,null,null,null,null,62,null,null,null,null,null,null,null,0.46800914408890815,1112,1196,62,null,null,null,null,null,null,53]
[null,null,null,null,null,null,null,null,null,null,null,null,null,51,null,null,null,null,null,null,null,0.48761134131873518,1074,63,51,null,null,null,null,null,null,56]
[null,null,null,null,null,null,null,null,null,null,null,null,null,61,null,null,null,null,null,null,null,0.73388070851586373,554,1058,61,null,null,null,null,null,null,65]
[null,null,null,null,null,null,null,null,null,null,null,null,null,59,null,null,null,null,null,null,null,0.45331753760623139,1139,745,59,null,null,null,null,null,null,55]
[null,null,null,null,null,null,null,null,null,null,null,null,null,59,null,null,null,null,null,null,null,0.29521392031675842,1430,745,59,null,null,null,null,null,null,61]
[null,null,null,null,null,null,null,null,null,null,null,null,null,55,null,null,null,null,null,null,null,0.35460966591278886,1326,269,55,null,null,null,null,null,null,57]
[null,null,null,null,null,null,null,null,null,null,null,null,null,72,null,null,null,null,null,null,null,0.44395344720179075,1157,1979,72,null,null,null,null,null,null,61]
[null,null,null,null,null,null,null,null,null,null,null,null,null,63,null,null,null,null,null,null,null,0.54784920315226249,941,1349,63,null,null,null,null,null,null,60]
[null,null,null,null,null,null,null,null,null,null,null,null,null,62,null,null,null,null,null,null,null,0.43708700209968576,1170,1196,62,null,null,null,null,null,null,60]
[null,null,null,null,null,null,null,null,null,null,null,null,null,49,null,null,null,null,null,null,null,0.36312088109046858,1306,19,49,null,null,null,null,null,null,68]
[null,null,null,null,null,null,null,null,null,null,null,null,null,66,null,null,null,null,null,null,null,{"$f":"IF(N194=\"\",\"\",RAND())","v":0.41433261176593028},1205,1710,{"$f":"N194","v":66},null,null,null,null,null,null,{"$f":"ROUND(NORMINV(RAND(),mean,stddev),0)","v":64}]
[null,null,null,null,null,null,null,null,null,null,null,null,null,66,null,null,null,null,null,null,null,0.61158271026346256,{"$f":"RANK(V195,$V:$V)","v":814},{"$f":"RANK(Y195,Y:Y,1)","v":1710},66,null,null,null,null,null,null,53]
[null,null,null,null,null,null,null,null,null,null,null,null,null,56,null,null,null,null,null,null,null,7.5321879880477893E-2,1843,362,56,null,null,null,null,null,null,56]
[null,null,null,null,null,null,null,null,null,null,null,null,null,55,null,null,null,null,null,null,null,0.70297902062099304,618,269,55,null,null,null,null,null,null,49]
[null,null,null,null,null,null,null,null,null,null,null,null,null,51,null,null,null,null,null,null,null,0.4955837103349886,1055,63,51,null,null,null,null,null,null,62]
[null,null,null,null,null,null,null,null,null,null,null,null,null,60,null,null,null,null,null,null,null,0.44927952136604243,1149,903,60,null,null,null,null,null,null,64]
[null,null,null,null,null,null,null,null,null,null,null,null,null,68,null,null,null,null,null,null,null,0.77783124025780337,463,1857,68,null,null,null,null,null,null,55]
[null,null,null,null,null,null,null,null,null,null,null,null,null,47,null,null,null,null,null,null,null,5.0283100846284179E-2,1887,4,47,null,null,null,null,null,null,72]
[null,null,null,null,null,null,null,null,null,null,null,null,null,66,null,null,null,null,null,null,null,0.6780464689940493,674,1710,66,null,null,null,null,null,null,58]
[null,null,null,null,null,null,null,null,null,null,null,null,null,64,null,null,null,null,null,null,null,0.50346265720035577,1033,1487,64,null,null,null,null,null,null,57]
[null,null,null,null,null,null,null,null,null,null,null,null,null,55,null,null,null,null,null,null,null,0.23188969068483212,1561,269,55,null,null,null,null,null,null,62]
[null,null,null,null,null,null,null,null,null,null,null,null,null,70,null,null,null,null,null,null,null,0.25784197874282033,1505,1946,70,null,null,null,null,null,null,67]
[null,null,null,null,null,null,null,null,null,null,null,null,null,60,null,null,null,null,null,null,null,0.69861864586898725,631,903,60,null,null,null,null,null,null,56]
[null,null,null,null,null,null,null,null,null,null,null,null,null,58,null,null,null,null,null,null,null,0.25931323911712434,1501,615,58,null,null,null,null,null,null,54]
[null,null,null,null,null,null,null,null,null,null,null,null,null,56,null,null,null,null,null,null,null,0.50424170385320255,1031,362,56,null,null,null,null,null,null,53]
[null,null,null,null,null,null,null,null,null,null,null,null,null,68,null,null,null,null,null,null,null,0.59713038890699532,852,1857,68,null,null,null,null,null,null,61]
[null,null,null,null,null,null,null,null,null,null,null,null,null,58,null,null,null,null,null,null,null,0.96449552092155455,78,615,58,null,null,null,null,null,null,69]
[null,null,null,null,null,null,null,null,null,null,null,null,null,61,null,null,null,null,null,null,null,0.47891662065791418,1093,1058,61,null,null,null,null,null,null,63]
[null,null,null,null,null,null,null,null,null,null,null,null,null,57,null,null,null,null,null,null,null,0.58304372508500668,881,487,57,null,null,null,null,null,null,70]
[null,null,null,null,null,null,null,null,null,null,null,null,null,60,null,null,null,null,null,null,null,4.9907568825390602E-2,1889,903,60,null,null,null,null,null,null,62]
[null,null,null,null,null,null,null,null,null,null,null,null,null,62,null,null,null,null,null,null,null,0.53627806254252508,965,1196,62,null,null,null,null,null,null,56]
[null,null,null,null,null,null,null,null,null,null,null,null,null,57,null,null,null,null,null,null,null,0.27590197072391531,1467,487,57,null,null,null,null,null,null,59]
[null,null,null,null,null,null,null,null,null,null,null,null,null,74,null,null,null,null,null,null,null,0.21402067503428224,1596,1992,74,null,null,null,null,null,null,61]
[null,null,null,null,null,null,null,null,null,null,null,null,null,62,null,null,null,null,null,null,null,0.89427476776962311,216,1196,62,null,null,null,null,null,null,61]
[null,null,null,null,null,null,null,null,null,null,null,null,null,64,null,null,null,null,null,null,null,0.91985216008703996,169,1487,64,null,null,null,null,null,null,58]
[null,null,null,null,null,null,null,null,null,null,null,null,null,62,null,null,null,null,null,null,null,0.19743788583853006,1634,1196,62,null,null,null,null,null,null,60]
[null,null,null,null,null,null,null,null,null,null,null,null,null,66,null,null,null,null,null,null,null,0.98039470357990455,36,1710,66,null,null,null,null,null,null,61]
[null,null,null,null,null,null,null,null,null,null,null,null,null,59,null,null,null,null,null,null,null,0.51770373859592533,1006,745,59,null,null,null,null,null,null,63]
[null,null,null,null,null,null,null,null,null,null,null,null,null,63,null,null,null,null,null,null,null,0.7603363734592411,506,1349,63,null,null,null,null,null,null,56]
[null,null,null,null,null,null,null,null,null,null,null,null,null,59,null,null,null,null,null,null,null,0.43941036104831077,1166,745,59,null,null,null,null,null,null,55]
[null,null,null,null,null,null,null,null,null,null,null,null,null,59,null,null,null,null,null,null,null,0.26693017742989167,1482,745,59,null,null,null,null,null,null,67]
[null,null,null,null,null,null,null,null,null,null,null,null,null,59,null,null,null,null,null,null,null,0.21785278062526314,1587,745,59,null,null,null,null,null,null,57]
[null,null,null,null,null,null,null,null,null,null,null,null,null,55,null,null,null,null,null,null,null,0.65282635615665419,732,269,55,null,null,null,null,null,null,56]
[null,null,null,null,null,null,null,null,null,null,null,null,null,62,null,null,null,null,null,null,null,1.8278834698862378E-2,1961,1196,62,null,null,null,null,null,null,65]
[null,null,null,null,null,null,null,null,null,null,null,null,null,62,null,null,null,null,null,null,null,0.12206443156619184,1762,1196,62,null,null,null,null,null,null,63]
[null,null,null,null,null,null,null,null,null,null,null,null,null,61,null,null,null,null,null,null,null,0.40775531169621682,1221,1058,61,null,null,null,null,null,null,59]
[null,null,null,null,null,null,null,null,null,null,null,null,null,59,null,null,null,null,null,null,null,0.89000965697419521,226,745,59,null,null,null,null,null,null,63]
[null,null,null,null,null,null,null,null,null,null,null,null,null,52,null,null,null,null,null,null,null,0.33105224635491848,1365,95,52,null,null,null,null,null,null,62]
[null,null,null,null,null,null,null,null,null,null,null,null,null,60,null,null,null,null,null,null,null,0.44738847581319574,1151,903,60,null,null,null,null,null,null,50]
[null,null,null,null,null,null,null,null,null,null,null,null,null,53,null,null,null,null,null,null,null,0.20619745495132102,1615,139,53,null,null,null,null,null,null,63]
[null,null,null,null,null,null,null,null,null,null,null,null,null,55,null,null,null,null,null,null,null,0.67233408232904068,683,269,55,null,null,null,null,null,null,50]
[null,null,null,null,null,null,null,null,null,null,null,null,null,59,null,null,null,null,null,null,null,0.5132701542824033,1013,745,59,null,null,null,null,null,null,63]
[null,null,null,null,null,null,null,null,null,null,null,null,null,60,null,null,null,null,null,null,null,0.4614374692561849,1122,903,60,null,null,null,null,null,null,64]
[null,null,null,null,null,null,null,null,null,null,null,null,null,61,null,null,null,null,null,null,null,0.9365448444387251,139,1058,61,null,null,null,null,null,null,55]
[null,null,null,null,null,null,null,null,null,null,null,null,null,52,null,null,null,null,null,null,null,0.54081045625870783,957,95,52,null,null,null,null,null,null,71]
[null,null,null,null,null,null,null,null,null,null,null,null,null,62,null,null,null,null,null,null,null,2.2031255484872059E-2,1950,1196,62,null,null,null,null,null,null,62]
[null,null,null,null,null,null,null,null,null,null,null,null,null,57,null,null,null,null,null,null,null,0.81490828135734672,389,487,57,null,null,null,null,null,null,57]
[null,null,null,null,null,null,null,null,null,null,null,null,null,56,null,null,null,null,null,null,null,0.43029860161340006,1179,362,56,null,null,null,null,null,null,56]
[null,null,null,null,null,null,null,null,null,null,null,null,null,59,null,null,null,null,null,null,null,0.75281605776739347,520,745,59,null,null,null,null,null,null,62]
[null,null,null,null,null,null,null,null,null,null,null,null,null,55,null,null,null,null,null,null,null,0.20899810312719991,1608,269,55,null,null,null,null,null,null,63]
[null,null,null,null,null,null,null,null,null,null,null,null,null,65,null,null,null,null,null,null,null,0.95993822911022186,89,1609,65,null,null,null,null,null,null,65]
[null,null,null,null,null,null,null,null,null,null,null,null,null,68,null,null,null,null,null,null,null,3.9487287636074675E-2,1905,1857,68,null,null,null,null,null,null,71]
[null,null,null,null,null,null,null,null,null,null,null,null,null,68,null,null,null,null,null,null,null,0.79448904755544159,428,1857,68,null,null,null,null,null,null,57]
[null,null,null,null,null,null,null,null,null,null,null,null,null,58,null,null,null,null,null,null,null,0.9993185765666448,1,615,58,null,null,null,null,null,null,64]
[null,null,null,null,null,null,null,null,null,null,null,null,null,65,null,null,null,null,null,null,null,0.54640545834570753,943,1609,65,null,null,null,null,null,null,59]
[null,null,null,null,null,null,null,null,null,null,null,null,null,63,null,null,null,null,null,null,null,0.95734014989844529,96,1349,63,null,null,null,null,null,null,56]
[null,null,null,null,null,null,null,null,null,null,null,null,null,66,null,null,null,null,null,null,null,0.65752118710841589,722,1710,66,null,null,null,null,null,null,61]
[null,null,null,null,null,null,null,null,null,null,null,null,null,55,null,null,null,null,null,null,null,0.28273497948467574,1454,269,55,null,null,null,null,null,null,62]
[null,null,null,null,null,null,null,null,null,null,null,null,null,58,null,null,null,null,null,null,null,7.0628720392388766E-2,1855,615,58,null,null,null,null,null,null,54]
[null,null,null,null,null,null,null,null,null,null,null,null,null,51,null,null,null,null,null,null,null,0.89956256818548319,208,63,51,null,null,null,null,null,null,58]
[null,null,null,null,null,null,null,null,null,null,null,null,null,57,null,null,null,null,null,null,null,0.25877332754145166,1502,487,57,null,null,null,null,null,null,59]
[null,null,null,null,null,null,null,null,null,null,null,null,null,61,null,null,null,null,null,null,null,0.64947464151769896,741,1058,61,null,null,null,null,null,null,58]
[null,null,null,null,null,null,null,null,null,null,null,null,null,57,null,null,null,null,null,null,null,0.15384741473924302,1708,487,57,null,null,null,null,null,null,67]
[null,null,null,null,null,null,null,null,null,null,null,null,null,55,null,null,null,null,null,null,null,0.23314114603850644,1559,269,55,null,null,null,null,null,null,56]
[null,null,null,null,null,null,null,null,null,null,null,null,null,65,null,null,null,null,null,null,null,{"$f":"IF(N258=\"\",\"\",RAND())","v":0.15366010754878434},1709,1609,{"$f":"N258","v":65},null,null,null,null,null,null,{"$f":"ROUND(NORMINV(RAND(),mean,stddev),0)","v":63}]
[null,null,null,null,null,null,null,null,null,null,null,null,null,54,null,null,null,null,null,null,null,0.17527956585213489,{"$f":"RANK(V259,$V:$V)","v":1668},{"$f":"RANK(Y259,Y:Y,1)","v":201},54,null,null,null,null,null,null,60]
[null,null,null,null,null,null,null,null,null,null,null,null,null,59,null,null,null,null,null,null,null,0.11494747722723897,1781,745,59,null,null,null,null,null,null,57]
[null,null,null,null,null,null,null,null,null,null,null,null,null,61,null,null,null,null,null,null,null,0.89136044988341789,222,1058,61,null,null,null,null,null,null,67]
[null,null,null,null,null,null,null,null,null,null,null,null,null,63,null,null,null,null,null,null,null,0.77017827092407221,485,1349,63,null,null,null,null,null,null,60]
[null,null,null,null,null,null,null,null,null,null,null,null,null,65,null,null,null,null,null,null,null,5.4535961437049418E-2,1878,1609,65,null,null,null,null,null,null,70]
[null,null,null,null,null,null,null,null,null,null,null,null,null,67,null,null,null,null,null,null,null,0.5660531354975008,913,1791,67,null,null,null,null,null,null,62]
[null,null,null,null,null,null,null,null,null,null,null,null,null,60,null,null,null,null,null,null,null,1.0165230699647476E-2,1982,903,60,null,null,null,null,null,null,59]
[null,null,null,null,null,null,null,null,null,null,null,null,null,60,null,null,null,null,null,null,null,0.49319232328384421,1060,903,60,null,null,null,null,null,null,65]
[null,null,null,null,null,null,null,null,null,null,null,null,null,58,null,null,null,null,null,null,null,0.41483198672664545,1203,615,58,null,null,null,null,null,null,63]
[null,null,null,null,null,null,null,null,null,null,null,null,null,57,null,null,null,null,null,null,null,0.78533619206684269,449,487,57,null,null,null,null,null,null,56]
[null,null,null,null,null,null,null,null,null,null,null,null,null,66,null,null,null,null,null,null,null,0.16286692438415507,1690,1710,66,null,null,null,null,null,null,66]
[null,null,null,null,null,null,null,null,null,null,null,null,null,60,null,null,null,null,null,null,null,0.50752912737860978,1025,903,60,null,null,null,null,null,null,55]
[null,null,null,null,null,null,null,null,null,null,null,null,null,62,null,null,null,null,null,null,null,0.66616376844387115,701,1196,62,null,null,null,null,null,null,59]
[null,null,null,null,null,null,null,null,null,null,null,null,null,55,null,null,null,null,null,null,null,0.27605073384244061,1466,269,55,null,null,null,null,null,null,55]
[null,null,null,null,null,null,null,null,null,null,null,null,null,60,null,null,null,null,null,null,null,0.8590945750133443,281,903,60,null,null,null,null,null,null,58]
[null,null,null,null,null,null,null,null,null,null,null,null,null,56,null,null,null,null,null,null,null,0.53943936674876602,961,362,56,null,null,null,null,null,null,56]
[null,null,null,null,null,null,null,null,null,null,null,null,null,59,null,null,null,null,null,null,null,0.31888227065155872,1388,745,59,null,null,null,null,null,null,57]
[null,null,null,null,null,null,null,null,null,null,null,null,null,59,null,null,null,null,null,null,null,0.8248843864343478,363,745,59,null,null,null,null,null,null,48]
[null,null,null,null,null,null,null,null,null,null,null,null,null,60,null,null,null,null,null,null,null,0.56466031092573798,916,903,60,null,null,null,null,null,null,67]
[null,null,null,null,null,null,null,null,null,null,null,null,null,67,null,null,null,null,null,null,null,0.40692721982379287,1225,1791,67,null,null,null,null,null,null,65]
[null,null,null,null,null,null,null,null,null,null,null,null,null,64,null,null,null,null,null,null,null,0.34817727289089395,1334,1487,64,null,null,null,null,null,null,57]
[null,null,null,null,null,null,null,null,null,null,null,null,null,62,null,null,null,null,null,null,null,0.45045307281187208,1146,1196,62,null,null,null,null,null,null,59]
[null,null,null,null,null,null,null,null,null,null,null,null,null,54,null,null,null,null,null,null,null,0.52655347696089971,984,201,54,null,null,null,null,null,null,67]
[null,null,null,null,null,null,null,null,null,null,null,null,null,59,null,null,null,null,null,null,null,0.17836840188178515,1661,745,59,null,null,null,null,null,null,58]
[null,null,null,null,null,null,null,null,null,null,null,null,null,67,null,null,null,null,null,null,null,0.94502194618861513,121,1791,67,null,null,null,null,null,null,71]
[null,null,null,null,null,null,null,null,null,null,null,null,null,63,null,null,null,null,null,null,null,0.63854525904596504,769,1349,63,null,null,null,null,null,null,60]
[null,null,null,null,null,null,null,null,null,null,null,null,null,62,null,null,null,null,null,null,null,0.14748596043454376,1720,1196,62,null,null,null,null,null,null,48]
[null,null,null,null,null,null,null,null,null,null,null,null,null,61,null,null,null,null,null,null,null,0.44885206274814315,1150,1058,61,null,null,null,null,null,null,64]
[null,null,null,null,null,null,null,null,null,null,null,null,null,62,null,null,null,null,null,null,null,0.33719216051876921,1353,1196,62,null,null,null,null,null,null,62]
[null,null,null,null,null,null,null,null,null,null,null,null,null,57,null,null,null,null,null,null,null,0.17268547113218669,1671,487,57,null,null,null,null,null,null,66]
[null,null,null,null,null,null,null,null,null,null,null,null,null,49,null,null,null,null,null,null,null,0.64709072108660959,745,19,49,null,null,null,null,null,null,59]
[null,null,null,null,null,null,null,null,null,null,null,null,null,66,null,null,null,null,null,null,null,0.98612087446318597,27,1710,66,null,null,null,null,null,null,62]
[null,null,null,null,null,null,null,null,null,null,null,null,null,59,null,null,null,null,null,null,null,0.4810075787668644,1089,745,59,null,null,null,null,null,null,53]
[null,null,null,null,null,null,null,null,null,null,null,null,null,56,null,null,null,null,null,null,null,9.5712168851837975E-2,1809,362,56,null,null,null,null,null,null,64]
[null,null,null,null,null,null,null,null,null,null,null,null,null,64,null,null,null,null,null,null,null,0.25000836203033061,1525,1487,64,null,null,null,null,null,null,60]
[null,null,null,null,null,null,null,null,null,null,null,null,null,63,null,null,null,null,null,null,null,0.69512491962712186,639,1349,63,null,null,null,null,null,null,57]
[null,null,null,null,null,null,null,null,null,null,null,null,null,61,null,null,null,null,null,null,null,0.60248407473916221,837,1058,61,null,null,null,null,null,null,65]
[null,null,null,null,null,null,null,null,null,null,null,null,null,62,null,null,null,null,null,null,null,4.7950671544061407E-3,1997,1196,62,null,null,null,null,null,null,60]
[null,null,null,null,null,null,null,null,null,null,null,null,null,57,null,null,null,null,null,null,null,0.27062145998160236,1476,487,57,null,null,null,null,null,null,60]
[null,null,null,null,null,null,null,null,null,null,null,null,null,51,null,null,null,null,null,null,null,0.91513522662345537,178,63,51,null,null,null,null,null,null,62]
[null,null,null,null,null,null,null,null,null,null,null,null,null,56,null,null,null,null,null,null,null,0.67214518139193913,684,362,56,null,null,null,null,null,null,55]
[null,null,null,null,null,null,null,null,null,null,null,null,null,56,null,null,null,null,null,null,null,0.64323531774609111,756,362,56,null,null,null,null,null,null,64]
[null,null,null,null,null,null,null,null,null,null,null,null,null,59,null,null,null,null,null,null,null,0.70137797774392974,620,745,59,null,null,null,null,null,null,56]
[null,null,null,null,null,null,null,null,null,null,null,null,null,63,null,null,null,null,null,null,null,0.67063471303063116,687,1349,63,null,null,null,null,null,null,65]
[null,null,null,null,null,null,null,null,null,null,null,null,null,64,null,null,null,null,null,null,null,0.71604469538882765,591,1487,64,null,null,null,null,null,null,67]
[null,null,null,null,null,null,null,null,null,null,null,null,null,50,null,null,null,null,null,null,null,0.32105609683216985,1380,37,50,null,null,null,null,null,null,55]
[null,null,null,null,null,null,null,null,null,null,null,null,null,68,null,null,null,null,null,null,null,0.49804400925320336,1048,1857,68,null,null,null,null,null,null,57]
[null,null,null,null,null,null,null,null,null,null,null,null,null,60,null,null,null,null,null,null,null,0.77774348593655307,464,903,60,null,null,null,null,null,null,51]
[null,null,null,null,null,null,null,null,null,null,null,null,null,56,null,null,null,null,null,null,null,5.5979937932018053E-3,1995,362,56,null,null,null,null,null,null,59]
[null,null,null,null,null,null,null,null,null,null,null,null,null,54,null,null,null,null,null,null,null,0.9615248625699212,85,201,54,null,null,null,null,null,null,58]
[null,null,null,null,null,null,null,null,null,null,null,null,null,58,null,null,null,null,null,null,null,0.37066490537005514,1288,615,58,null,null,null,null,null,null,56]
[null,null,null,null,null,null,null,null,null,null,null,null,null,57,null,null,null,null,null,null,null,0.35413823941946043,1327,487,57,null,null,null,null,null,null,57]
[null,null,null,null,null,null,null,null,null,null,null,null,null,64,null,null,null,null,null,null,null,0.75625044980445788,511,1487,64,null,null,null,null,null,null,52]
[null,null,null,null,null,null,null,null,null,null,null,null,null,69,null,null,null,null,null,null,null,0.13232496441416652,1747,1909,69,null,null,null,null,null,null,53]
[null,null,null,null,null,null,null,null,null,null,null,null,null,55,null,null,null,null,null,null,null,0.52294251352072951,991,269,55,null,null,null,null,null,null,64]
[null,null,null,null,null,null,null,null,null,null,null,null,null,53,null,null,null,null,null,null,null,0.1263759862604974,1755,139,53,null,null,null,null,null,null,63]
[null,null,null,null,null,null,null,null,null,null,null,null,null,53,null,null,null,null,null,null,null,0.23346790012564833,1558,139,53,null,null,null,null,null,null,64]
[null,null,null,null,null,null,null,null,null,null,null,null,null,65,null,null,null,null,null,null,null,0.42112161848099572,1194,1609,65,null,null,null,null,null,null,57]
[null,null,null,null,null,null,null,null,null,null,null,null,null,62,null,null,null,null,null,null,null,0.68627617728994605,655,1196,62,null,null,null,null,null,null,68]
[null,null,null,null,null,null,null,null,null,null,null,null,null,72,null,null,null,null,null,null,null,0.82010682591557493,376,1979,72,null,null,null,null,null,null,58]
[null,null,null,null,null,null,null,null,null,null,null,null,null,59,null,null,null,null,null,null,null,0.93702578227149302,137,745,59,null,null,null,null,null,null,66]
[null,null,null,null,null,null,null,null,null,null,null,null,null,63,null,null,null,null,null,null,null,0.68840440179774831,651,1349,63,null,null,null,null,null,null,72]
[null,null,null,null,null,null,null,null,null,null,null,null,null,70,null,null,null,null,null,null,null,0.25785904710957941,1504,1946,70,null,null,null,null,null,null,58]
[null,null,null,null,null,null,null,null,null,null,null,null,null,55,null,null,null,null,null,null,null,{"$f":"IF(N322=\"\",\"\",RAND())","v":0.68502045490715779},658,269,{"$f":"N322","v":55},null,null,null,null,null,null,{"$f":"ROUND(NORMINV(RAND(),mean,stddev),0)","v":55}]
[null,null,null,null,null,null,null,null,null,null,null,null,null,55,null,null,null,null,null,null,null,3.9262325751470595E-2,{"$f":"RANK(V323,$V:$V)","v":1908},{"$f":"RANK(Y323,Y:Y,1)","v":269},55,null,null,null,null,null,null,67]
[null,null,null,null,null,null,null,null,null,null,null,null,null,52,null,null,null,null,null,null,null,0.9222839227511177,163,95,52,null,null,null,null,null,null,63]
[null,null,null,null,null,null,null,null,null,null,null,null,null,63,null,null,null,null,null,null,null,0.89250115050758316,220,1349,63,null,null,null,null,null,null,62]
[null,null,null,null,null,null,null,null,null,null,null,null,null,61,null,null,null,null,null,null,null,0.64495392816139785,751,1058,61,null,null,null,null,null,null,61]
[null,null,null,null,null,null,null,null,null,null,null,null,null,49,null,null,null,null,null,null,null,0.92998417925290078,149,19,49,null,null,null,null,null,null,61]
[null,null,null,null,null,null,null,null,null,null,null,null,null,58,null,null,null,null,null,null,null,0.97584375589264483,50,615,58,null,null,null,null,null,null,60]
[null,null,null,null,null,null,null,null,null,null,null,null,null,59,null,null,null,null,null,null,null,0.88936162137678743,228,745,59,null,null,null,null,null,null,65]
[null,null,null,null,null,null,null,null,null,null,null,null,null,46,null,null,null,null,null,null,null,0.29561386830178049,1429,3,46,null,null,null,null,null,null,58]
[null,null,null,null,null,null,null,null,null,null,null,null,null,60,null,null,null,null,null,null,null,0.40192279856292779,1237,903,60,null,null,null,null,null,null,63]
[null,null,null,null,null,null,null,null,null,null,null,null,null,61,null,null,null,null,null,null,null,0.39921477957995444,1242,1058,61,null,null,null,null,null,null,64]
[null,null,null,null,null,null,null,null,null,null,null,null,null,61,null,null,null,null,null,null,null,2.9646179151635255E-2,1939,1058,61,null,null,null,null,null,null,65]
[null,null,null,null,null,null,null,null,null,null,null,null,null,57,null,null,null,null,null,null,null,0.68827105097959318,652,487,57,null,null,null,null,null,null,51]
[null,null,null,null,null,null,null,null,null,null,null,null,null,63,null,null,null,null,null,null,null,0.41539150471702768,1202,1349,63,null,null,null,null,null,null,60]
[null,null,null,null,null,null,null,null,null,null,null,null,null,56,null,null,null,null,null,null,null,0.13644638417150323,1741,362,56,null,null,null,null,null,null,64]
[null,null,null,null,null,null,null,null,null,null,null,null,null,65,null,null,null,null,null,null,null,0.16821145651780123,1682,1609,65,null,null,null,null,null,null,67]
[null,null,null,null,null,null,null,null,null,null,null,null,null,64,null,null,null,null,null,null,null,0.43111150604397419,1177,1487,64,null,null,null,null,null,null,62]
[null,null,null,null,null,null,null,null,null,null,null,null,null,54,null,null,null,null,null,null,null,0.95135892707843417,107,201,54,null,null,null,null,null,null,71]
[null,null,null,null,null,null,null,null,null,null,null,null,null,66,null,null,null,null,null,null,null,0.14181404309333301,1730,1710,66,null,null,null,null,null,null,63]
[null,null,null,null,null,null,null,null,null,null,null,null,null,61,null,null,null,null,null,null,null,0.62136417869270055,795,1058,61,null,null,null,null,null,null,51]
[null,null,null,null,null,null,null,null,null,null,null,null,null,64,null,null,null,null,null,null,null,0.46257581589503771,1118,1487,64,null,null,null,null,null,null,61]
[null,null,null,null,null,null,null,null,null,null,null,null,null,61,null,null,null,null,null,null,null,0.31077072394811744,1402,1058,61,null,null,null,null,null,null,60]
[null,null,null,null,null,null,null,null,null,null,null,null,null,61,null,null,null,null,null,null,null,0.98888114824871931,22,1058,61,null,null,null,null,null,null,57]
[null,null,null,null,null,null,null,null,null,null,null,null,null,62,null,null,null,null,null,null,null,0.58736693557998498,871,1196,62,null,null,null,null,null,null,69]
[null,null,null,null,null,null,null,null,null,null,null,null,null,64,null,null,null,null,null,null,null,0.7470172633699278,532,1487,64,null,null,null,null,null,null,59]
[null,null,null,null,null,null,null,null,null,null,null,null,null,47,null,null,null,null,null,null,null,0.22648544630165202,1573,4,47,null,null,null,null,null,null,64]
[null,null,null,null,null,null,null,null,null,null,null,null,null,55,null,null,null,null,null,null,null,0.92852174477411231,150,269,55,null,null,null,null,null,null,58]
[null,null,null,null,null,null,null,null,null,null,null,null,null,56,null,null,null,null,null,null,null,0.66634549281710642,700,362,56,null,null,null,null,null,null,55]
[null,null,null,null,null,null,null,null,null,null,null,null,null,58,null,null,null,null,null,null,null,0.29043049730671999,1436,615,58,null,null,null,null,null,null,63]
[null,null,null,null,null,null,null,null,null,null,null,null,null,66,null,null,null,null,null,null,null,0.39632680666015907,1245,1710,66,null,null,null,null,null,null,61]
[null,null,null,null,null,null,null,null,null,null,null,null,null,53,null,null,null,null,null,null,null,0.70473232683456266,614,139,53,null,null,null,null,null,null,56]
[null,null,null,null,null,null,null,null,null,null,null,null,null,58,null,null,null,null,null,null,null,0.4199293348060098,1195,615,58,null,null,null,null,null,null,55]
[null,null,null,null,null,null,null,null,null,null,null,null,null,60,null,null,null,null,null,null,null,0.30579872075610304,1413,903,60,null,null,null,null,null,null,57]
[null,null,null,null,null,null,null,null,null,null,null,null,null,67,null,null,null,null,null,null,null,0.59074709989709029,864,1791,67,null,null,null,null,null,null,57]
[null,null,null,null,null,null,null,null,null,null,null,null,null,63,null,null,null,null,null,null,null,0.73845792175484126,546,1349,63,null,null,null,null,null,null,65]
[null,null,null,null,null,null,null,null,null,null,null,null,null,64,null,null,null,null,null,null,null,0.11499706920498243,1780,1487,64,null,null,null,null,null,null,60]
[null,null,null,null,null,null,null,null,null,null,null,null,null,58,null,null,null,null,null,null,null,0.87379945037972251,258,615,58,null,null,null,null,null,null,58]
[null,null,null,null,null,null,null,null,null,null,null,null,null,64,null,null,null,null,null,null,null,3.864973462293797E-2,1909,1487,64,null,null,null,null,null,null,65]
[null,null,null,null,null,null,null,null,null,null,null,null,null,63,null,null,null,null,null,null,null,0.29752307052569194,1427,1349,63,null,null,null,null,null,null,70]
[null,null,null,null,null,null,null,null,null,null,null,null,null,57,null,null,null,null,null,null,null,0.48404323514449876,1080,487,57,null,null,null,null,null,null,60]
[null,null,null,null,null,null,null,null,null,null,null,null,null,67,null,null,null,null,null,null,null,0.55130191866319211,934,1791,67,null,null,null,null,null,null,63]
[null,null,null,null,null,null,null,null,null,null,null,null,null,70,null,null,null,null,null,null,null,0.74594255339803961,536,1946,70,null,null,null,null,null,null,54]
[null,null,null,null,null,null,null,null,null,null,null,null,null,63,null,null,null,null,null,null,null,0.21809023979780173,1586,1349,63,null,null,null,null,null,null,61]
[null,null,null,null,null,null,null,null,null,null,null,null,null,53,null,null,null,null,null,null,null,0.24993669526174844,1526,139,53,null,null,null,null,null,null,57]
[null,null,null,null,null,null,null,null,null,null,null,null,null,55,null,null,null,null,null,null,null,0.26955040737224223,1477,269,55,null,null,null,null,null,null,54]
[null,null,null,null,null,null,null,null,null,null,null,null,null,69,null,null,null,null,null,null,null,0.77132759413476293,482,1909,69,null,null,null,null,null,null,60]
[null,null,null,null,null,null,null,null,null,null,null,null,null,69,null,null,null,null,null,null,null,0.36271004628656622,1309,1909,69,null,null,null,null,null,null,54]
[null,null,null,null,null,null,null,null,null,null,null,null,null,51,null,null,null,null,null,null,null,0.71361868556306096,598,63,51,null,null,null,null,null,null,58]
[null,null,null,null,null,null,null,null,null,null,null,null,null,60,null,null,null,null,null,null,null,0.11544341839777106,1779,903,60,null,null,null,null,null,null,59]
[null,null,null,null,null,null,null,null,null,null,null,null,null,60,null,null,null,null,null,null,null,0.88834377938191411,230,903,60,null,null,null,null,null,null,56]
[null,null,null,null,null,null,null,null,null,null,null,null,null,53,null,null,null,null,null,null,null,0.21068055768410698,1605,139,53,null,null,null,null,null,null,56]
[null,null,null,null,null,null,null,null,null,null,null,null,null,67,null,null,null,null,null,null,null,0.92562720171610657,153,1791,67,null,null,null,null,null,null,51]
[null,null,null,null,null,null,null,null,null,null,null,null,null,54,null,null,null,null,null,null,null,0.4734972325688982,1102,201,54,null,null,null,null,null,null,75]
[null,null,null,null,null,null,null,null,null,null,null,null,null,58,null,null,null,null,null,null,null,0.9698385750199533,66,615,58,null,null,null,null,null,null,65]
[null,null,null,null,null,null,null,null,null,null,null,null,null,64,null,null,null,null,null,null,null,0.82704948574473247,358,1487,64,null,null,null,null,null,null,68]
[null,null,null,null,null,null,null,null,null,null,null,null,null,68,null,null,null,null,null,null,null,0.7712778577203363,483,1857,68,null,null,null,null,null,null,66]
[null,null,null,null,null,null,null,null,null,null,null,null,null,62,null,null,null,null,null,null,null,0.8111799033193362,400,1196,62,null,null,null,null,null,null,69]
[null,null,null,null,null,null,null,null,null,null,null,null,null,57,null,null,null,null,null,null,null,5.4728913677096425E-2,1877,487,57,null,null,null,null,null,null,57]
[null,null,null,null,null,null,null,null,null,null,null,null,null,65,null,null,null,null,null,null,null,0.80238835066451752,416,1609,65,null,null,null,null,null,null,64]
[null,null,null,null,null,null,null,null,null,null,null,null,null,72,null,null,null,null,null,null,null,0.58899058201113574,866,1979,72,null,null,null,null,null,null,71]
[null,null,null,null,null,null,null,null,null,null,null,null,null,52,null,null,null,null,null,null,null,0.17269373711394187,1670,95,52,null,null,null,null,null,null,58]
[null,null,null,null,null,null,null,null,null,null,null,null,null,56,null,null,null,null,null,null,null,0.66877096061601782,694,362,56,null,null,null,null,null,null,64]
[null,null,null,null,null,null,null,null,null,null,null,null,null,59,null,null,null,null,null,null,null,0.64816787064223325,744,745,59,null,null,null,null,null,null,60]
[null,null,null,null,null,null,null,null,null,null,null,null,null,69,null,null,null,null,null,null,null,0.68582411543893718,656,1909,69,null,null,null,null,null,null,67]
[null,null,null,null,null,null,null,null,null,null,null,null,null,67,null,null,null,null,null,null,null,{"$f":"IF(N386=\"\",\"\",RAND())","v":3.0288574586521566E-2},1936,1791,{"$f":"N386","v":67},null,null,null,null,null,null,{"$f":"ROUND(NORMINV(RAND(),mean,stddev),0)","v":58}]
[null,null,null,null,null,null,null,null,null,null,null,null,null,53,null,null,null,null,null,null,null,0.87290325721023088,{"$f":"RANK(V387,$V:$V)","v":259},{"$f":"RANK(Y387,Y:Y,1)","v":139},53,null,null,null,null,null,null,56]
[null,null,null,null,null,null,null,null,null,null,null,null,null,62,null,null,null,null,null,null,null,0.60081952378464676,842,1196,62,null,null,null,null,null,null,60]
[null,null,null,null,null,null,null,null,null,null,null,null,null,56,null,null,null,null,null,null,null,0.52744273724400748,983,362,56,null,null,null,null,null,null,54]
[null,null,null,null,null,null,null,null,null,null,null,null,null,50,null,null,null,null,null,null,null,4.8222377844961084E-2,1892,37,50,null,null,null,null,null,null,58]
[null,null,null,null,null,null,null,null,null,null,null,null,null,56,null,null,null,null,null,null,null,1.5097107401693344E-2,1975,362,56,null,null,null,null,null,null,56]
[null,null,null,null,null,null,null,null,null,null,null,null,null,67,null,null,null,null,null,null,null,0.3526895516069688,1328,1791,67,null,null,null,null,null,null,61]
[null,null,null,null,null,null,null,null,null,null,null,null,null,66,null,null,null,null,null,null,null,0.78246552775110179,455,1710,66,null,null,null,null,null,null,56]
[null,null,null,null,null,null,null,null,null,null,null,null,null,55,null,null,null,null,null,null,null,0.44330340286290382,1160,269,55,null,null,null,null,null,null,53]
[null,null,null,null,null,null,null,null,null,null,null,null,null,56,null,null,null,null,null,null,null,1.0335069414096898E-3,1998,362,56,null,null,null,null,null,null,63]
[null,null,null,null,null,null,null,null,null,null,null,null,null,57,null,null,null,null,null,null,null,0.47467221261401882,1099,487,57,null,null,null,null,null,null,60]
[null,null,null,null,null,null,null,null,null,null,null,null,null,65,null,null,null,null,null,null,null,0.57748633714908992,889,1609,65,null,null,null,null,null,null,57]
[null,null,null,null,null,null,null,null,null,null,null,null,null,49,null,null,null,null,null,null,null,7.1158440679270574E-2,1852,19,49,null,null,null,null,null,null,60]
[null,null,null,null,null,null,null,null,null,null,null,null,null,64,null,null,null,null,null,null,null,0.85875963164109081,282,1487,64,null,null,null,null,null,null,53]
[null,null,null,null,null,null,null,null,null,null,null,null,null,59,null,null,null,null,null,null,null,0.21399306589037648,1597,745,59,null,null,null,null,null,null,53]
[null,null,null,null,null,null,null,null,null,null,null,null,null,59,null,null,null,null,null,null,null,5.3000433522361057E-3,1996,745,59,null,null,null,null,null,null,50]
[null,null,null,null,null,null,null,null,null,null,null,null,null,70,null,null,null,null,null,null,null,0.85648101856619296,287,1946,70,null,null,null,null,null,null,57]
[null,null,null,null,null,null,null,null,null,null,null,null,null,61,null,null,null,null,null,null,null,0.33718362466519203,1354,1058,61,null,null,null,null,null,null,54]
[null,null,null,null,null,null,null,null,null,null,null,null,null,64,null,null,null,null,null,null,null,0.43722529672875121,1169,1487,64,null,null,null,null,null,null,54]
[null,null,null,null,null,null,null,null,null,null,null,null,null,68,null,null,null,null,null,null,null,0.32055481735099733,1383,1857,68,null,null,null,null,null,null,65]
[null,null,null,null,null,null,null,null,null,null,null,null,null,65,null,null,null,null,null,null,null,0.87783370622726486,250,1609,65,null,null,null,null,null,null,55]
[null,null,null,null,null,null,null,null,null,null,null,null,null,67,null,null,null,null,null,null,null,0.87267628616213799,262,1791,67,null,null,null,null,null,null,59]
[null,null,null,null,null,null,null,null,null,null,null,null,null,61,null,null,null,null,null,null,null,7.4296803234801256E-3,1986,1058,61,null,null,null,null,null,null,61]
[null,null,null,null,null,null,null,null,null,null,null,null,null,60,null,null,null,null,null,null,null,0.77837084938965373,462,903,60,null,null,null,null,null,null,59]
[null,null,null,null,null,null,null,null,null,null,null,null,null,57,null,null,null,null,null,null,null,0.72168540960504302,584,487,57,null,null,null,null,null,null,54]
[null,null,null,null,null,null,null,null,null,null,null,null,null,58,null,null,null,null,null,null,null,0.67107647987033037,686,615,58,null,null,null,null,null,null,63]
[null,null,null,null,null,null,null,null,null,null,null,null,null,54,null,null,null,null,null,null,null,0.35181150186377641,1329,201,54,null,null,null,null,null,null,58]
[null,null,null,null,null,null,null,null,null,null,null,null,null,66,null,null,null,null,null,null,null,8.1923835259979816E-2,1832,1710,66,null,null,null,null,null,null,56]
[null,null,null,null,null,null,null,null,null,null,null,null,null,69,null,null,null,null,null,null,null,0.93960083067774702,131,1909,69,null,null,null,null,null,null,55]
[null,null,null,null,null,null,null,null,null,null,null,null,null,59,null,null,null,null,null,null,null,0.64963302778137144,740,745,59,null,null,null,null,null,null,53]
[null,null,null,null,null,null,null,null,null,null,null,null,null,66,null,null,null,null,null,null,null,0.50015695943516891,1042,1710,66,null,null,null,null,null,null,55]
[null,null,null,null,null,null,null,null,null,null,null,null,null,65,null,null,null,null,null,null,null,0.43977209530723504,1165,1609,65,null,null,null,null,null,null,54]
[null,null,null,null,null,null,null,null,null,null,null,null,null,67,null,null,null,null,null,null,null,0.92813333708144341,151,1791,67,null,null,null,null,null,null,57]
[null,null,null,null,null,null,null,null,null,null,null,null,null,55,null,null,null,null,null,null,null,0.20555805819605832,1617,269,55,null,null,null,null,null,null,69]
[null,null,null,null,null,null,null,null,null,null,null,null,null,60,null,null,null,null,null,null,null,0.99746938271950336,6,903,60,null,null,null,null,null,null,60]
[null,null,null,null,null,null,null,null,null,null,null,null,null,65,null,null,null,null,null,null,null,0.25775203379453737,1507,1609,65,null,null,null,null,null,null,53]
[null,null,null,null,null,null,null,null,null,null,null,null,null,67,null,null,null,null,null,null,null,0.50277203066653953,1038,1791,67,null,null,null,null,null,null,56]
[null,null,null,null,null,null,null,null,null,null,null,null,null,61,null,null,null,null,null,null,null,0.65010906749837027,738,1058,61,null,null,null,null,null,null,65]
[null,null,null,null,null,null,null,null,null,null,null,null,null,56,null,null,null,null,null,null,null,0.74078610239603027,543,362,56,null,null,null,null,null,null,59]
[null,null,null,null,null,null,null,null,null,null,null,null,null,52,null,null,null,null,null,null,null,0.49774047042417313,1049,95,52,null,null,null,null,null,null,58]
[null,null,null,null,null,null,null,null,null,null,null,null,null,61,null,null,null,null,null,null,null,0.30834998501015753,1407,1058,61,null,null,null,null,null,null,69]
[null,null,null,null,null,null,null,null,null,null,null,null,null,70,null,null,null,null,null,null,null,0.22319166138644209,1578,1946,70,null,null,null,null,null,null,65]
[null,null,null,null,null,null,null,null,null,null,null,null,null,56,null,null,null,null,null,null,null,0.31166575834549204,1400,362,56,null,null,null,null,null,null,64]
[null,null,null,null,null,null,null,null,null,null,null,null,null,56,null,null,null,null,null,null,null,0.51260245333178422,1015,362,56,null,null,null,null,null,null,60]
[null,null,null,null,null,null,null,null,null,null,null,null,null,60,null,null,null,null,null,null,null,0.88136312542358575,241,903,60,null,null,null,null,null,null,66]
[null,null,null,null,null,null,null,null,null,null,null,null,null,66,null,null,null,null,null,null,null,0.51864229065217293,1001,1710,66,null,null,null,null,null,null,65]
[null,null,null,null,null,null,null,null,null,null,null,null,null,62,null,null,null,null,null,null,null,0.93800961015120565,134,1196,62,null,null,null,null,null,null,53]
[null,null,null,null,null,null,null,null,null,null,null,null,null,74,null,null,null,null,null,null,null,0.48735251691023607,1076,1992,74,null,null,null,null,null,null,60]
[null,null,null,null,null,null,null,null,null,null,null,null,null,58,null,null,null,null,null,null,null,0.97240848608695163,58,615,58,null,null,null,null,null,null,62]
[null,null,null,null,null,null,null,null,null,null,null,null,null,60,null,null,null,null,null,null,null,0.99103835991075795,17,903,60,null,null,null,null,null,null,63]
[null,null,null,null,null,null,null,null,null,null,null,null,null,54,null,null,null,null,null,null,null,6.3729600055823954E-2,1865,201,54,null,null,null,null,null,null,60]
[null,null,null,null,null,null,null,null,null,null,null,null,null,62,null,null,null,null,null,null,null,0.48862782964227691,1068,1196,62,null,null,null,null,null,null,66]
[null,null,null,null,null,null,null,null,null,null,null,null,null,58,null,null,null,null,null,null,null,0.67918861132672947,673,615,58,null,null,null,null,null,null,63]
[null,null,null,null,null,null,null,null,null,null,null,null,null,58,null,null,null,null,null,null,null,0.26313761568142924,1491,615,58,null,null,null,null,null,null,55]
[null,null,null,null,null,null,null,null,null,null,null,null,null,67,null,null,null,null,null,null,null,5.8512828800097227E-2,1872,1791,67,null,null,null,null,null,null,60]
[null,null,null,null,null,null,null,null,null,null,null,null,null,52,null,null,null,null,null,null,null,0.83947795402061187,326,95,52,null,null,null,null,null,null,65]
[null,null,null,null,null,null,null,null,null,null,null,null,null,70,null,null,null,null,null,null,null,0.87099469058718904,266,1946,70,null,null,null,null,null,null,59]
[null,null,null,null,null,null,null,null,null,null,null,null,null,51,null,null,null,null,null,null,null,0.2069518877016393,1611,63,51,null,null,null,null,null,null,64]
[null,null,null,null,null,null,null,null,null,null,null,null,null,55,null,null,null,null,null,null,null,0.17683048705191295,1663,269,55,null,null,null,null,null,null,61]
[null,null,null,null,null,null,null,null,null,null,null,null,null,66,null,null,null,null,null,null,null,0.84656086607622338,314,1710,66,null,null,null,null,null,null,63]
[null,null,null,null,null,null,null,null,null,null,null,null,null,69,null,null,null,null,null,null,null,0.70087979598451877,623,1909,69,null,null,null,null,null,null,54]
[null,null,null,null,null,null,null,null,null,null,null,null,null,56,null,null,null,null,null,null,null,0.10907346169351295,1789,362,56,null,null,null,null,null,null,60]
[null,null,null,null,null,null,null,null,null,null,null,null,null,65,null,null,null,null,null,null,null,0.77162839085766877,480,1609,65,null,null,null,null,null,null,66]
[null,null,null,null,null,null,null,null,null,null,null,null,null,58,null,null,null,null,null,null,null,9.0174232401811771E-3,1985,615,58,null,null,null,null,null,null,60]
[null,null,null,null,null,null,null,null,null,null,null,null,null,56,null,null,null,null,null,null,null,{"$f":"IF(N450=\"\",\"\",RAND())","v":0.65841804034618678},718,362,{"$f":"N450","v":56},null,null,null,null,null,null,{"$f":"ROUND(NORMINV(RAND(),mean,stddev),0)","v":56}]
[null,null,null,null,null,null,null,null,null,null,null,null,null,57,null,null,null,null,null,null,null,0.69729911086114682,{"$f":"RANK(V451,$V:$V)","v":635},{"$f":"RANK(Y451,Y:Y,1)","v":487},57,null,null,null,null,null,null,52]
[null,null,null,null,null,null,null,null,null,null,null,null,null,59,null,null,null,null,null,null,null,0.17568289988912544,1667,745,59,null,null,null,null,null,null,59]
[null,null,null,null,null,null,null,null,null,null,null,null,null,61,null,null,null,null,null,null,null,0.95514458247877387,102,1058,61,null,null,null,null,null,null,53]
[null,null,null,null,null,null,null,null,null,null,null,null,null,56,null,null,null,null,null,null,null,0.44401100944344352,1156,362,56,null,null,null,null,null,null,54]
[null,null,null,null,null,null,null,null,null,null,null,null,null,51,null,null,null,null,null,null,null,3.2193147524189003E-2,1927,63,51,null,null,null,null,null,null,60]
[null,null,null,null,null,null,null,null,null,null,null,null,null,71,null,null,null,null,null,null,null,0.3053877081085371,1415,1971,71,null,null,null,null,null,null,57]
[null,null,null,null,null,null,null,null,null,null,null,null,null,51,null,null,null,null,null,null,null,0.55423720331122928,929,63,51,null,null,null,null,null,null,62]
[null,null,null,null,null,null,null,null,null,null,null,null,null,50,null,null,null,null,null,null,null,0.86512659030887573,273,37,50,null,null,null,null,null,null,52]
[null,null,null,null,null,null,null,null,null,null,null,null,null,67,null,null,null,null,null,null,null,0.49584144572111843,1053,1791,67,null,null,null,null,null,null,62]
[null,null,null,null,null,null,null,null,null,null,null,null,null,59,null,null,null,null,null,null,null,0.69191894998979164,644,745,59,null,null,null,null,null,null,61]
[null,null,null,null,null,null,null,null,null,null,null,null,null,62,null,null,null,null,null,null,null,0.83962378068350774,325,1196,62,null,null,null,null,null,null,61]
[null,null,null,null,null,null,null,null,null,null,null,null,null,63,null,null,null,null,null,null,null,1.5635640329185851E-2,1972,1349,63,null,null,null,null,null,null,58]
[null,null,null,null,null,null,null,null,null,null,null,null,null,51,null,null,null,null,null,null,null,0.63198485943351512,780,63,51,null,null,null,null,null,null,62]
[null,null,null,null,null,null,null,null,null,null,null,null,null,69,null,null,null,null,null,null,null,2.0742235723165359E-2,1956,1909,69,null,null,null,null,null,null,55]
[null,null,null,null,null,null,null,null,null,null,null,null,null,67,null,null,null,null,null,null,null,0.5924388197869066,860,1791,67,null,null,null,null,null,null,59]
[null,null,null,null,null,null,null,null,null,null,null,null,null,64,null,null,null,null,null,null,null,0.81645744101922779,386,1487,64,null,null,null,null,null,null,51]
[null,null,null,null,null,null,null,null,null,null,null,null,null,56,null,null,null,null,null,null,null,0.87550837434737572,254,362,56,null,null,null,null,null,null,64]
[null,null,null,null,null,null,null,null,null,null,null,null,null,70,null,null,null,null,null,null,null,0.19676675043640279,1636,1946,70,null,null,null,null,null,null,70]
[null,null,null,null,null,null,null,null,null,null,null,null,null,61,null,null,null,null,null,null,null,0.82968690601173556,352,1058,61,null,null,null,null,null,null,63]
[null,null,null,null,null,null,null,null,null,null,null,null,null,52,null,null,null,null,null,null,null,0.13228409375511518,1748,95,52,null,null,null,null,null,null,68]
[null,null,null,null,null,null,null,null,null,null,null,null,null,63,null,null,null,null,null,null,null,0.91155678347336699,187,1349,63,null,null,null,null,null,null,56]
[null,null,null,null,null,null,null,null,null,null,null,null,null,61,null,null,null,null,null,null,null,0.21573569403291892,1591,1058,61,null,null,null,null,null,null,60]
[null,null,null,null,null,null,null,null,null,null,null,null,null,59,null,null,null,null,null,null,null,0.45877854165474619,1124,745,59,null,null,null,null,null,null,60]
[null,null,null,null,null,null,null,null,null,null,null,null,null,61,null,null,null,null,null,null,null,0.42834228767585703,1184,1058,61,null,null,null,null,null,null,59]
[null,null,null,null,null,null,null,null,null,null,null,null,null,58,null,null,null,null,null,null,null,0.37256564059195652,1285,615,58,null,null,null,null,null,null,67]
[null,null,null,null,null,null,null,null,null,null,null,null,null,64,null,null,null,null,null,null,null,0.10946691319292545,1788,1487,64,null,null,null,null,null,null,56]
[null,null,null,null,null,null,null,null,null,null,null,null,null,63,null,null,null,null,null,null,null,0.43381688157387677,1174,1349,63,null,null,null,null,null,null,58]
[null,null,null,null,null,null,null,null,null,null,null,null,null,57,null,null,null,null,null,null,null,0.45731243469897498,1128,487,57,null,null,null,null,null,null,49]
[null,null,null,null,null,null,null,null,null,null,null,null,null,65,null,null,null,null,null,null,null,0.25547251726611298,1514,1609,65,null,null,null,null,null,null,56]
[null,null,null,null,null,null,null,null,null,null,null,null,null,65,null,null,null,null,null,null,null,0.258102132072073,1503,1609,65,null,null,null,null,null,null,58]
[null,null,null,null,null,null,null,null,null,null,null,null,null,57,null,null,null,null,null,null,null,0.32601900066657141,1373,487,57,null,null,null,null,null,null,61]
[null,null,null,null,null,null,null,null,null,null,null,null,null,63,null,null,null,null,null,null,null,0.43351577456651802,1175,1349,63,null,null,null,null,null,null,59]
[null,null,null,null,null,null,null,null,null,null,null,null,null,59,null,null,null,null,null,null,null,5.4148802272978025E-2,1880,745,59,null,null,null,null,null,null,64]
[null,null,null,null,null,null,null,null,null,null,null,null,null,58,null,null,null,null,null,null,null,0.75355907500730968,518,615,58,null,null,null,null,null,null,63]
[null,null,null,null,null,null,null,null,null,null,null,null,null,64,null,null,null,null,null,null,null,0.77923992801162945,457,1487,64,null,null,null,null,null,null,65]
[null,null,null,null,null,null,null,null,null,null,null,null,null,59,null,null,null,null,null,null,null,0.35927876467106201,1317,745,59,null,null,null,null,null,null,52]
[null,null,null,null,null,null,null,null,null,null,null,null,null,59,null,null,null,null,null,null,null,1.0035817283174819E-2,1983,745,59,null,null,null,null,null,null,60]
[null,null,null,null,null,null,null,null,null,null,null,null,null,59,null,null,null,null,null,null,null,0.66380460341949765,708,745,59,null,null,null,null,null,null,58]
[null,null,null,null,null,null,null,null,null,null,null,null,null,51,null,null,null,null,null,null,null,0.50919964332842027,1022,63,51,null,null,null,null,null,null,63]
[null,null,null,null,null,null,null,null,null,null,null,null,null,61,null,null,null,null,null,null,null,0.34234603224437954,1348,1058,61,null,null,null,null,null,null,65]
[null,null,null,null,null,null,null,null,null,null,null,null,null,60,null,null,null,null,null,null,null,0.16220899950639034,1693,903,60,null,null,null,null,null,null,52]
[null,null,null,null,null,null,null,null,null,null,null,null,null,65,null,null,null,null,null,null,null,0.57306815881996764,896,1609,65,null,null,null,null,null,null,66]
[null,null,null,null,null,null,null,null,null,null,null,null,null,58,null,null,null,null,null,null,null,0.22173434737269981,1579,615,58,null,null,null,null,null,null,64]
[null,null,null,null,null,null,null,null,null,null,null,null,null,61,null,null,null,null,null,null,null,0.65642313202942904,726,1058,61,null,null,null,null,null,null,51]
[null,null,null,null,null,null,null,null,null,null,null,null,null,58,null,null,null,null,null,null,null,0.31505075181244391,1396,615,58,null,null,null,null,null,null,58]
[null,null,null,null,null,null,null,null,null,null,null,null,null,62,null,null,null,null,null,null,null,0.31736987685919582,1390,1196,62,null,null,null,null,null,null,59]
[null,null,null,null,null,null,null,null,null,null,null,null,null,57,null,null,null,null,null,null,null,0.66061081209832329,716,487,57,null,null,null,null,null,null,59]
[null,null,null,null,null,null,null,null,null,null,null,null,null,63,null,null,null,null,null,null,null,5.7535015960853642E-2,1874,1349,63,null,null,null,null,null,null,60]
[null,null,null,null,null,null,null,null,null,null,null,null,null,62,null,null,null,null,null,null,null,1.5380035673348336E-2,1973,1196,62,null,null,null,null,null,null,65]
[null,null,null,null,null,null,null,null,null,null,null,null,null,65,null,null,null,null,null,null,null,0.97356571537844783,55,1609,65,null,null,null,null,null,null,67]
[null,null,null,null,null,null,null,null,null,null,null,null,null,49,null,null,null,null,null,null,null,0.4292849641230837,1181,19,49,null,null,null,null,null,null,59]
[null,null,null,null,null,null,null,null,null,null,null,null,null,62,null,null,null,null,null,null,null,0.19265789583328863,1642,1196,62,null,null,null,null,null,null,56]
[null,null,null,null,null,null,null,null,null,null,null,null,null,53,null,null,null,null,null,null,null,0.1435419043816234,1725,139,53,null,null,null,null,null,null,59]
[null,null,null,null,null,null,null,null,null,null,null,null,null,64,null,null,null,null,null,null,null,0.56992515942367894,907,1487,64,null,null,null,null,null,null,55]
[null,null,null,null,null,null,null,null,null,null,null,null,null,51,null,null,null,null,null,null,null,0.37645163875552778,1280,63,51,null,null,null,null,null,null,60]
[null,null,null,null,null,null,null,null,null,null,null,null,null,56,null,null,null,null,null,null,null,0.30158956408141591,1420,362,56,null,null,null,null,null,null,58]
[null,null,null,null,null,null,null,null,null,null,null,null,null,68,null,null,null,null,null,null,null,0.52629504156198592,986,1857,68,null,null,null,null,null,null,64]
[null,null,null,null,null,null,null,null,null,null,null,null,null,63,null,null,null,null,null,null,null,0.93680626984971482,138,1349,63,null,null,null,null,null,null,70]
[null,null,null,null,null,null,null,null,null,null,null,null,null,59,null,null,null,null,null,null,null,0.570354574810778,906,745,59,null,null,null,null,null,null,63]
[null,null,null,null,null,null,null,null,null,null,null,null,null,52,null,null,null,null,null,null,null,0.81180114104678869,398,95,52,null,null,null,null,null,null,69]
[null,null,null,null,null,null,null,null,null,null,null,null,null,66,null,null,null,null,null,null,null,0.52937370295426112,975,1710,66,null,null,null,null,null,null,70]
[null,null,null,null,null,null,null,null,null,null,null,null,null,56,null,null,null,null,null,null,null,0.9638989316694021,79,362,56,null,null,null,null,null,null,63]
[null,null,null,null,null,null,null,null,null,null,null,null,null,56,null,null,null,null,null,null,null,0.18018653309348598,1659,362,56,null,null,null,null,null,null,61]
[null,null,null,null,null,null,null,null,null,null,null,null,null,59,null,null,null,null,null,null,null,{"$f":"IF(N514=\"\",\"\",RAND())","v":0.21861983270874696},1585,745,{"$f":"N514","v":59},null,null,null,null,null,null,{"$f":"ROUND(NORMINV(RAND(),mean,stddev),0)","v":59}]
[null,null,null,null,null,null,null,null,null,null,null,null,null,67,null,null,null,null,null,null,null,0.64705416687035577,{"$f":"RANK(V515,$V:$V)","v":746},{"$f":"RANK(Y515,Y:Y,1)","v":1791},67,null,null,null,null,null,null,54]
[null,null,null,null,null,null,null,null,null,null,null,null,null,62,null,null,null,null,null,null,null,0.8132631233805514,394,1196,62,null,null,null,null,null,null,66]
[null,null,null,null,null,null,null,null,null,null,null,null,null,63,null,null,null,null,null,null,null,0.53065078039444724,973,1349,63,null,null,null,null,null,null,57]
[null,null,null,null,null,null,null,null,null,null,null,null,null,62,null,null,null,null,null,null,null,0.84546255670314119,317,1196,62,null,null,null,null,null,null,66]
[null,null,null,null,null,null,null,null,null,null,null,null,null,61,null,null,null,null,null,null,null,0.73309850287003264,557,1058,61,null,null,null,null,null,null,52]
[null,null,null,null,null,null,null,null,null,null,null,null,null,64,null,null,null,null,null,null,null,0.79025808534609687,439,1487,64,null,null,null,null,null,null,61]
[null,null,null,null,null,null,null,null,null,null,null,null,null,54,null,null,null,null,null,null,null,9.2320099334583183E-2,1816,201,54,null,null,null,null,null,null,56]
[null,null,null,null,null,null,null,null,null,null,null,null,null,55,null,null,null,null,null,null,null,0.82457608689392503,366,269,55,null,null,null,null,null,null,59]
[null,null,null,null,null,null,null,null,null,null,null,null,null,56,null,null,null,null,null,null,null,0.36931939657413015,1292,362,56,null,null,null,null,null,null,64]
[null,null,null,null,null,null,null,null,null,null,null,null,null,62,null,null,null,null,null,null,null,0.6310333081821059,783,1196,62,null,null,null,null,null,null,62]
[null,null,null,null,null,null,null,null,null,null,null,null,null,62,null,null,null,null,null,null,null,0.63726534763391995,771,1196,62,null,null,null,null,null,null,63]
[null,null,null,null,null,null,null,null,null,null,null,null,null,53,null,null,null,null,null,null,null,0.55251440243383454,931,139,53,null,null,null,null,null,null,64]
[null,null,null,null,null,null,null,null,null,null,null,null,null,69,null,null,null,null,null,null,null,0.71937547886024367,588,1909,69,null,null,null,null,null,null,67]
[null,null,null,null,null,null,null,null,null,null,null,null,null,55,null,null,null,null,null,null,null,0.50181130763767012,1039,269,55,null,null,null,null,null,null,64]
[null,null,null,null,null,null,null,null,null,null,null,null,null,56,null,null,null,null,null,null,null,0.90223259414300838,200,362,56,null,null,null,null,null,null,60]
[null,null,null,null,null,null,null,null,null,null,null,null,null,65,null,null,null,null,null,null,null,0.74068062067463269,544,1609,65,null,null,null,null,null,null,62]
[null,null,null,null,null,null,null,null,null,null,null,null,null,47,null,null,null,null,null,null,null,0.69225430604868587,642,4,47,null,null,null,null,null,null,67]
[null,null,null,null,null,null,null,null,null,null,null,null,null,58,null,null,null,null,null,null,null,0.85549130091100423,289,615,58,null,null,null,null,null,null,64]
[null,null,null,null,null,null,null,null,null,null,null,null,null,63,null,null,null,null,null,null,null,0.90396722799840845,198,1349,63,null,null,null,null,null,null,57]
[null,null,null,null,null,null,null,null,null,null,null,null,null,50,null,null,null,null,null,null,null,0.4088156277984788,1220,37,50,null,null,null,null,null,null,60]
[null,null,null,null,null,null,null,null,null,null,null,null,null,58,null,null,null,null,null,null,null,7.6890161120403033E-2,1838,615,58,null,null,null,null,null,null,58]
[null,null,null,null,null,null,null,null,null,null,null,null,null,53,null,null,null,null,null,null,null,0.33423859960034963,1360,139,53,null,null,null,null,null,null,65]
[null,null,null,null,null,null,null,null,null,null,null,null,null,57,null,null,null,null,null,null,null,5.1616025961047751E-2,1884,487,57,null,null,null,null,null,null,58]
[null,null,null,null,null,null,null,null,null,null,null,null,null,65,null,null,null,null,null,null,null,0.18965944648217947,1645,1609,65,null,null,null,null,null,null,66]
[null,null,null,null,null,null,null,null,null,null,null,null,null,67,null,null,null,null,null,null,null,0.25776408072632462,1506,1791,67,null,null,null,null,null,null,53]
[null,null,null,null,null,null,null,null,null,null,null,null,null,62,null,null,null,null,null,null,null,0.91128113383308262,188,1196,62,null,null,null,null,null,null,53]
[null,null,null,null,null,null,null,null,null,null,null,null,null,55,null,null,null,null,null,null,null,6.5708360048662984E-3,1991,269,55,null,null,null,null,null,null,67]
[null,null,null,null,null,null,null,null,null,null,null,null,null,66,null,null,null,null,null,null,null,0.99811575609996328,4,1710,66,null,null,null,null,null,null,68]
[null,null,null,null,null,null,null,null,null,null,null,null,null,65,null,null,null,null,null,null,null,1.7901928999716543E-2,1965,1609,65,null,null,null,null,null,null,54]
[null,null,null,null,null,null,null,null,null,null,null,null,null,57,null,null,null,null,null,null,null,0.77147173043819461,481,487,57,null,null,null,null,null,null,61]
[null,null,null,null,null,null,null,null,null,null,null,null,null,56,null,null,null,null,null,null,null,0.90853946569137145,195,362,56,null,null,null,null,null,null,64]
[null,null,null,null,null,null,null,null,null,null,null,null,null,64,null,null,null,null,null,null,null,0.24051426796890496,1543,1487,64,null,null,null,null,null,null,49]
[null,null,null,null,null,null,null,null,null,null,null,null,null,62,null,null,null,null,null,null,null,0.73330547175623284,556,1196,62,null,null,null,null,null,null,59]
[null,null,null,null,null,null,null,null,null,null,null,null,null,68,null,null,null,null,null,null,null,0.85340994901728229,295,1857,68,null,null,null,null,null,null,63]
[null,null,null,null,null,null,null,null,null,null,null,null,null,65,null,null,null,null,null,null,null,0.85970263174898198,280,1609,65,null,null,null,null,null,null,54]
[null,null,null,null,null,null,null,null,null,null,null,null,null,58,null,null,null,null,null,null,null,0.73739965409296326,548,615,58,null,null,null,null,null,null,61]
[null,null,null,null,null,null,null,null,null,null,null,null,null,60,null,null,null,null,null,null,null,0.21979203714653617,1583,903,60,null,null,null,null,null,null,59]
[null,null,null,null,null,null,null,null,null,null,null,null,null,53,null,null,null,null,null,null,null,0.57260143967787647,898,139,53,null,null,null,null,null,null,55]
[null,null,null,null,null,null,null,null,null,null,null,null,null,58,null,null,null,null,null,null,null,0.64830292323923688,743,615,58,null,null,null,null,null,null,59]
[null,null,null,null,null,null,null,null,null,null,null,null,null,56,null,null,null,null,null,null,null,0.63806794165272396,770,362,56,null,null,null,null,null,null,51]
[null,null,null,null,null,null,null,null,null,null,null,null,null,67,null,null,null,null,null,null,null,0.58679514660703347,873,1791,67,null,null,null,null,null,null,63]
[null,null,null,null,null,null,null,null,null,null,null,null,null,63,null,null,null,null,null,null,null,0.51326967300806892,1014,1349,63,null,null,null,null,null,null,67]
[null,null,null,null,null,null,null,null,null,null,null,null,null,66,null,null,null,null,null,null,null,0.22928226420117659,1567,1710,66,null,null,null,null,null,null,63]
[null,null,null,null,null,null,null,null,null,null,null,null,null,62,null,null,null,null,null,null,null,3.6829452970790544E-2,1914,1196,62,null,null,null,null,null,null,62]
[null,null,null,null,null,null,null,null,null,null,null,null,null,53,null,null,null,null,null,null,null,0.23455498126381957,1556,139,53,null,null,null,null,null,null,65]
[null,null,null,null,null,null,null,null,null,null,null,null,null,60,null,null,null,null,null,null,null,0.63421022751847289,776,903,60,null,null,null,null,null,null,57]
[null,null,null,null,null,null,null,null,null,null,null,null,null,58,null,null,null,null,null,null,null,0.56459147937551024,917,615,58,null,null,null,null,null,null,57]
[null,null,null,null,null,null,null,null,null,null,null,null,null,56,null,null,null,null,null,null,null,0.80665539538233944,409,362,56,null,null,null,null,null,null,70]
[null,null,null,null,null,null,null,null,null,null,null,null,null,60,null,null,null,null,null,null,null,0.16481192017730362,1687,903,60,null,null,null,null,null,null,72]
[null,null,null,null,null,null,null,null,null,null,null,null,null,62,null,null,null,null,null,null,null,0.97844759232124934,42,1196,62,null,null,null,null,null,null,64]
[null,null,null,null,null,null,null,null,null,null,null,null,null,62,null,null,null,null,null,null,null,0.63489447894653217,775,1196,62,null,null,null,null,null,null,62]
[null,null,null,null,null,null,null,null,null,null,null,null,null,67,null,null,null,null,null,null,null,0.64234480397281979,760,1791,67,null,null,null,null,null,null,61]
[null,null,null,null,null,null,null,null,null,null,null,null,null,47,null,null,null,null,null,null,null,0.99860453173179653,3,4,47,null,null,null,null,null,null,60]
[null,null,null,null,null,null,null,null,null,null,null,null,null,65,null,null,null,null,null,null,null,8.7655141287208971E-2,1823,1609,65,null,null,null,null,null,null,53]
[null,null,null,null,null,null,null,null,null,null,null,null,null,64,null,null,null,null,null,null,null,0.98597771207677143,28,1487,64,null,null,null,null,null,null,45]
[null,null,null,null,null,null,null,null,null,null,null,null,null,54,null,null,null,null,null,null,null,0.10876470276730921,1791,201,54,null,null,null,null,null,null,57]
[null,null,null,null,null,null,null,null,null,null,null,null,null,67,null,null,null,null,null,null,null,0.54917317930853338,938,1791,67,null,null,null,null,null,null,57]
[null,null,null,null,null,null,null,null,null,null,null,null,null,55,null,null,null,null,null,null,null,0.20268747703069612,1622,269,55,null,null,null,null,null,null,64]
[null,null,null,null,null,null,null,null,null,null,null,null,null,57,null,null,null,null,null,null,null,0.25988637269273762,1499,487,57,null,null,null,null,null,null,60]
[null,null,null,null,null,null,null,null,null,null,null,null,null,70,null,null,null,null,null,null,null,0.57733352488249756,890,1946,70,null,null,null,null,null,null,62]
[null,null,null,null,null,null,null,null,null,null,null,null,null,57,null,null,null,null,null,null,null,0.96849444285323982,70,487,57,null,null,null,null,null,null,65]
[null,null,null,null,null,null,null,null,null,null,null,null,null,61,null,null,null,null,null,null,null,0.97837255585558991,43,1058,61,null,null,null,null,null,null,58]
[null,null,null,null,null,null,null,null,null,null,null,null,null,68,null,null,null,null,null,null,null,0.35743297176106847,1320,1857,68,null,null,null,null,null,null,68]
[null,null,null,null,null,null,null,null,null,null,null,null,null,62,null,null,null,null,null,null,null,{"$f":"IF(N578=\"\",\"\",RAND())","v":0.99343822686920802},10,1196,{"$f":"N578","v":62},null,null,null,null,null,null,{"$f":"ROUND(NORMINV(RAND(),mean,stddev),0)","v":50}]
[null,null,null,null,null,null,null,null,null,null,null,null,null,56,null,null,null,null,null,null,null,0.13925499715300171,{"$f":"RANK(V579,$V:$V)","v":1738},{"$f":"RANK(Y579,Y:Y,1)","v":362},56,null,null,null,null,null,null,51]
[null,null,null,null,null,null,null,null,null,null,null,null,null,59,null,null,null,null,null,null,null,0.92338520743500818,160,745,59,null,null,null,null,null,null,53]
[null,null,null,null,null,null,null,null,null,null,null,null,null,59,null,null,null,null,null,null,null,7.2058615613806998E-2,1848,745,59,null,null,null,null,null,null,65]
[null,null,null,null,null,null,null,null,null,null,null,null,null,58,null,null,null,null,null,null,null,0.28516948164841249,1448,615,58,null,null,null,null,null,null,63]
[null,null,null,null,null,null,null,null,null,null,null,null,null,66,null,null,null,null,null,null,null,0.78807047709599232,444,1710,66,null,null,null,null,null,null,61]
[null,null,null,null,null,null,null,null,null,null,null,null,null,55,null,null,null,null,null,null,null,0.23920729033329347,1546,269,55,null,null,null,null,null,null,56]
[null,null,null,null,null,null,null,null,null,null,null,null,null,56,null,null,null,null,null,null,null,2.8600993725742874E-2,1940,362,56,null,null,null,null,null,null,68]
[null,null,null,null,null,null,null,null,null,null,null,null,null,62,null,null,null,null,null,null,null,0.10373232683588973,1798,1196,62,null,null,null,null,null,null,58]
[null,null,null,null,null,null,null,null,null,null,null,null,null,59,null,null,null,null,null,null,null,0.36871433029924228,1294,745,59,null,null,null,null,null,null,69]
[null,null,null,null,null,null,null,null,null,null,null,null,null,62,null,null,null,null,null,null,null,0.45185732965602865,1142,1196,62,null,null,null,null,null,null,63]
[null,null,null,null,null,null,null,null,null,null,null,null,null,70,null,null,null,null,null,null,null,0.34053846988568259,1351,1946,70,null,null,null,null,null,null,64]
[null,null,null,null,null,null,null,null,null,null,null,null,null,53,null,null,null,null,null,null,null,0.94840878371569248,115,139,53,null,null,null,null,null,null,65]
[null,null,null,null,null,null,null,null,null,null,null,null,null,57,null,null,null,null,null,null,null,0.40983205898679453,1216,487,57,null,null,null,null,null,null,57]
[null,null,null,null,null,null,null,null,null,null,null,null,null,64,null,null,null,null,null,null,null,0.86456464360765739,277,1487,64,null,null,null,null,null,null,59]
[null,null,null,null,null,null,null,null,null,null,null,null,null,60,null,null,null,null,null,null,null,6.3183043767308655E-2,1868,903,60,null,null,null,null,null,null,62]
[null,null,null,null,null,null,null,null,null,null,null,null,null,64,null,null,null,null,null,null,null,0.32277181555676737,1379,1487,64,null,null,null,null,null,null,61]
[null,null,null,null,null,null,null,null,null,null,null,null,null,54,null,null,null,null,null,null,null,0.60944985854174027,816,201,54,null,null,null,null,null,null,66]
[null,null,null,null,null,null,null,null,null,null,null,null,null,64,null,null,null,null,null,null,null,0.14262092865197862,1729,1487,64,null,null,null,null,null,null,50]
[null,null,null,null,null,null,null,null,null,null,null,null,null,61,null,null,null,null,null,null,null,0.58688870817195071,872,1058,61,null,null,null,null,null,null,49]
[null,null,null,null,null,null,null,null,null,null,null,null,null,57,null,null,null,null,null,null,null,0.43739052535857648,1168,487,57,null,null,null,null,null,null,56]
[null,null,null,null,null,null,null,null,null,null,null,null,null,58,null,null,null,null,null,null,null,0.1253524906016098,1757,615,58,null,null,null,null,null,null,57]
[null,null,null,null,null,null,null,null,null,null,null,null,null,61,null,null,null,null,null,null,null,0.90835222547371008,196,1058,61,null,null,null,null,null,null,56]
[null,null,null,null,null,null,null,null,null,null,null,null,null,56,null,null,null,null,null,null,null,5.6596534307484903E-2,1876,362,56,null,null,null,null,null,null,57]
[null,null,null,null,null,null,null,null,null,null,null,null,null,53,null,null,null,null,null,null,null,0.39273040888717869,1252,139,53,null,null,null,null,null,null,56]
[null,null,null,null,null,null,null,null,null,null,null,null,null,60,null,null,null,null,null,null,null,0.66608668469751831,702,903,60,null,null,null,null,null,null,53]
[null,null,null,null,null,null,null,null,null,null,null,null,null,63,null,null,null,null,null,null,null,0.17256221456846088,1673,1349,63,null,null,null,null,null,null,65]
[null,null,null,null,null,null,null,null,null,null,null,null,null,59,null,null,null,null,null,null,null,0.665659535030105,704,745,59,null,null,null,null,null,null,59]
[null,null,null,null,null,null,null,null,null,null,null,null,null,54,null,null,null,null,null,null,null,8.0003720303376769E-2,1833,201,54,null,null,null,null,null,null,60]
[null,null,null,null,null,null,null,null,null,null,null,null,null,61,null,null,null,null,null,null,null,0.1768028632423857,1664,1058,61,null,null,null,null,null,null,57]
[null,null,null,null,null,null,null,null,null,null,null,null,null,54,null,null,null,null,null,null,null,0.55238038528726541,932,201,54,null,null,null,null,null,null,62]
[null,null,null,null,null,null,null,null,null,null,null,null,null,68,null,null,null,null,null,null,null,0.72723240334194217,572,1857,68,null,null,null,null,null,null,51]
[null,null,null,null,null,null,null,null,null,null,null,null,null,60,null,null,null,null,null,null,null,0.89989729575810695,206,903,60,null,null,null,null,null,null,67]
[null,null,null,null,null,null,null,null,null,null,null,null,null,57,null,null,null,null,null,null,null,0.66481247855088466,705,487,57,null,null,null,null,null,null,64]
[null,null,null,null,null,null,null,null,null,null,null,null,null,67,null,null,null,null,null,null,null,0.19595896204056029,1639,1791,67,null,null,null,null,null,null,62]
[null,null,null,null,null,null,null,null,null,null,null,null,null,60,null,null,null,null,null,null,null,0.91418195081197295,179,903,60,null,null,null,null,null,null,59]
[null,null,null,null,null,null,null,null,null,null,null,null,null,58,null,null,null,null,null,null,null,0.45134131207321249,1144,615,58,null,null,null,null,null,null,62]
[null,null,null,null,null,null,null,null,null,null,null,null,null,64,null,null,null,null,null,null,null,0.61253706810161446,811,1487,64,null,null,null,null,null,null,57]
[null,null,null,null,null,null,null,null,null,null,null,null,null,57,null,null,null,null,null,null,null,8.7576721456701256E-2,1825,487,57,null,null,null,null,null,null,58]
[null,null,null,null,null,null,null,null,null,null,null,null,null,62,null,null,null,null,null,null,null,0.93541180272927982,141,1196,62,null,null,null,null,null,null,52]
[null,null,null,null,null,null,null,null,null,null,null,null,null,63,null,null,null,null,null,null,null,0.59923139899998645,848,1349,63,null,null,null,null,null,null,63]
[null,null,null,null,null,null,null,null,null,null,null,null,null,66,null,null,null,null,null,null,null,3.1610733687045478E-2,1929,1710,66,null,null,null,null,null,null,65]
[null,null,null,null,null,null,null,null,null,null,null,null,null,58,null,null,null,null,null,null,null,0.28361278627603292,1451,615,58,null,null,null,null,null,null,62]
[null,null,null,null,null,null,null,null,null,null,null,null,null,64,null,null,null,null,null,null,null,0.69830142627678216,632,1487,64,null,null,null,null,null,null,68]
[null,null,null,null,null,null,null,null,null,null,null,null,null,74,null,null,null,null,null,null,null,0.9307139473573377,147,1992,74,null,null,null,null,null,null,61]
[null,null,null,null,null,null,null,null,null,null,null,null,null,56,null,null,null,null,null,null,null,0.79980751654509652,421,362,56,null,null,null,null,null,null,58]
[null,null,null,null,null,null,null,null,null,null,null,null,null,66,null,null,null,null,null,null,null,0.88081167358292789,246,1710,66,null,null,null,null,null,null,51]
[null,null,null,null,null,null,null,null,null,null,null,null,null,62,null,null,null,null,null,null,null,0.42123474218543522,1193,1196,62,null,null,null,null,null,null,62]
[null,null,null,null,null,null,null,null,null,null,null,null,null,59,null,null,null,null,null,null,null,0.41080709250642222,1212,745,59,null,null,null,null,null,null,60]
[null,null,null,null,null,null,null,null,null,null,null,null,null,62,null,null,null,null,null,null,null,0.38773478876159007,1257,1196,62,null,null,null,null,null,null,56]
[null,null,null,null,null,null,null,null,null,null,null,null,null,58,null,null,null,null,null,null,null,0.69540992751725628,638,615,58,null,null,null,null,null,null,64]
[null,null,null,null,null,null,null,null,null,null,null,null,null,58,null,null,null,null,null,null,null,0.74916838047472789,527,615,58,null,null,null,null,null,null,63]
[null,null,null,null,null,null,null,null,null,null,null,null,null,58,null,null,null,null,null,null,null,0.70924336431981783,605,615,58,null,null,null,null,null,null,54]
[null,null,null,null,null,null,null,null,null,null,null,null,null,53,null,null,null,null,null,null,null,0.86960394616084824,269,139,53,null,null,null,null,null,null,55]
[null,null,null,null,null,null,null,null,null,null,null,null,null,65,null,null,null,null,null,null,null,0.47083987649048464,1106,1609,65,null,null,null,null,null,null,65]
[null,null,null,null,null,null,null,null,null,null,null,null,null,67,null,null,null,null,null,null,null,0.93282293634338154,143,1791,67,null,null,null,null,null,null,53]
[null,null,null,null,null,null,null,null,null,null,null,null,null,64,null,null,null,null,null,null,null,0.55692329092792148,923,1487,64,null,null,null,null,null,null,60]
[null,null,null,null,null,null,null,null,null,null,null,null,null,59,null,null,null,null,null,null,null,0.84273891906916232,320,745,59,null,null,null,null,null,null,66]
[null,null,null,null,null,null,null,null,null,null,null,null,null,52,null,null,null,null,null,null,null,0.83533321721662579,337,95,52,null,null,null,null,null,null,65]
[null,null,null,null,null,null,null,null,null,null,null,null,null,59,null,null,null,null,null,null,null,0.77503057495817229,471,745,59,null,null,null,null,null,null,53]
[null,null,null,null,null,null,null,null,null,null,null,null,null,57,null,null,null,null,null,null,null,0.65034463061726688,736,487,57,null,null,null,null,null,null,56]
[null,null,null,null,null,null,null,null,null,null,null,null,null,56,null,null,null,null,null,null,null,0.29453783975336467,1431,362,56,null,null,null,null,null,null,72]
[null,null,null,null,null,null,null,null,null,null,null,null,null,63,null,null,null,null,null,null,null,2.9934360875909838E-2,1938,1349,63,null,null,null,null,null,null,55]
[null,null,null,null,null,null,null,null,null,null,null,null,null,66,null,null,null,null,null,null,null,0.83594339777396964,335,1710,66,null,null,null,null,null,null,56]
[null,null,null,null,null,null,null,null,null,null,null,null,null,50,null,null,null,null,null,null,null,{"$f":"IF(N642=\"\",\"\",RAND())","v":0.11632683623566342},1777,37,{"$f":"N642","v":50},null,null,null,null,null,null,{"$f":"ROUND(NORMINV(RAND(),mean,stddev),0)","v":54}]
[null,null,null,null,null,null,null,null,null,null,null,null,null,53,null,null,null,null,null,null,null,0.98017451528377841,{"$f":"RANK(V643,$V:$V)","v":38},{"$f":"RANK(Y643,Y:Y,1)","v":139},53,null,null,null,null,null,null,64]
[null,null,null,null,null,null,null,null,null,null,null,null,null,62,null,null,null,null,null,null,null,0.85834883027433917,283,1196,62,null,null,null,null,null,null,53]
[null,null,null,null,null,null,null,null,null,null,null,null,null,60,null,null,null,null,null,null,null,0.45411400297741089,1135,903,60,null,null,null,null,null,null,64]
[null,null,null,null,null,null,null,null,null,null,null,null,null,57,null,null,null,null,null,null,null,0.78914855516863369,442,487,57,null,null,null,null,null,null,61]
[null,null,null,null,null,null,null,null,null,null,null,null,null,61,null,null,null,null,null,null,null,0.26272357457711659,1493,1058,61,null,null,null,null,null,null,67]
[null,null,null,null,null,null,null,null,null,null,null,null,null,66,null,null,null,null,null,null,null,0.66807076897239204,698,1710,66,null,null,null,null,null,null,59]
[null,null,null,null,null,null,null,null,null,null,null,null,null,65,null,null,null,null,null,null,null,8.3324094116946079E-2,1829,1609,65,null,null,null,null,null,null,49]
[null,null,null,null,null,null,null,null,null,null,null,null,null,56,null,null,null,null,null,null,null,0.51530708466322817,1011,362,56,null,null,null,null,null,null,65]
[null,null,null,null,null,null,null,null,null,null,null,null,null,58,null,null,null,null,null,null,null,0.67439450361918318,681,615,58,null,null,null,null,null,null,61]
[null,null,null,null,null,null,null,null,null,null,null,null,null,68,null,null,null,null,null,null,null,0.30081310096330616,1421,1857,68,null,null,null,null,null,null,64]
[null,null,null,null,null,null,null,null,null,null,null,null,null,61,null,null,null,null,null,null,null,0.5032653969978339,1035,1058,61,null,null,null,null,null,null,65]
[null,null,null,null,null,null,null,null,null,null,null,null,null,57,null,null,null,null,null,null,null,0.2662994860830098,1485,487,57,null,null,null,null,null,null,64]
[null,null,null,null,null,null,null,null,null,null,null,null,null,55,null,null,null,null,null,null,null,0.3772901033785232,1278,269,55,null,null,null,null,null,null,56]
[null,null,null,null,null,null,null,null,null,null,null,null,null,63,null,null,null,null,null,null,null,0.9834593009954995,32,1349,63,null,null,null,null,null,null,65]
[null,null,null,null,null,null,null,null,null,null,null,null,null,45,null,null,null,null,null,null,null,0.38943767072926538,1256,2,45,null,null,null,null,null,null,60]
[null,null,null,null,null,null,null,null,null,null,null,null,null,67,null,null,null,null,null,null,null,0.3330933504420327,1361,1791,67,null,null,null,null,null,null,60]
[null,null,null,null,null,null,null,null,null,null,null,null,null,53,null,null,null,null,null,null,null,0.20067777142304211,1629,139,53,null,null,null,null,null,null,51]
[null,null,null,null,null,null,null,null,null,null,null,null,null,55,null,null,null,null,null,null,null,0.35004059483061045,1331,269,55,null,null,null,null,null,null,64]
[null,null,null,null,null,null,null,null,null,null,null,null,null,60,null,null,null,null,null,null,null,0.87652644592350837,252,903,60,null,null,null,null,null,null,60]
[null,null,null,null,null,null,null,null,null,null,null,null,null,58,null,null,null,null,null,null,null,0.46644340821126662,1113,615,58,null,null,null,null,null,null,55]
[null,null,null,null,null,null,null,null,null,null,null,null,null,60,null,null,null,null,null,null,null,0.34501642937547816,1345,903,60,null,null,null,null,null,null,63]
[null,null,null,null,null,null,null,null,null,null,null,null,null,65,null,null,null,null,null,null,null,0.54980721683310008,936,1609,65,null,null,null,null,null,null,63]
[null,null,null,null,null,null,null,null,null,null,null,null,null,64,null,null,null,null,null,null,null,0.99036393385987709,18,1487,64,null,null,null,null,null,null,54]
[null,null,null,null,null,null,null,null,null,null,null,null,null,62,null,null,null,null,null,null,null,0.768611460779136,489,1196,62,null,null,null,null,null,null,59]
[null,null,null,null,null,null,null,null,null,null,null,null,null,57,null,null,null,null,null,null,null,0.82474895975095619,365,487,57,null,null,null,null,null,null,54]
[null,null,null,null,null,null,null,null,null,null,null,null,null,62,null,null,null,null,null,null,null,0.48859964570259351,1069,1196,62,null,null,null,null,null,null,53]
[null,null,null,null,null,null,null,null,null,null,null,null,null,54,null,null,null,null,null,null,null,4.7837900996561267E-4,1999,201,54,null,null,null,null,null,null,57]
[null,null,null,null,null,null,null,null,null,null,null,null,null,59,null,null,null,null,null,null,null,0.60539285124381559,832,745,59,null,null,null,null,null,null,61]
[null,null,null,null,null,null,null,null,null,null,null,null,null,64,null,null,null,null,null,null,null,0.41251988783060911,1208,1487,64,null,null,null,null,null,null,59]
[null,null,null,null,null,null,null,null,null,null,null,null,null,60,null,null,null,null,null,null,null,0.9653688444684464,76,903,60,null,null,null,null,null,null,55]
[null,null,null,null,null,null,null,null,null,null,null,null,null,62,null,null,null,null,null,null,null,0.10891572491403378,1790,1196,62,null,null,null,null,null,null,62]
[null,null,null,null,null,null,null,null,null,null,null,null,null,55,null,null,null,null,null,null,null,2.0760518295737884E-2,1955,269,55,null,null,null,null,null,null,62]
[null,null,null,null,null,null,null,null,null,null,null,null,null,55,null,null,null,null,null,null,null,0.60766852902441748,821,269,55,null,null,null,null,null,null,56]
[null,null,null,null,null,null,null,null,null,null,null,null,null,60,null,null,null,null,null,null,null,0.12147408587123631,1765,903,60,null,null,null,null,null,null,69]
[null,null,null,null,null,null,null,null,null,null,null,null,null,53,null,null,null,null,null,null,null,0.61946161712126668,799,139,53,null,null,null,null,null,null,61]
[null,null,null,null,null,null,null,null,null,null,null,null,null,63,null,null,null,null,null,null,null,0.47654097281823993,1098,1349,63,null,null,null,null,null,null,61]
[null,null,null,null,null,null,null,null,null,null,null,null,null,65,null,null,null,null,null,null,null,0.59698520539720368,853,1609,65,null,null,null,null,null,null,60]
[null,null,null,null,null,null,null,null,null,null,null,null,null,60,null,null,null,null,null,null,null,0.14900601941435787,1717,903,60,null,null,null,null,null,null,64]
[null,null,null,null,null,null,null,null,null,null,null,null,null,61,null,null,null,null,null,null,null,0.4055980589468704,1227,1058,61,null,null,null,null,null,null,59]
[null,null,null,null,null,null,null,null,null,null,null,null,null,66,null,null,null,null,null,null,null,0.79932522614776391,422,1710,66,null,null,null,null,null,null,50]
[null,null,null,null,null,null,null,null,null,null,null,null,null,60,null,null,null,null,null,null,null,0.72377540413588226,579,903,60,null,null,null,null,null,null,65]
[null,null,null,null,null,null,null,null,null,null,null,null,null,49,null,null,null,null,null,null,null,0.97115465165305292,62,19,49,null,null,null,null,null,null,65]
[null,null,null,null,null,null,null,null,null,null,null,null,null,67,null,null,null,null,null,null,null,0.45023741655707084,1147,1791,67,null,null,null,null,null,null,59]
[null,null,null,null,null,null,null,null,null,null,null,null,null,53,null,null,null,null,null,null,null,0.20628728514462624,1614,139,53,null,null,null,null,null,null,64]
[null,null,null,null,null,null,null,null,null,null,null,null,null,59,null,null,null,null,null,null,null,0.851002304195979,302,745,59,null,null,null,null,null,null,62]
[null,null,null,null,null,null,null,null,null,null,null,null,null,56,null,null,null,null,null,null,null,0.7088338362791633,606,362,56,null,null,null,null,null,null,58]
[null,null,null,null,null,null,null,null,null,null,null,null,null,60,null,null,null,null,null,null,null,0.85086696096729331,303,903,60,null,null,null,null,null,null,59]
[null,null,null,null,null,null,null,null,null,null,null,null,null,62,null,null,null,null,null,null,null,0.18079013085266937,1657,1196,62,null,null,null,null,null,null,54]
[null,null,null,null,null,null,null,null,null,null,null,null,null,64,null,null,null,null,null,null,null,0.36686190089274218,1297,1487,64,null,null,null,null,null,null,57]
[null,null,null,null,null,null,null,null,null,null,null,null,null,65,null,null,null,null,null,null,null,0.5511005346257607,935,1609,65,null,null,null,null,null,null,69]
[null,null,null,null,null,null,null,null,null,null,null,null,null,47,null,null,null,null,null,null,null,0.70092520251705626,622,4,47,null,null,null,null,null,null,63]
[null,null,null,null,null,null,null,null,null,null,null,null,null,66,null,null,null,null,null,null,null,0.54374194544899968,946,1710,66,null,null,null,null,null,null,59]
[null,null,null,null,null,null,null,null,null,null,null,null,null,50,null,null,null,null,null,null,null,0.4466637449061357,1154,37,50,null,null,null,null,null,null,54]
[null,null,null,null,null,null,null,null,null,null,null,null,null,53,null,null,null,null,null,null,null,0.3243937474705848,1376,139,53,null,null,null,null,null,null,63]
[null,null,null,null,null,null,null,null,null,null,null,null,null,57,null,null,null,null,null,null,null,0.77451853868984932,473,487,57,null,null,null,null,null,null,59]
[null,null,null,null,null,null,null,null,null,null,null,null,null,70,null,null,null,null,null,null,null,0.84096474223162154,321,1946,70,null,null,null,null,null,null,67]
[null,null,null,null,null,null,null,null,null,null,null,null,null,64,null,null,null,null,null,null,null,0.88530575182998927,234,1487,64,null,null,null,null,null,null,57]
[null,null,null,null,null,null,null,null,null,null,null,null,null,65,null,null,null,null,null,null,null,0.2780501441588622,1462,1609,65,null,null,null,null,null,null,60]
[null,null,null,null,null,null,null,null,null,null,null,null,null,61,null,null,null,null,null,null,null,0.40739755565439317,1223,1058,61,null,null,null,null,null,null,57]
[null,null,null,null,null,null,null,null,null,null,null,null,null,67,null,null,null,null,null,null,null,0.81118878026514585,399,1791,67,null,null,null,null,null,null,60]
[null,null,null,null,null,null,null,null,null,null,null,null,null,59,null,null,null,null,null,null,null,0.58181515919439342,883,745,59,null,null,null,null,null,null,60]
[null,null,null,null,null,null,null,null,null,null,null,null,null,60,null,null,null,null,null,null,null,0.85334880708716454,296,903,60,null,null,null,null,null,null,56]
[null,null,null,null,null,null,null,null,null,null,null,null,null,50,null,null,null,null,null,null,null,1.4591390575817154E-2,1976,37,50,null,null,null,null,null,null,62]
[null,null,null,null,null,null,null,null,null,null,null,null,null,55,null,null,null,null,null,null,null,{"$f":"IF(N706=\"\",\"\",RAND())","v":0.97386062904309989},54,269,{"$f":"N706","v":55},null,null,null,null,null,null,{"$f":"ROUND(NORMINV(RAND(),mean,stddev),0)","v":61}]
[null,null,null,null,null,null,null,null,null,null,null,null,null,68,null,null,null,null,null,null,null,0.188721427160497,{"$f":"RANK(V707,$V:$V)","v":1647},{"$f":"RANK(Y707,Y:Y,1)","v":1857},68,null,null,null,null,null,null,66]
[null,null,null,null,null,null,null,null,null,null,null,null,null,65,null,null,null,null,null,null,null,0.37315085427764594,1283,1609,65,null,null,null,null,null,null,64]
[null,null,null,null,null,null,null,null,null,null,null,null,null,58,null,null,null,null,null,null,null,0.88136228157577989,242,615,58,null,null,null,null,null,null,62]
[null,null,null,null,null,null,null,null,null,null,null,null,null,58,null,null,null,null,null,null,null,3.1525423230654437E-2,1930,615,58,null,null,null,null,null,null,54]
[null,null,null,null,null,null,null,null,null,null,null,null,null,62,null,null,null,null,null,null,null,0.32872561179337179,1369,1196,62,null,null,null,null,null,null,58]
[null,null,null,null,null,null,null,null,null,null,null,null,null,63,null,null,null,null,null,null,null,0.28864794693045459,1441,1349,63,null,null,null,null,null,null,59]
[null,null,null,null,null,null,null,null,null,null,null,null,null,53,null,null,null,null,null,null,null,0.47025495460873834,1107,139,53,null,null,null,null,null,null,61]
[null,null,null,null,null,null,null,null,null,null,null,null,null,55,null,null,null,null,null,null,null,0.64490150613924002,752,269,55,null,null,null,null,null,null,53]
[null,null,null,null,null,null,null,null,null,null,null,null,null,61,null,null,null,null,null,null,null,0.55675729004166186,924,1058,61,null,null,null,null,null,null,61]
[null,null,null,null,null,null,null,null,null,null,null,null,null,59,null,null,null,null,null,null,null,0.26406660948499483,1490,745,59,null,null,null,null,null,null,67]
[null,null,null,null,null,null,null,null,null,null,null,null,null,56,null,null,null,null,null,null,null,0.81398519997928431,390,362,56,null,null,null,null,null,null,58]
[null,null,null,null,null,null,null,null,null,null,null,null,null,49,null,null,null,null,null,null,null,9.6706381398706687E-2,1807,19,49,null,null,null,null,null,null,57]
[null,null,null,null,null,null,null,null,null,null,null,null,null,62,null,null,null,null,null,null,null,3.1480418820193035E-2,1931,1196,62,null,null,null,null,null,null,62]
[null,null,null,null,null,null,null,null,null,null,null,null,null,68,null,null,null,null,null,null,null,0.56301253180659794,919,1857,68,null,null,null,null,null,null,62]
[null,null,null,null,null,null,null,null,null,null,null,null,null,61,null,null,null,null,null,null,null,0.22166808934385696,1580,1058,61,null,null,null,null,null,null,61]
[null,null,null,null,null,null,null,null,null,null,null,null,null,56,null,null,null,null,null,null,null,0.45625594400536684,1130,362,56,null,null,null,null,null,null,61]
[null,null,null,null,null,null,null,null,null,null,null,null,null,60,null,null,null,null,null,null,null,0.30720537301531725,1410,903,60,null,null,null,null,null,null,60]
[null,null,null,null,null,null,null,null,null,null,null,null,null,50,null,null,null,null,null,null,null,0.46347225232013323,1117,37,50,null,null,null,null,null,null,51]
[null,null,null,null,null,null,null,null,null,null,null,null,null,62,null,null,null,null,null,null,null,5.6739633986631066E-3,1994,1196,62,null,null,null,null,null,null,59]
[null,null,null,null,null,null,null,null,null,null,null,null,null,54,null,null,null,null,null,null,null,0.91625572521895748,176,201,54,null,null,null,null,null,null,52]
[null,null,null,null,null,null,null,null,null,null,null,null,null,58,null,null,null,null,null,null,null,0.17136094743050889,1677,615,58,null,null,null,null,null,null,64]
[null,null,null,null,null,null,null,null,null,null,null,null,null,57,null,null,null,null,null,null,null,0.41181540272446504,1209,487,57,null,null,null,null,null,null,53]
[null,null,null,null,null,null,null,null,null,null,null,null,null,66,null,null,null,null,null,null,null,0.13968635263566742,1736,1710,66,null,null,null,null,null,null,61]
[null,null,null,null,null,null,null,null,null,null,null,null,null,63,null,null,null,null,null,null,null,0.63028491255180585,785,1349,63,null,null,null,null,null,null,62]
[null,null,null,null,null,null,null,null,null,null,null,null,null,52,null,null,null,null,null,null,null,0.74316355767900111,541,95,52,null,null,null,null,null,null,55]
[null,null,null,null,null,null,null,null,null,null,null,null,null,49,null,null,null,null,null,null,null,0.43262030601129897,1176,19,49,null,null,null,null,null,null,55]
[null,null,null,null,null,null,null,null,null,null,null,null,null,61,null,null,null,null,null,null,null,0.95544126298572485,100,1058,61,null,null,null,null,null,null,62]
[null,null,null,null,null,null,null,null,null,null,null,null,null,56,null,null,null,null,null,null,null,0.42849547809365651,1183,362,56,null,null,null,null,null,null,57]
[null,null,null,null,null,null,null,null,null,null,null,null,null,66,null,null,null,null,null,null,null,0.75574504316190194,512,1710,66,null,null,null,null,null,null,69]
[null,null,null,null,null,null,null,null,null,null,null,null,null,54,null,null,null,null,null,null,null,0.8768271687084882,251,201,54,null,null,null,null,null,null,56]
[null,null,null,null,null,null,null,null,null,null,null,null,null,63,null,null,null,null,null,null,null,0.1620025126075606,1694,1349,63,null,null,null,null,null,null,62]
[null,null,null,null,null,null,null,null,null,null,null,null,null,53,null,null,null,null,null,null,null,9.4125647897499998E-2,1811,139,53,null,null,null,null,null,null,55]
[null,null,null,null,null,null,null,null,null,null,null,null,null,62,null,null,null,null,null,null,null,0.96698671869692843,74,1196,62,null,null,null,null,null,null,68]
[null,null,null,null,null,null,null,null,null,null,null,null,null,58,null,null,null,null,null,null,null,0.20104258800112018,1628,615,58,null,null,null,null,null,null,69]
[null,null,null,null,null,null,null,null,null,null,null,null,null,57,null,null,null,null,null,null,null,0.97350048088378194,56,487,57,null,null,null,null,null,null,65]
[null,null,null,null,null,null,null,null,null,null,null,null,null,49,null,null,null,null,null,null,null,0.75195405433506524,523,19,49,null,null,null,null,null,null,58]
[null,null,null,null,null,null,null,null,null,null,null,null,null,55,null,null,null,null,null,null,null,0.4103738123108488,1213,269,55,null,null,null,null,null,null,62]
[null,null,null,null,null,null,null,null,null,null,null,null,null,58,null,null,null,null,null,null,null,0.42642053611062514,1187,615,58,null,null,null,null,null,null,65]
[null,null,null,null,null,null,null,null,null,null,null,null,null,55,null,null,null,null,null,null,null,0.83901379148507294,327,269,55,null,null,null,null,null,null,61]
[null,null,null,null,null,null,null,null,null,null,null,null,null,61,null,null,null,null,null,null,null,0.60545694495212676,831,1058,61,null,null,null,null,null,null,55]
[null,null,null,null,null,null,null,null,null,null,null,null,null,62,null,null,null,null,null,null,null,0.84037369213844504,322,1196,62,null,null,null,null,null,null,70]
[null,null,null,null,null,null,null,null,null,null,null,null,null,55,null,null,null,null,null,null,null,0.511358727936152,1017,269,55,null,null,null,null,null,null,65]
[null,null,null,null,null,null,null,null,null,null,null,null,null,53,null,null,null,null,null,null,null,0.74034837325793112,545,139,53,null,null,null,null,null,null,65]
[null,null,null,null,null,null,null,null,null,null,null,null,null,61,null,null,null,null,null,null,null,0.78649160365573212,447,1058,61,null,null,null,null,null,null,60]
[null,null,null,null,null,null,null,null,null,null,null,null,null,62,null,null,null,null,null,null,null,0.84005319300288261,323,1196,62,null,null,null,null,null,null,49]
[null,null,null,null,null,null,null,null,null,null,null,null,null,59,null,null,null,null,null,null,null,0.53780645793504833,964,745,59,null,null,null,null,null,null,56]
[null,null,null,null,null,null,null,null,null,null,null,null,null,61,null,null,null,null,null,null,null,0.69919372724904649,629,1058,61,null,null,null,null,null,null,67]
[null,null,null,null,null,null,null,null,null,null,null,null,null,64,null,null,null,null,null,null,null,0.60638470820440249,827,1487,64,null,null,null,null,null,null,63]
[null,null,null,null,null,null,null,null,null,null,null,null,null,60,null,null,null,null,null,null,null,0.57707058689716972,891,903,60,null,null,null,null,null,null,66]
[null,null,null,null,null,null,null,null,null,null,null,null,null,56,null,null,null,null,null,null,null,0.99501307354868551,7,362,56,null,null,null,null,null,null,57]
[null,null,null,null,null,null,null,null,null,null,null,null,null,50,null,null,null,null,null,null,null,0.74455893758607927,539,37,50,null,null,null,null,null,null,63]
[null,null,null,null,null,null,null,null,null,null,null,null,null,60,null,null,null,null,null,null,null,0.86941681636893609,270,903,60,null,null,null,null,null,null,61]
[null,null,null,null,null,null,null,null,null,null,null,null,null,72,null,null,null,null,null,null,null,0.91029905704767788,191,1979,72,null,null,null,null,null,null,57]
[null,null,null,null,null,null,null,null,null,null,null,null,null,62,null,null,null,null,null,null,null,0.24869052652886003,1528,1196,62,null,null,null,null,null,null,54]
[null,null,null,null,null,null,null,null,null,null,null,null,null,66,null,null,null,null,null,null,null,0.63975216377118649,766,1710,66,null,null,null,null,null,null,64]
[null,null,null,null,null,null,null,null,null,null,null,null,null,55,null,null,null,null,null,null,null,0.60023316750229727,843,269,55,null,null,null,null,null,null,56]
[null,null,null,null,null,null,null,null,null,null,null,null,null,52,null,null,null,null,null,null,null,1.5161449964472662E-2,1974,95,52,null,null,null,null,null,null,59]
[null,null,null,null,null,null,null,null,null,null,null,null,null,62,null,null,null,null,null,null,null,0.50999205405993475,1019,1196,62,null,null,null,null,null,null,54]
[null,null,null,null,null,null,null,null,null,null,null,null,null,56,null,null,null,null,null,null,null,0.52471449846050144,989,362,56,null,null,null,null,null,null,58]
[null,null,null,null,null,null,null,null,null,null,null,null,null,59,null,null,null,null,null,null,null,0.28622748745500204,1445,745,59,null,null,null,null,null,null,62]
[null,null,null,null,null,null,null,null,null,null,null,null,null,59,null,null,null,null,null,null,null,0.97943595007717499,39,745,59,null,null,null,null,null,null,62]
[null,null,null,null,null,null,null,null,null,null,null,null,null,68,null,null,null,null,null,null,null,0.69975092082373069,627,1857,68,null,null,null,null,null,null,55]
[null,null,null,null,null,null,null,null,null,null,null,null,null,63,null,null,null,null,null,null,null,0.74810792086278288,529,1349,63,null,null,null,null,null,null,64]
[null,null,null,null,null,null,null,null,null,null,null,null,null,65,null,null,null,null,null,null,null,{"$f":"IF(N770=\"\",\"\",RAND())","v":0.81078129682211941},402,1609,{"$f":"N770","v":65},null,null,null,null,null,null,{"$f":"ROUND(NORMINV(RAND(),mean,stddev),0)","v":64}]
[null,null,null,null,null,null,null,null,null,null,null,null,null,62,null,null,null,null,null,null,null,0.7759139878279161,{"$f":"RANK(V771,$V:$V)","v":470},{"$f":"RANK(Y771,Y:Y,1)","v":1196},62,null,null,null,null,null,null,54]
[null,null,null,null,null,null,null,null,null,null,null,null,null,59,null,null,null,null,null,null,null,0.76881159559083589,488,745,59,null,null,null,null,null,null,66]
[null,null,null,null,null,null,null,null,null,null,null,null,null,67,null,null,null,null,null,null,null,0.68991293704238577,647,1791,67,null,null,null,null,null,null,59]
[null,null,null,null,null,null,null,null,null,null,null,null,null,60,null,null,null,null,null,null,null,0.64141347503813795,762,903,60,null,null,null,null,null,null,50]
[null,null,null,null,null,null,null,null,null,null,null,null,null,57,null,null,null,null,null,null,null,0.87092735084464834,267,487,57,null,null,null,null,null,null,52]
[null,null,null,null,null,null,null,null,null,null,null,null,null,54,null,null,null,null,null,null,null,0.31038338461782822,1404,201,54,null,null,null,null,null,null,54]
[null,null,null,null,null,null,null,null,null,null,null,null,null,73,null,null,null,null,null,null,null,0.19072540732633514,1644,1989,73,null,null,null,null,null,null,67]
[null,null,null,null,null,null,null,null,null,null,null,null,null,51,null,null,null,null,null,null,null,0.29153244823519198,1433,63,51,null,null,null,null,null,null,61]
[null,null,null,null,null,null,null,null,null,null,null,null,null,64,null,null,null,null,null,null,null,0.55757775425894007,921,1487,64,null,null,null,null,null,null,65]
[null,null,null,null,null,null,null,null,null,null,null,null,null,60,null,null,null,null,null,null,null,0.82418447195203393,369,903,60,null,null,null,null,null,null,67]
[null,null,null,null,null,null,null,null,null,null,null,null,null,55,null,null,null,null,null,null,null,0.65829869569519617,719,269,55,null,null,null,null,null,null,53]
[null,null,null,null,null,null,null,null,null,null,null,null,null,65,null,null,null,null,null,null,null,0.47707065073037713,1096,1609,65,null,null,null,null,null,null,64]
[null,null,null,null,null,null,null,null,null,null,null,null,null,58,null,null,null,null,null,null,null,0.85518312151247722,290,615,58,null,null,null,null,null,null,63]
[null,null,null,null,null,null,null,null,null,null,null,null,null,66,null,null,null,null,null,null,null,0.89152137749803029,221,1710,66,null,null,null,null,null,null,61]
[null,null,null,null,null,null,null,null,null,null,null,null,null,68,null,null,null,null,null,null,null,0.28545364748141544,1446,1857,68,null,null,null,null,null,null,56]
[null,null,null,null,null,null,null,null,null,null,null,null,null,57,null,null,null,null,null,null,null,0.49414291592547432,1059,487,57,null,null,null,null,null,null,59]
[null,null,null,null,null,null,null,null,null,null,null,null,null,53,null,null,null,null,null,null,null,0.75958435519802137,508,139,53,null,null,null,null,null,null,68]
[null,null,null,null,null,null,null,null,null,null,null,null,null,59,null,null,null,null,null,null,null,0.23869082450872436,1549,745,59,null,null,null,null,null,null,54]
[null,null,null,null,null,null,null,null,null,null,null,null,null,49,null,null,null,null,null,null,null,0.63255717738444173,779,19,49,null,null,null,null,null,null,59]
[null,null,null,null,null,null,null,null,null,null,null,null,null,61,null,null,null,null,null,null,null,1.6252512988219281E-2,1971,1058,61,null,null,null,null,null,null,53]
[null,null,null,null,null,null,null,null,null,null,null,null,null,52,null,null,null,null,null,null,null,0.63936401348058414,768,95,52,null,null,null,null,null,null,66]
[null,null,null,null,null,null,null,null,null,null,null,null,null,63,null,null,null,null,null,null,null,0.93947991943665154,132,1349,63,null,null,null,null,null,null,64]
[null,null,null,null,null,null,null,null,null,null,null,null,null,58,null,null,null,null,null,null,null,0.78486547211215396,451,615,58,null,null,null,null,null,null,69]
[null,null,null,null,null,null,null,null,null,null,null,null,null,57,null,null,null,null,null,null,null,0.32589178878073388,1374,487,57,null,null,null,null,null,null,61]
[null,null,null,null,null,null,null,null,null,null,null,null,null,58,null,null,null,null,null,null,null,0.11783094256574767,1774,615,58,null,null,null,null,null,null,68]
[null,null,null,null,null,null,null,null,null,null,null,null,null,68,null,null,null,null,null,null,null,0.53980097736923371,960,1857,68,null,null,null,null,null,null,63]
[null,null,null,null,null,null,null,null,null,null,null,null,null,69,null,null,null,null,null,null,null,0.8172660212579802,383,1909,69,null,null,null,null,null,null,62]
[null,null,null,null,null,null,null,null,null,null,null,null,null,68,null,null,null,null,null,null,null,0.54489320672236086,944,1857,68,null,null,null,null,null,null,61]
[null,null,null,null,null,null,null,null,null,null,null,null,null,59,null,null,null,null,null,null,null,0.82483108542658035,364,745,59,null,null,null,null,null,null,59]
[null,null,null,null,null,null,null,null,null,null,null,null,null,54,null,null,null,null,null,null,null,0.57087055911083839,904,201,54,null,null,null,null,null,null,65]
[null,null,null,null,null,null,null,null,null,null,null,null,null,60,null,null,null,null,null,null,null,0.38444444035384839,1266,903,60,null,null,null,null,null,null,62]
[null,null,null,null,null,null,null,null,null,null,null,null,null,61,null,null,null,null,null,null,null,0.83211452869755809,346,1058,61,null,null,null,null,null,null,58]
[null,null,null,null,null,null,null,null,null,null,null,null,null,64,null,null,null,null,null,null,null,0.78261424342845221,454,1487,64,null,null,null,null,null,null,60]
[null,null,null,null,null,null,null,null,null,null,null,null,null,55,null,null,null,null,null,null,null,5.7857189683922394E-2,1873,269,55,null,null,null,null,null,null,59]
[null,null,null,null,null,null,null,null,null,null,null,null,null,62,null,null,null,null,null,null,null,0.16371976742292016,1689,1196,62,null,null,null,null,null,null,61]
[null,null,null,null,null,null,null,null,null,null,null,null,null,62,null,null,null,null,null,null,null,0.60152631390095956,841,1196,62,null,null,null,null,null,null,59]
[null,null,null,null,null,null,null,null,null,null,null,null,null,60,null,null,null,null,null,null,null,0.90102312511450544,202,903,60,null,null,null,null,null,null,66]
[null,null,null,null,null,null,null,null,null,null,null,null,null,61,null,null,null,null,null,null,null,0.88106301595367442,244,1058,61,null,null,null,null,null,null,61]
[null,null,null,null,null,null,null,null,null,null,null,null,null,59,null,null,null,null,null,null,null,0.75132840816963065,526,745,59,null,null,null,null,null,null,53]
[null,null,null,null,null,null,null,null,null,null,null,null,null,70,null,null,null,null,null,null,null,0.31955995717721108,1386,1946,70,null,null,null,null,null,null,54]
[null,null,null,null,null,null,null,null,null,null,null,null,null,65,null,null,null,null,null,null,null,6.7399894392618842E-2,1858,1609,65,null,null,null,null,null,null,54]
[null,null,null,null,null,null,null,null,null,null,null,null,null,60,null,null,null,null,null,null,null,0.65494382903310544,730,903,60,null,null,null,null,null,null,59]
[null,null,null,null,null,null,null,null,null,null,null,null,null,69,null,null,null,null,null,null,null,0.82839398154062416,355,1909,69,null,null,null,null,null,null,62]
[null,null,null,null,null,null,null,null,null,null,null,null,null,63,null,null,null,null,null,null,null,0.36755868180276674,1296,1349,63,null,null,null,null,null,null,61]
[null,null,null,null,null,null,null,null,null,null,null,null,null,54,null,null,null,null,null,null,null,0.53481585587763525,970,201,54,null,null,null,null,null,null,58]
[null,null,null,null,null,null,null,null,null,null,null,null,null,58,null,null,null,null,null,null,null,0.13537467697572925,1743,615,58,null,null,null,null,null,null,60]
[null,null,null,null,null,null,null,null,null,null,null,null,null,69,null,null,null,null,null,null,null,0.70449022432679509,616,1909,69,null,null,null,null,null,null,60]
[null,null,null,null,null,null,null,null,null,null,null,null,null,60,null,null,null,null,null,null,null,0.117753060943665,1775,903,60,null,null,null,null,null,null,51]
[null,null,null,null,null,null,null,null,null,null,null,null,null,64,null,null,null,null,null,null,null,0.81078600194055128,401,1487,64,null,null,null,null,null,null,57]
[null,null,null,null,null,null,null,null,null,null,null,null,null,65,null,null,null,null,null,null,null,0.83323615750657842,342,1609,65,null,null,null,null,null,null,58]
[null,null,null,null,null,null,null,null,null,null,null,null,null,60,null,null,null,null,null,null,null,0.90078542234594949,203,903,60,null,null,null,null,null,null,65]
[null,null,null,null,null,null,null,null,null,null,null,null,null,68,null,null,null,null,null,null,null,0.21040254190133878,1606,1857,68,null,null,null,null,null,null,62]
[null,null,null,null,null,null,null,null,null,null,null,null,null,64,null,null,null,null,null,null,null,0.66329441019992463,711,1487,64,null,null,null,null,null,null,51]
[null,null,null,null,null,null,null,null,null,null,null,null,null,61,null,null,null,null,null,null,null,0.74305275267856385,542,1058,61,null,null,null,null,null,null,61]
[null,null,null,null,null,null,null,null,null,null,null,null,null,60,null,null,null,null,null,null,null,0.61216699597101332,812,903,60,null,null,null,null,null,null,58]
[null,null,null,null,null,null,null,null,null,null,null,null,null,60,null,null,null,null,null,null,null,0.49625887373280897,1052,903,60,null,null,null,null,null,null,53]
[null,null,null,null,null,null,null,null,null,null,null,null,null,60,null,null,null,null,null,null,null,0.9549114524349176,103,903,60,null,null,null,null,null,null,58]
[null,null,null,null,null,null,null,null,null,null,null,null,null,55,null,null,null,null,null,null,null,0.3969392167938578,1244,269,55,null,null,null,null,null,null,46]
[null,null,null,null,null,null,null,null,null,null,null,null,null,62,null,null,null,null,null,null,null,0.57314287859558355,895,1196,62,null,null,null,null,null,null,51]
[null,null,null,null,null,null,null,null,null,null,null,null,null,70,null,null,null,null,null,null,null,0.66148104396700314,714,1946,70,null,null,null,null,null,null,51]
[null,null,null,null,null,null,null,null,null,null,null,null,null,62,null,null,null,null,null,null,null,0.70069576305269632,624,1196,62,null,null,null,null,null,null,61]
[null,null,null,null,null,null,null,null,null,null,null,null,null,58,null,null,null,null,null,null,null,0.54188034477272973,952,615,58,null,null,null,null,null,null,62]
[null,null,null,null,null,null,null,null,null,null,null,null,null,55,null,null,null,null,null,null,null,0.12477382863146569,1759,269,55,null,null,null,null,null,null,64]
[null,null,null,null,null,null,null,null,null,null,null,null,null,59,null,null,null,null,null,null,null,{"$f":"IF(N834=\"\",\"\",RAND())","v":4.3162552164590862E-2},1900,745,{"$f":"N834","v":59},null,null,null,null,null,null,{"$f":"ROUND(NORMINV(RAND(),mean,stddev),0)","v":64}]
[null,null,null,null,null,null,null,null,null,null,null,null,null,62,null,null,null,null,null,null,null,0.84864889037531666,{"$f":"RANK(V835,$V:$V)","v":306},{"$f":"RANK(Y835,Y:Y,1)","v":1196},62,null,null,null,null,null,null,59]
[null,null,null,null,null,null,null,null,null,null,null,null,null,61,null,null,null,null,null,null,null,0.24778852885100633,1529,1058,61,null,null,null,null,null,null,59]
[null,null,null,null,null,null,null,null,null,null,null,null,null,66,null,null,null,null,null,null,null,0.75206566317073453,521,1710,66,null,null,null,null,null,null,56]
[null,null,null,null,null,null,null,null,null,null,null,null,null,59,null,null,null,null,null,null,null,0.58403395542651371,878,745,59,null,null,null,null,null,null,52]
[null,null,null,null,null,null,null,null,null,null,null,null,null,70,null,null,null,null,null,null,null,0.96389490447896364,80,1946,70,null,null,null,null,null,null,59]
[null,null,null,null,null,null,null,null,null,null,null,null,null,55,null,null,null,null,null,null,null,0.36144394760494525,1312,269,55,null,null,null,null,null,null,64]
[null,null,null,null,null,null,null,null,null,null,null,null,null,52,null,null,null,null,null,null,null,7.455943697608447E-2,1846,95,52,null,null,null,null,null,null,61]
[null,null,null,null,null,null,null,null,null,null,null,null,null,64,null,null,null,null,null,null,null,0.84580882539055924,316,1487,64,null,null,null,null,null,null,64]
[null,null,null,null,null,null,null,null,null,null,null,null,null,60,null,null,null,null,null,null,null,0.30724131375826491,1409,903,60,null,null,null,null,null,null,59]
[null,null,null,null,null,null,null,null,null,null,null,null,null,65,null,null,null,null,null,null,null,0.3854406320056013,1263,1609,65,null,null,null,null,null,null,62]
[null,null,null,null,null,null,null,null,null,null,null,null,null,62,null,null,null,null,null,null,null,0.68656449291993793,653,1196,62,null,null,null,null,null,null,52]
[null,null,null,null,null,null,null,null,null,null,null,null,null,59,null,null,null,null,null,null,null,0.51762794354407071,1007,745,59,null,null,null,null,null,null,70]
[null,null,null,null,null,null,null,null,null,null,null,null,null,63,null,null,null,null,null,null,null,0.96341984730190244,82,1349,63,null,null,null,null,null,null,60]
[null,null,null,null,null,null,null,null,null,null,null,null,null,66,null,null,null,null,null,null,null,0.31250412667532745,1399,1710,66,null,null,null,null,null,null,59]
[null,null,null,null,null,null,null,null,null,null,null,null,null,64,null,null,null,null,null,null,null,0.74682747618313927,533,1487,64,null,null,null,null,null,null,57]
[null,null,null,null,null,null,null,null,null,null,null,null,null,57,null,null,null,null,null,null,null,0.8451511899925549,318,487,57,null,null,null,null,null,null,62]
[null,null,null,null,null,null,null,null,null,null,null,null,null,65,null,null,null,null,null,null,null,0.1398602204391306,1735,1609,65,null,null,null,null,null,null,56]
[null,null,null,null,null,null,null,null,null,null,null,null,null,64,null,null,null,null,null,null,null,6.7612436759726391E-3,1988,1487,64,null,null,null,null,null,null,64]
[null,null,null,null,null,null,null,null,null,null,null,null,null,50,null,null,null,null,null,null,null,0.36418625338108113,1304,37,50,null,null,null,null,null,null,56]
[null,null,null,null,null,null,null,null,null,null,null,null,null,63,null,null,null,null,null,null,null,0.12916094144410684,1753,1349,63,null,null,null,null,null,null,54]
[null,null,null,null,null,null,null,null,null,null,null,null,null,60,null,null,null,null,null,null,null,0.39159150106345075,1254,903,60,null,null,null,null,null,null,59]
[null,null,null,null,null,null,null,null,null,null,null,null,null,65,null,null,null,null,null,null,null,0.22710453714643764,1571,1609,65,null,null,null,null,null,null,54]
[null,null,null,null,null,null,null,null,null,null,null,null,null,64,null,null,null,null,null,null,null,0.26262564449856773,1494,1487,64,null,null,null,null,null,null,57]
[null,null,null,null,null,null,null,null,null,null,null,null,null,50,null,null,null,null,null,null,null,0.91011191390384649,192,37,50,null,null,null,null,null,null,62]
[null,null,null,null,null,null,null,null,null,null,null,null,null,56,null,null,null,null,null,null,null,0.27239643238717814,1474,362,56,null,null,null,null,null,null,63]
[null,null,null,null,null,null,null,null,null,null,null,null,null,67,null,null,null,null,null,null,null,0.95947506288908513,90,1791,67,null,null,null,null,null,null,63]
[null,null,null,null,null,null,null,null,null,null,null,null,null,57,null,null,null,null,null,null,null,0.73119740368915132,562,487,57,null,null,null,null,null,null,57]
[null,null,null,null,null,null,null,null,null,null,null,null,null,49,null,null,null,null,null,null,null,0.70373718238590011,617,19,49,null,null,null,null,null,null,62]
[null,null,null,null,null,null,null,null,null,null,null,null,null,60,null,null,null,null,null,null,null,0.34691931994791148,1338,903,60,null,null,null,null,null,null,63]
[null,null,null,null,null,null,null,null,null,null,null,null,null,60,null,null,null,null,null,null,null,0.61164135370065165,813,903,60,null,null,null,null,null,null,66]
[null,null,null,null,null,null,null,null,null,null,null,null,null,56,null,null,null,null,null,null,null,0.88472438829177502,235,362,56,null,null,null,null,null,null,54]
[null,null,null,null,null,null,null,null,null,null,null,null,null,69,null,null,null,null,null,null,null,0.50714377642382047,1026,1909,69,null,null,null,null,null,null,62]
[null,null,null,null,null,null,null,null,null,null,null,null,null,60,null,null,null,null,null,null,null,0.1491519544580816,1716,903,60,null,null,null,null,null,null,51]
[null,null,null,null,null,null,null,null,null,null,null,null,null,56,null,null,null,null,null,null,null,0.89945362258653949,210,362,56,null,null,null,null,null,null,56]
[null,null,null,null,null,null,null,null,null,null,null,null,null,61,null,null,null,null,null,null,null,0.52020835638565466,999,1058,61,null,null,null,null,null,null,61]
[null,null,null,null,null,null,null,null,null,null,null,null,null,74,null,null,null,null,null,null,null,0.98613541721104092,26,1992,74,null,null,null,null,null,null,61]
[null,null,null,null,null,null,null,null,null,null,null,null,null,60,null,null,null,null,null,null,null,0.41140149283097716,1210,903,60,null,null,null,null,null,null,63]
[null,null,null,null,null,null,null,null,null,null,null,null,null,60,null,null,null,null,null,null,null,6.6410530833196701E-2,1860,903,60,null,null,null,null,null,null,58]
[null,null,null,null,null,null,null,null,null,null,null,null,null,54,null,null,null,null,null,null,null,0.64442253015257456,754,201,54,null,null,null,null,null,null,57]
[null,null,null,null,null,null,null,null,null,null,null,null,null,51,null,null,null,null,null,null,null,0.80691348886599124,407,63,51,null,null,null,null,null,null,66]
[null,null,null,null,null,null,null,null,null,null,null,null,null,52,null,null,null,null,null,null,null,0.60742616244192738,822,95,52,null,null,null,null,null,null,53]
[null,null,null,null,null,null,null,null,null,null,null,null,null,56,null,null,null,null,null,null,null,0.54326127598611906,948,362,56,null,null,null,null,null,null,57]
[null,null,null,null,null,null,null,null,null,null,null,null,null,64,null,null,null,null,null,null,null,0.97677717934209929,48,1487,64,null,null,null,null,null,null,59]
[null,null,null,null,null,null,null,null,null,null,null,null,null,60,null,null,null,null,null,null,null,0.87401599136339092,257,903,60,null,null,null,null,null,null,53]
[null,null,null,null,null,null,null,null,null,null,null,null,null,64,null,null,null,null,null,null,null,0.52629293332810323,987,1487,64,null,null,null,null,null,null,53]
[null,null,null,null,null,null,null,null,null,null,null,null,null,64,null,null,null,null,null,null,null,0.28535740781106678,1447,1487,64,null,null,null,null,null,null,64]
[null,null,null,null,null,null,null,null,null,null,null,null,null,61,null,null,null,null,null,null,null,0.82370291776508131,370,1058,61,null,null,null,null,null,null,52]
[null,null,null,null,null,null,null,null,null,null,null,null,null,54,null,null,null,null,null,null,null,0.4856737149480238,1078,201,54,null,null,null,null,null,null,68]
[null,null,null,null,null,null,null,null,null,null,null,null,null,62,null,null,null,null,null,null,null,0.34623393213223297,1340,1196,62,null,null,null,null,null,null,54]
[null,null,null,null,null,null,null,null,null,null,null,null,null,57,null,null,null,null,null,null,null,0.6370436232001937,773,487,57,null,null,null,null,null,null,54]
[null,null,null,null,null,null,null,null,null,null,null,null,null,67,null,null,null,null,null,null,null,7.5426653046215542E-2,1842,1791,67,null,null,null,null,null,null,66]
[null,null,null,null,null,null,null,null,null,null,null,null,null,60,null,null,null,null,null,null,null,0.76734720123052258,493,903,60,null,null,null,null,null,null,59]
[null,null,null,null,null,null,null,null,null,null,null,null,null,63,null,null,null,null,null,null,null,0.52971602991166156,974,1349,63,null,null,null,null,null,null,65]
[null,null,null,null,null,null,null,null,null,null,null,null,null,54,null,null,null,null,null,null,null,0.19978276511102244,1631,201,54,null,null,null,null,null,null,61]
[null,null,null,null,null,null,null,null,null,null,null,null,null,54,null,null,null,null,null,null,null,0.15524208609362167,1707,201,54,null,null,null,null,null,null,67]
[null,null,null,null,null,null,null,null,null,null,null,null,null,60,null,null,null,null,null,null,null,0.72869275839956793,569,903,60,null,null,null,null,null,null,57]
[null,null,null,null,null,null,null,null,null,null,null,null,null,56,null,null,null,null,null,null,null,0.53546699867059555,967,362,56,null,null,null,null,null,null,54]
[null,null,null,null,null,null,null,null,null,null,null,null,null,58,null,null,null,null,null,null,null,0.22511838289749742,1574,615,58,null,null,null,null,null,null,46]
[null,null,null,null,null,null,null,null,null,null,null,null,null,54,null,null,null,null,null,null,null,0.8496470906410698,305,201,54,null,null,null,null,null,null,59]
[null,null,null,null,null,null,null,null,null,null,null,null,null,57,null,null,null,null,null,null,null,0.25079810558398663,1523,487,57,null,null,null,null,null,null,58]
[null,null,null,null,null,null,null,null,null,null,null,null,null,62,null,null,null,null,null,null,null,0.26568333082506046,1486,1196,62,null,null,null,null,null,null,55]
[null,null,null,null,null,null,null,null,null,null,null,null,null,68,null,null,null,null,null,null,null,0.72891982041714132,566,1857,68,null,null,null,null,null,null,59]
[null,null,null,null,null,null,null,null,null,null,null,null,null,58,null,null,null,null,null,null,null,0.24432912355555503,1536,615,58,null,null,null,null,null,null,63]
[null,null,null,null,null,null,null,null,null,null,null,null,null,58,null,null,null,null,null,null,null,{"$f":"IF(N898=\"\",\"\",RAND())","v":0.88652885739177911},232,615,{"$f":"N898","v":58},null,null,null,null,null,null,{"$f":"ROUND(NORMINV(RAND(),mean,stddev),0)","v":56}]
[null,null,null,null,null,null,null,null,null,null,null,null,null,64,null,null,null,null,null,null,null,0.84841921341616167,{"$f":"RANK(V899,$V:$V)","v":307},{"$f":"RANK(Y899,Y:Y,1)","v":1487},64,null,null,null,null,null,null,60]
[null,null,null,null,null,null,null,null,null,null,null,null,null,56,null,null,null,null,null,null,null,0.48362768843267301,1081,362,56,null,null,null,null,null,null,55]
[null,null,null,null,null,null,null,null,null,null,null,null,null,63,null,null,null,null,null,null,null,2.646271420498203E-2,1943,1349,63,null,null,null,null,null,null,61]
[null,null,null,null,null,null,null,null,null,null,null,null,null,62,null,null,null,null,null,null,null,0.76359250300838366,497,1196,62,null,null,null,null,null,null,60]
[null,null,null,null,null,null,null,null,null,null,null,null,null,65,null,null,null,null,null,null,null,0.91083419871220517,190,1609,65,null,null,null,null,null,null,65]
[null,null,null,null,null,null,null,null,null,null,null,null,null,61,null,null,null,null,null,null,null,0.41929686887546025,1198,1058,61,null,null,null,null,null,null,60]
[null,null,null,null,null,null,null,null,null,null,null,null,null,66,null,null,null,null,null,null,null,2.1805470388369441E-2,1951,1710,66,null,null,null,null,null,null,64]
[null,null,null,null,null,null,null,null,null,null,null,null,null,63,null,null,null,null,null,null,null,0.70780541662241814,610,1349,63,null,null,null,null,null,null,60]
[null,null,null,null,null,null,null,null,null,null,null,null,null,61,null,null,null,null,null,null,null,0.37995015671236587,1273,1058,61,null,null,null,null,null,null,61]
[null,null,null,null,null,null,null,null,null,null,null,null,null,51,null,null,null,null,null,null,null,0.1214127023688033,1766,63,51,null,null,null,null,null,null,55]
[null,null,null,null,null,null,null,null,null,null,null,null,null,63,null,null,null,null,null,null,null,0.9220936721910109,164,1349,63,null,null,null,null,null,null,58]
[null,null,null,null,null,null,null,null,null,null,null,null,null,59,null,null,null,null,null,null,null,0.83002047904399656,351,745,59,null,null,null,null,null,null,58]
[null,null,null,null,null,null,null,null,null,null,null,null,null,65,null,null,null,null,null,null,null,0.78299404214711954,453,1609,65,null,null,null,null,null,null,58]
[null,null,null,null,null,null,null,null,null,null,null,null,null,64,null,null,null,null,null,null,null,0.45347114855458948,1138,1487,64,null,null,null,null,null,null,63]
[null,null,null,null,null,null,null,null,null,null,null,null,null,67,null,null,null,null,null,null,null,0.92410442445850283,158,1791,67,null,null,null,null,null,null,57]
[null,null,null,null,null,null,null,null,null,null,null,null,null,63,null,null,null,null,null,null,null,0.5873834550663789,870,1349,63,null,null,null,null,null,null,57]
[null,null,null,null,null,null,null,null,null,null,null,null,null,66,null,null,null,null,null,null,null,0.80786573914686188,406,1710,66,null,null,null,null,null,null,62]
[null,null,null,null,null,null,null,null,null,null,null,null,null,67,null,null,null,null,null,null,null,0.6777191930851959,675,1791,67,null,null,null,null,null,null,52]
[null,null,null,null,null,null,null,null,null,null,null,null,null,64,null,null,null,null,null,null,null,0.51500818467740428,1012,1487,64,null,null,null,null,null,null,64]
[null,null,null,null,null,null,null,null,null,null,null,null,null,53,null,null,null,null,null,null,null,0.77841891239505523,461,139,53,null,null,null,null,null,null,60]
[null,null,null,null,null,null,null,null,null,null,null,null,null,65,null,null,null,null,null,null,null,0.60622600745767929,828,1609,65,null,null,null,null,null,null,59]
[null,null,null,null,null,null,null,null,null,null,null,null,null,54,null,null,null,null,null,null,null,0.61608825603770045,807,201,54,null,null,null,null,null,null,59]
[null,null,null,null,null,null,null,null,null,null,null,null,null,49,null,null,null,null,null,null,null,0.32914411882101613,1368,19,49,null,null,null,null,null,null,59]
[null,null,null,null,null,null,null,null,null,null,null,null,null,56,null,null,null,null,null,null,null,0.36508411449696321,1300,362,56,null,null,null,null,null,null,56]
[null,null,null,null,null,null,null,null,null,null,null,null,null,64,null,null,null,null,null,null,null,0.28322537975812423,1452,1487,64,null,null,null,null,null,null,63]
[null,null,null,null,null,null,null,null,null,null,null,null,null,61,null,null,null,null,null,null,null,0.53890244178851554,963,1058,61,null,null,null,null,null,null,63]
[null,null,null,null,null,null,null,null,null,null,null,null,null,56,null,null,null,null,null,null,null,0.24423590013946572,1537,362,56,null,null,null,null,null,null,60]
[null,null,null,null,null,null,null,null,null,null,null,null,null,54,null,null,null,null,null,null,null,0.48757528971780772,1075,201,54,null,null,null,null,null,null,59]
[null,null,null,null,null,null,null,null,null,null,null,null,null,63,null,null,null,null,null,null,null,6.5257888473848613E-3,1992,1349,63,null,null,null,null,null,null,67]
[null,null,null,null,null,null,null,null,null,null,null,null,null,69,null,null,null,null,null,null,null,0.91126314610234471,189,1909,69,null,null,null,null,null,null,60]
[null,null,null,null,null,null,null,null,null,null,null,null,null,55,null,null,null,null,null,null,null,8.7928778130030971E-2,1822,269,55,null,null,null,null,null,null,57]
[null,null,null,null,null,null,null,null,null,null,null,null,null,66,null,null,null,null,null,null,null,0.5999458414553609,845,1710,66,null,null,null,null,null,null,60]
[null,null,null,null,null,null,null,null,null,null,null,null,null,67,null,null,null,null,null,null,null,0.72593591189187201,574,1791,67,null,null,null,null,null,null,61]
[null,null,null,null,null,null,null,null,null,null,null,null,null,61,null,null,null,null,null,null,null,0.82320571253631014,371,1058,61,null,null,null,null,null,null,62]
[null,null,null,null,null,null,null,null,null,null,null,null,null,62,null,null,null,null,null,null,null,0.48778565102020466,1072,1196,62,null,null,null,null,null,null,50]
[null,null,null,null,null,null,null,null,null,null,null,null,null,56,null,null,null,null,null,null,null,0.62135775213421451,796,362,56,null,null,null,null,null,null,58]
[null,null,null,null,null,null,null,null,null,null,null,null,null,54,null,null,null,null,null,null,null,0.59673227831454245,854,201,54,null,null,null,null,null,null,70]
[null,null,null,null,null,null,null,null,null,null,null,null,null,49,null,null,null,null,null,null,null,0.75202064848480044,522,19,49,null,null,null,null,null,null,57]
[null,null,null,null,null,null,null,null,null,null,null,null,null,65,null,null,null,null,null,null,null,0.64650362472800915,747,1609,65,null,null,null,null,null,null,61]
[null,null,null,null,null,null,null,null,null,null,null,null,null,61,null,null,null,null,null,null,null,0.8325994716395404,344,1058,61,null,null,null,null,null,null,52]
[null,null,null,null,null,null,null,null,null,null,null,null,null,64,null,null,null,null,null,null,null,0.36105833136402921,1313,1487,64,null,null,null,null,null,null,55]
[null,null,null,null,null,null,null,null,null,null,null,null,null,61,null,null,null,null,null,null,null,0.90972507301448835,194,1058,61,null,null,null,null,null,null,57]
[null,null,null,null,null,null,null,null,null,null,null,null,null,61,null,null,null,null,null,null,null,0.38742155356091645,1258,1058,61,null,null,null,null,null,null,62]
[null,null,null,null,null,null,null,null,null,null,null,null,null,60,null,null,null,null,null,null,null,0.69965744198818247,628,903,60,null,null,null,null,null,null,53]
[null,null,null,null,null,null,null,null,null,null,null,null,null,56,null,null,null,null,null,null,null,9.323220884791783E-2,1814,362,56,null,null,null,null,null,null,58]
[null,null,null,null,null,null,null,null,null,null,null,null,null,62,null,null,null,null,null,null,null,0.2200033061510519,1582,1196,62,null,null,null,null,null,null,61]
[null,null,null,null,null,null,null,null,null,null,null,null,null,64,null,null,null,null,null,null,null,0.76267700531498261,499,1487,64,null,null,null,null,null,null,63]
[null,null,null,null,null,null,null,null,null,null,null,null,null,56,null,null,null,null,null,null,null,0.43487119113797135,1172,362,56,null,null,null,null,null,null,59]
[null,null,null,null,null,null,null,null,null,null,null,null,null,63,null,null,null,null,null,null,null,0.2990805826612668,1423,1349,63,null,null,null,null,null,null,57]
[null,null,null,null,null,null,null,null,null,null,null,null,null,63,null,null,null,null,null,null,null,0.38645673759304877,1260,1349,63,null,null,null,null,null,null,65]
[null,null,null,null,null,null,null,null,null,null,null,null,null,58,null,null,null,null,null,null,null,0.22429905631441749,1575,615,58,null,null,null,null,null,null,68]
[null,null,null,null,null,null,null,null,null,null,null,null,null,54,null,null,null,null,null,null,null,0.91806927785854897,171,201,54,null,null,null,null,null,null,59]
[null,null,null,null,null,null,null,null,null,null,null,null,null,63,null,null,null,null,null,null,null,6.25699758362952E-3,1993,1349,63,null,null,null,null,null,null,65]
[null,null,null,null,null,null,null,null,null,null,null,null,null,74,null,null,null,null,null,null,null,0.97907040198386297,40,1992,74,null,null,null,null,null,null,54]
[null,null,null,null,null,null,null,null,null,null,null,null,null,58,null,null,null,null,null,null,null,0.24503675602262398,1533,615,58,null,null,null,null,null,null,66]
[null,null,null,null,null,null,null,null,null,null,null,null,null,66,null,null,null,null,null,null,null,0.22326355116547347,1577,1710,66,null,null,null,null,null,null,62]
[null,null,null,null,null,null,null,null,null,null,null,null,null,61,null,null,null,null,null,null,null,0.36015738872967651,1315,1058,61,null,null,null,null,null,null,68]
[null,null,null,null,null,null,null,null,null,null,null,null,null,62,null,null,null,null,null,null,null,0.2941068216334638,1432,1196,62,null,null,null,null,null,null,52]
[null,null,null,null,null,null,null,null,null,null,null,null,null,73,null,null,null,null,null,null,null,0.59218968447013254,861,1989,73,null,null,null,null,null,null,58]
[null,null,null,null,null,null,null,null,null,null,null,null,null,55,null,null,null,null,null,null,null,0.7342466931567353,553,269,55,null,null,null,null,null,null,56]
[null,null,null,null,null,null,null,null,null,null,null,null,null,53,null,null,null,null,null,null,null,0.74637980593175846,535,139,53,null,null,null,null,null,null,56]
[null,null,null,null,null,null,null,null,null,null,null,null,null,62,null,null,null,null,null,null,null,0.6163459915727485,805,1196,62,null,null,null,null,null,null,54]
[null,null,null,null,null,null,null,null,null,null,null,null,null,62,null,null,null,null,null,null,null,0.38379928608533864,1267,1196,62,null,null,null,null,null,null,59]
[null,null,null,null,null,null,null,null,null,null,null,null,null,59,null,null,null,null,null,null,null,{"$f":"IF(N962=\"\",\"\",RAND())","v":0.82599447009310445},360,745,{"$f":"N962","v":59},null,null,null,null,null,null,{"$f":"ROUND(NORMINV(RAND(),mean,stddev),0)","v":56}]
[null,null,null,null,null,null,null,null,null,null,null,null,null,64,null,null,null,null,null,null,null,1.2487485447404412E-2,{"$f":"RANK(V963,$V:$V)","v":1978},{"$f":"RANK(Y963,Y:Y,1)","v":1487},64,null,null,null,null,null,null,62]
[null,null,null,null,null,null,null,null,null,null,null,null,null,64,null,null,null,null,null,null,null,0.67627916925630505,677,1487,64,null,null,null,null,null,null,64]
[null,null,null,null,null,null,null,null,null,null,null,null,null,52,null,null,null,null,null,null,null,4.3596087567176478E-2,1897,95,52,null,null,null,null,null,null,55]
[null,null,null,null,null,null,null,null,null,null,null,null,null,57,null,null,null,null,null,null,null,0.80498752665558559,414,487,57,null,null,null,null,null,null,61]
[null,null,null,null,null,null,null,null,null,null,null,null,null,64,null,null,null,null,null,null,null,0.83474274251427805,339,1487,64,null,null,null,null,null,null,59]
[null,null,null,null,null,null,null,null,null,null,null,null,null,64,null,null,null,null,null,null,null,0.2156185613259175,1592,1487,64,null,null,null,null,null,null,63]
[null,null,null,null,null,null,null,null,null,null,null,null,null,62,null,null,null,null,null,null,null,0.80131380845060873,418,1196,62,null,null,null,null,null,null,59]
[null,null,null,null,null,null,null,null,null,null,null,null,null,61,null,null,null,null,null,null,null,1.0492166800878944E-2,1981,1058,61,null,null,null,null,null,null,60]
[null,null,null,null,null,null,null,null,null,null,null,null,null,56,null,null,null,null,null,null,null,0.21528176796746834,1593,362,56,null,null,null,null,null,null,63]
[null,null,null,null,null,null,null,null,null,null,null,null,null,65,null,null,null,null,null,null,null,0.71688689414663298,589,1609,65,null,null,null,null,null,null,53]
[null,null,null,null,null,null,null,null,null,null,null,null,null,57,null,null,null,null,null,null,null,3.031743959876021E-2,1935,487,57,null,null,null,null,null,null,56]
[null,null,null,null,null,null,null,null,null,null,null,null,null,58,null,null,null,null,null,null,null,0.66944174099300713,693,615,58,null,null,null,null,null,null,59]
[null,null,null,null,null,null,null,null,null,null,null,null,null,55,null,null,null,null,null,null,null,0.3283785856959297,1370,269,55,null,null,null,null,null,null,66]
[null,null,null,null,null,null,null,null,null,null,null,null,null,62,null,null,null,null,null,null,null,0.1429769110437894,1727,1196,62,null,null,null,null,null,null,65]
[null,null,null,null,null,null,null,null,null,null,null,null,null,58,null,null,null,null,null,null,null,0.20534787787039466,1618,615,58,null,null,null,null,null,null,67]
[null,null,null,null,null,null,null,null,null,null,null,null,null,60,null,null,null,null,null,null,null,0.30514935657983921,1416,903,60,null,null,null,null,null,null,63]
[null,null,null,null,null,null,null,null,null,null,null,null,null,57,null,null,null,null,null,null,null,0.7144345162496385,596,487,57,null,null,null,null,null,null,55]
[null,null,null,null,null,null,null,null,null,null,null,null,null,59,null,null,null,null,null,null,null,0.45370536762395608,1137,745,59,null,null,null,null,null,null,59]
[null,null,null,null,null,null,null,null,null,null,null,null,null,67,null,null,null,null,null,null,null,0.96940539115426028,67,1791,67,null,null,null,null,null,null,63]
[null,null,null,null,null,null,null,null,null,null,null,null,null,54,null,null,null,null,null,null,null,0.27636152228450805,1465,201,54,null,null,null,null,null,null,53]
[null,null,null,null,null,null,null,null,null,null,null,null,null,67,null,null,null,null,null,null,null,0.73129120158391159,561,1791,67,null,null,null,null,null,null,61]
[null,null,null,null,null,null,null,null,null,null,null,null,null,56,null,null,null,null,null,null,null,0.84003217517953932,324,362,56,null,null,null,null,null,null,55]
[null,null,null,null,null,null,null,null,null,null,null,null,null,54,null,null,null,null,null,null,null,1.7536679046213255E-2,1967,201,54,null,null,null,null,null,null,65]
[null,null,null,null,null,null,null,null,null,null,null,null,null,59,null,null,null,null,null,null,null,0.17123673055756694,1678,745,59,null,null,null,null,null,null,67]
[null,null,null,null,null,null,null,null,null,null,null,null,null,54,null,null,null,null,null,null,null,0.41934437458441265,1197,201,54,null,null,null,null,null,null,57]
[null,null,null,null,null,null,null,null,null,null,null,null,null,57,null,null,null,null,null,null,null,0.19290913142620425,1641,487,57,null,null,null,null,null,null,68]
[null,null,null,null,null,null,null,null,null,null,null,null,null,57,null,null,null,null,null,null,null,0.38490398681468518,1265,487,57,null,null,null,null,null,null,72]
[null,null,null,null,null,null,null,null,null,null,null,null,null,59,null,null,null,null,null,null,null,0.98160257174342147,34,745,59,null,null,null,null,null,null,65]
[null,null,null,null,null,null,null,null,null,null,null,null,null,60,null,null,null,null,null,null,null,0.33575073963348556,1357,903,60,null,null,null,null,null,null,61]
[null,null,null,null,null,null,null,null,null,null,null,null,null,60,null,null,null,null,null,null,null,0.1581749211481811,1702,903,60,null,null,null,null,null,null,60]
[null,null,null,null,null,null,null,null,null,null,null,null,null,57,null,null,null,null,null,null,null,0.79768746793916323,426,487,57,null,null,null,null,null,null,55]
[null,null,null,null,null,null,null,null,null,null,null,null,null,57,null,null,null,null,null,null,null,0.66660301625386575,699,487,57,null,null,null,null,null,null,71]
[null,null,null,null,null,null,null,null,null,null,null,null,null,64,null,null,null,null,null,null,null,0.93053948692331112,148,1487,64,null,null,null,null,null,null,61]
[null,null,null,null,null,null,null,null,null,null,null,null,null,55,null,null,null,null,null,null,null,0.36191920827639645,1311,269,55,null,null,null,null,null,null,57]
[null,null,null,null,null,null,null,null,null,null,null,null,null,55,null,null,null,null,null,null,null,0.46006902673792682,1123,269,55,null,null,null,null,null,null,68]
[null,null,null,null,null,null,null,null,null,null,null,null,null,67,null,null,null,null,null,null,null,0.94300935616547332,124,1791,67,null,null,null,null,null,null,62]
[null,null,null,null,null,null,null,null,null,null,null,null,null,63,null,null,null,null,null,null,null,0.1094700924901657,1787,1349,63,null,null,null,null,null,null,52]
[null,null,null,null,null,null,null,null,null,null,null,null,null,66,null,null,null,null,null,null,null,0.31030340183675553,1405,1710,66,null,null,null,null,null,null,55]
[null,null,null,null,null,null,null,null,null,null,null,null,null,62,null,null,null,null,null,null,null,0.18901781549154906,1646,1196,62,null,null,null,null,null,null,56]
[null,null,null,null,null,null,null,null,null,null,null,null,null,59,null,null,null,null,null,null,null,0.40746904949876006,1222,745,59,null,null,null,null,null,null,54]
[null,null,null,null,null,null,null,null,null,null,null,null,null,63,null,null,null,null,null,null,null,0.39555399730484075,1248,1349,63,null,null,null,null,null,null,58]
[null,null,null,null,null,null,null,null,null,null,null,null,null,55,null,null,null,null,null,null,null,3.0354451604137966E-2,1933,269,55,null,null,null,null,null,null,64]
[null,null,null,null,null,null,null,null,null,null,null,null,null,57,null,null,null,null,null,null,null,0.9742078578080674,53,487,57,null,null,null,null,null,null,69]
[null,null,null,null,null,null,null,null,null,null,null,null,null,61,null,null,null,null,null,null,null,0.2031340608179053,1621,1058,61,null,null,null,null,null,null,62]
[null,null,null,null,null,null,null,null,null,null,null,null,null,57,null,null,null,null,null,null,null,0.6697762116309911,692,487,57,null,null,null,null,null,null,58]
[null,null,null,null,null,null,null,null,null,null,null,null,null,57,null,null,null,null,null,null,null,0.12474474005848613,1760,487,57,null,null,null,null,null,null,63]
[null,null,null,null,null,null,null,null,null,null,null,null,null,63,null,null,null,null,null,null,null,0.60869199480408287,818,1349,63,null,null,null,null,null,null,61]
[null,null,null,null,null,null,null,null,null,null,null,null,null,61,null,null,null,null,null,null,null,0.14634889196651624,1723,1058,61,null,null,null,null,null,null,65]
[null,null,null,null,null,null,null,null,null,null,null,null,null,63,null,null,null,null,null,null,null,0.76059136057728449,505,1349,63,null,null,null,null,null,null,65]
[null,null,null,null,null,null,null,null,null,null,null,null,null,57,null,null,null,null,null,null,null,0.82523583640980758,362,487,57,null,null,null,null,null,null,62]
[null,null,null,null,null,null,null,null,null,null,null,null,null,64,null,null,null,null,null,null,null,0.79807594253570568,425,1487,64,null,null,null,null,null,null,68]
[null,null,null,null,null,null,null,null,null,null,null,null,null,61,null,null,null,null,null,null,null,0.79354393654870792,432,1058,61,null,null,null,null,null,null,57]
[null,null,null,null,null,null,null,null,null,null,null,null,null,63,null,null,null,null,null,null,null,0.76016873158012654,507,1349,63,null,null,null,null,null,null,59]
[null,null,null,null,null,null,null,null,null,null,null,null,null,55,null,null,null,null,null,null,null,0.3639729760313889,1305,269,55,null,null,null,null,null,null,59]
[null,null,null,null,null,null,null,null,null,null,null,null,null,53,null,null,null,null,null,null,null,0.54207133742808389,951,139,53,null,null,null,null,null,null,65]
[null,null,null,null,null,null,null,null,null,null,null,null,null,62,null,null,null,null,null,null,null,0.66866436129603957,695,1196,62,null,null,null,null,null,null,63]
[null,null,null,null,null,null,null,null,null,null,null,null,null,66,null,null,null,null,null,null,null,0.2468591800150487,1532,1710,66,null,null,null,null,null,null,61]
[null,null,null,null,null,null,null,null,null,null,null,null,null,67,null,null,null,null,null,null,null,2.0912537228628958E-2,1953,1791,67,null,null,null,null,null,null,69]
[null,null,null,null,null,null,null,null,null,null,null,null,null,59,null,null,null,null,null,null,null,0.62615707370191409,788,745,59,null,null,null,null,null,null,55]
[null,null,null,null,null,null,null,null,null,null,null,null,null,58,null,null,null,null,null,null,null,6.9795084995381007E-2,1856,615,58,null,null,null,null,null,null,67]
[null,null,null,null,null,null,null,null,null,null,null,null,null,60,null,null,null,null,null,null,null,0.27910072576219747,1457,903,60,null,null,null,null,null,null,56]
[null,null,null,null,null,null,null,null,null,null,null,null,null,62,null,null,null,null,null,null,null,0.21178954198993272,1600,1196,62,null,null,null,null,null,null,54]
[null,null,null,null,null,null,null,null,null,null,null,null,null,66,null,null,null,null,null,null,null,0.58975700975899725,865,1710,66,null,null,null,null,null,null,57]
[null,null,null,null,null,null,null,null,null,null,null,null,null,65,null,null,null,null,null,null,null,{"$f":"IF(N1026=\"\",\"\",RAND())","v":0.88542428137431473},233,1609,{"$f":"N1026","v":65},null,null,null,null,null,null,{"$f":"ROUND(NORMINV(RAND(),mean,stddev),0)","v":63}]
[null,null,null,null,null,null,null,null,null,null,null,null,null,59,null,null,null,null,null,null,null,0.59976781313783367,{"$f":"RANK(V1027,$V:$V)","v":847},{"$f":"RANK(Y1027,Y:Y,1)","v":745},59,null,null,null,null,null,null,65]
[null,null,null,null,null,null,null,null,null,null,null,null,null,58,null,null,null,null,null,null,null,0.97146632491983154,60,615,58,null,null,null,null,null,null,49]
[null,null,null,null,null,null,null,null,null,null,null,null,null,62,null,null,null,null,null,null,null,0.59253371410626099,859,1196,62,null,null,null,null,null,null,54]
[null,null,null,null,null,null,null,null,null,null,null,null,null,56,null,null,null,null,null,null,null,0.68147842014278959,669,362,56,null,null,null,null,null,null,59]
[null,null,null,null,null,null,null,null,null,null,null,null,null,53,null,null,null,null,null,null,null,0.82528223605435735,361,139,53,null,null,null,null,null,null,60]
[null,null,null,null,null,null,null,null,null,null,null,null,null,62,null,null,null,null,null,null,null,0.50318709895558722,1036,1196,62,null,null,null,null,null,null,55]
[null,null,null,null,null,null,null,null,null,null,null,null,null,61,null,null,null,null,null,null,null,0.29824000117677207,1425,1058,61,null,null,null,null,null,null,61]
[null,null,null,null,null,null,null,null,null,null,null,null,null,61,null,null,null,null,null,null,null,0.95061859599802911,109,1058,61,null,null,null,null,null,null,69]
[null,null,null,null,null,null,null,null,null,null,null,null,null,60,null,null,null,null,null,null,null,0.93139641820960761,146,903,60,null,null,null,null,null,null,56]
[null,null,null,null,null,null,null,null,null,null,null,null,null,61,null,null,null,null,null,null,null,0.29751946086938685,1428,1058,61,null,null,null,null,null,null,53]
[null,null,null,null,null,null,null,null,null,null,null,null,null,61,null,null,null,null,null,null,null,0.15801933082765574,1703,1058,61,null,null,null,null,null,null,57]
[null,null,null,null,null,null,null,null,null,null,null,null,null,66,null,null,null,null,null,null,null,0.71536688852509567,594,1710,66,null,null,null,null,null,null,54]
[null,null,null,null,null,null,null,null,null,null,null,null,null,58,null,null,null,null,null,null,null,0.14369879258223683,1724,615,58,null,null,null,null,null,null,56]
[null,null,null,null,null,null,null,null,null,null,null,null,null,64,null,null,null,null,null,null,null,0.48205395081226943,1087,1487,64,null,null,null,null,null,null,64]
[null,null,null,null,null,null,null,null,null,null,null,null,null,77,null,null,null,null,null,null,null,0.50313626544832191,1037,1999,77,null,null,null,null,null,null,56]
[null,null,null,null,null,null,null,null,null,null,null,null,null,60,null,null,null,null,null,null,null,0.80513604021526186,413,903,60,null,null,null,null,null,null,59]
[null,null,null,null,null,null,null,null,null,null,null,null,null,53,null,null,null,null,null,null,null,0.15772607056824384,1705,139,53,null,null,null,null,null,null,67]
[null,null,null,null,null,null,null,null,null,null,null,null,null,68,null,null,null,null,null,null,null,0.6493606769899305,742,1857,68,null,null,null,null,null,null,69]
[null,null,null,null,null,null,null,null,null,null,null,null,null,72,null,null,null,null,null,null,null,0.72546060287459269,576,1979,72,null,null,null,null,null,null,59]
[null,null,null,null,null,null,null,null,null,null,null,null,null,61,null,null,null,null,null,null,null,0.64184025350063867,761,1058,61,null,null,null,null,null,null,58]
[null,null,null,null,null,null,null,null,null,null,null,null,null,64,null,null,null,null,null,null,null,0.55399076988726748,930,1487,64,null,null,null,null,null,null,65]
[null,null,null,null,null,null,null,null,null,null,null,null,null,57,null,null,null,null,null,null,null,0.83423725215797739,341,487,57,null,null,null,null,null,null,63]
[null,null,null,null,null,null,null,null,null,null,null,null,null,57,null,null,null,null,null,null,null,3.8295684299635924E-2,1910,487,57,null,null,null,null,null,null,59]
[null,null,null,null,null,null,null,null,null,null,null,null,null,59,null,null,null,null,null,null,null,0.49885643142970537,1046,745,59,null,null,null,null,null,null,54]
[null,null,null,null,null,null,null,null,null,null,null,null,null,52,null,null,null,null,null,null,null,0.36426386744340244,1303,95,52,null,null,null,null,null,null,57]
[null,null,null,null,null,null,null,null,null,null,null,null,null,58,null,null,null,null,null,null,null,0.87276376158579105,261,615,58,null,null,null,null,null,null,55]
[null,null,null,null,null,null,null,null,null,null,null,null,null,60,null,null,null,null,null,null,null,0.26895329934961809,1479,903,60,null,null,null,null,null,null,53]
[null,null,null,null,null,null,null,null,null,null,null,null,null,59,null,null,null,null,null,null,null,0.48410241582730829,1079,745,59,null,null,null,null,null,null,57]
[null,null,null,null,null,null,null,null,null,null,null,null,null,59,null,null,null,null,null,null,null,0.4737565853212159,1101,745,59,null,null,null,null,null,null,61]
[null,null,null,null,null,null,null,null,null,null,null,null,null,56,null,null,null,null,null,null,null,0.18754625984414208,1649,362,56,null,null,null,null,null,null,42]
[null,null,null,null,null,null,null,null,null,null,null,null,null,60,null,null,null,null,null,null,null,3.5772944331974421E-2,1919,903,60,null,null,null,null,null,null,56]
[null,null,null,null,null,null,null,null,null,null,null,null,null,70,null,null,null,null,null,null,null,0.84823447713893285,309,1946,70,null,null,null,null,null,null,65]
[null,null,null,null,null,null,null,null,null,null,null,null,null,62,null,null,null,null,null,null,null,0.11712503592659096,1776,1196,62,null,null,null,null,null,null,57]
[null,null,null,null,null,null,null,null,null,null,null,null,null,63,null,null,null,null,null,null,null,0.681234914578835,670,1349,63,null,null,null,null,null,null,54]
[null,null,null,null,null,null,null,null,null,null,null,null,null,70,null,null,null,null,null,null,null,0.31693555878967239,1391,1946,70,null,null,null,null,null,null,59]
[null,null,null,null,null,null,null,null,null,null,null,null,null,57,null,null,null,null,null,null,null,0.27838635891005203,1461,487,57,null,null,null,null,null,null,63]
[null,null,null,null,null,null,null,null,null,null,null,null,null,63,null,null,null,null,null,null,null,3.298169021975772E-4,2000,1349,63,null,null,null,null,null,null,61]
[null,null,null,null,null,null,null,null,null,null,null,null,null,65,null,null,null,null,null,null,null,0.10263049290520343,1801,1609,65,null,null,null,null,null,null,54]
[null,null,null,null,null,null,null,null,null,null,null,null,null,57,null,null,null,null,null,null,null,0.14927712834609674,1714,487,57,null,null,null,null,null,null,58]
[null,null,null,null,null,null,null,null,null,null,null,null,null,56,null,null,null,null,null,null,null,0.59147611021399227,863,362,56,null,null,null,null,null,null,64]
[null,null,null,null,null,null,null,null,null,null,null,null,null,65,null,null,null,null,null,null,null,0.88837444846852731,229,1609,65,null,null,null,null,null,null,59]
[null,null,null,null,null,null,null,null,null,null,null,null,null,50,null,null,null,null,null,null,null,0.36298893165902235,1307,37,50,null,null,null,null,null,null,64]
[null,null,null,null,null,null,null,null,null,null,null,null,null,60,null,null,null,null,null,null,null,0.45393802518749404,1136,903,60,null,null,null,null,null,null,55]
[null,null,null,null,null,null,null,null,null,null,null,null,null,63,null,null,null,null,null,null,null,0.82292605364343074,374,1349,63,null,null,null,null,null,null,62]
[null,null,null,null,null,null,null,null,null,null,null,null,null,56,null,null,null,null,null,null,null,0.95754430366818721,94,362,56,null,null,null,null,null,null,66]
[null,null,null,null,null,null,null,null,null,null,null,null,null,53,null,null,null,null,null,null,null,0.24456807169434991,1535,139,53,null,null,null,null,null,null,54]
[null,null,null,null,null,null,null,null,null,null,null,null,null,64,null,null,null,null,null,null,null,0.30903818593023125,1406,1487,64,null,null,null,null,null,null,57]
[null,null,null,null,null,null,null,null,null,null,null,null,null,68,null,null,null,null,null,null,null,0.41542635062152877,1201,1857,68,null,null,null,null,null,null,58]
[null,null,null,null,null,null,null,null,null,null,null,null,null,65,null,null,null,null,null,null,null,0.83311528089486331,343,1609,65,null,null,null,null,null,null,60]
[null,null,null,null,null,null,null,null,null,null,null,null,null,54,null,null,null,null,null,null,null,0.30442781738645364,1417,201,54,null,null,null,null,null,null,56]
[null,null,null,null,null,null,null,null,null,null,null,null,null,65,null,null,null,null,null,null,null,0.81629311492995138,387,1609,65,null,null,null,null,null,null,60]
[null,null,null,null,null,null,null,null,null,null,null,null,null,53,null,null,null,null,null,null,null,0.36624517498602527,1298,139,53,null,null,null,null,null,null,65]
[null,null,null,null,null,null,null,null,null,null,null,null,null,65,null,null,null,null,null,null,null,0.54332475931039514,947,1609,65,null,null,null,null,null,null,62]
[null,null,null,null,null,null,null,null,null,null,null,null,null,55,null,null,null,null,null,null,null,0.1704393556441266,1681,269,55,null,null,null,null,null,null,58]
[null,null,null,null,null,null,null,null,null,null,null,null,null,56,null,null,null,null,null,null,null,0.75875225823164905,509,362,56,null,null,null,null,null,null,70]
[null,null,null,null,null,null,null,null,null,null,null,null,null,59,null,null,null,null,null,null,null,0.31160581016848998,1401,745,59,null,null,null,null,null,null,61]
[null,null,null,null,null,null,null,null,null,null,null,null,null,56,null,null,null,null,null,null,null,0.52212148344142784,993,362,56,null,null,null,null,null,null,57]
[null,null,null,null,null,null,null,null,null,null,null,null,null,68,null,null,null,null,null,null,null,8.5962135522418048E-2,1826,1857,68,null,null,null,null,null,null,48]
[null,null,null,null,null,null,null,null,null,null,null,null,null,50,null,null,null,null,null,null,null,3.3531278486077287E-2,1924,37,50,null,null,null,null,null,null,60]
[null,null,null,null,null,null,null,null,null,null,null,null,null,60,null,null,null,null,null,null,null,0.65158186556816844,734,903,60,null,null,null,null,null,null,72]
[null,null,null,null,null,null,null,null,null,null,null,null,null,57,null,null,null,null,null,null,null,0.42292506735565771,1192,487,57,null,null,null,null,null,null,63]
[null,null,null,null,null,null,null,null,null,null,null,null,null,50,null,null,null,null,null,null,null,0.81396290477248057,391,37,50,null,null,null,null,null,null,58]
[null,null,null,null,null,null,null,null,null,null,null,null,null,60,null,null,null,null,null,null,null,9.3044712640303007E-2,1815,903,60,null,null,null,null,null,null,58]
[null,null,null,null,null,null,null,null,null,null,null,null,null,54,null,null,null,null,null,null,null,{"$f":"IF(N1090=\"\",\"\",RAND())","v":0.9806951535325521},35,201,{"$f":"N1090","v":54},null,null,null,null,null,null,{"$f":"ROUND(NORMINV(RAND(),mean,stddev),0)","v":63}]
[null,null,null,null,null,null,null,null,null,null,null,null,null,59,null,null,null,null,null,null,null,0.42543543862299416,{"$f":"RANK(V1091,$V:$V)","v":1190},{"$f":"RANK(Y1091,Y:Y,1)","v":745},59,null,null,null,null,null,null,53]
[null,null,null,null,null,null,null,null,null,null,null,null,null,60,null,null,null,null,null,null,null,0.59556926228296547,855,903,60,null,null,null,null,null,null,63]
[null,null,null,null,null,null,null,null,null,null,null,null,null,62,null,null,null,null,null,null,null,0.26455824493904567,1489,1196,62,null,null,null,null,null,null,67]
[null,null,null,null,null,null,null,null,null,null,null,null,null,59,null,null,null,null,null,null,null,0.3068135788833467,1412,745,59,null,null,null,null,null,null,60]
[null,null,null,null,null,null,null,null,null,null,null,null,null,64,null,null,null,null,null,null,null,0.85169916757634079,300,1487,64,null,null,null,null,null,null,69]
[null,null,null,null,null,null,null,null,null,null,null,null,null,62,null,null,null,null,null,null,null,0.37020843277172011,1289,1196,62,null,null,null,null,null,null,50]
[null,null,null,null,null,null,null,null,null,null,null,null,null,68,null,null,null,null,null,null,null,0.93156104867528799,144,1857,68,null,null,null,null,null,null,52]
[null,null,null,null,null,null,null,null,null,null,null,null,null,63,null,null,null,null,null,null,null,0.78666060305635466,446,1349,63,null,null,null,null,null,null,69]
[null,null,null,null,null,null,null,null,null,null,null,null,null,52,null,null,null,null,null,null,null,0.21324412719434449,1598,95,52,null,null,null,null,null,null,52]
[null,null,null,null,null,null,null,null,null,null,null,null,null,56,null,null,null,null,null,null,null,6.8512792803149813E-2,1857,362,56,null,null,null,null,null,null,58]
[null,null,null,null,null,null,null,null,null,null,null,null,null,63,null,null,null,null,null,null,null,7.5310731431632028E-2,1844,1349,63,null,null,null,null,null,null,59]
[null,null,null,null,null,null,null,null,null,null,null,null,null,62,null,null,null,null,null,null,null,0.85301597828737041,297,1196,62,null,null,null,null,null,null,58]
[null,null,null,null,null,null,null,null,null,null,null,null,null,47,null,null,null,null,null,null,null,6.3543880849521339E-2,1867,4,47,null,null,null,null,null,null,48]
[null,null,null,null,null,null,null,null,null,null,null,null,null,61,null,null,null,null,null,null,null,0.61686780946001774,803,1058,61,null,null,null,null,null,null,65]
[null,null,null,null,null,null,null,null,null,null,null,null,null,58,null,null,null,null,null,null,null,7.1446981736705162E-2,1851,615,58,null,null,null,null,null,null,63]
[null,null,null,null,null,null,null,null,null,null,null,null,null,58,null,null,null,null,null,null,null,0.29095629248511579,1434,615,58,null,null,null,null,null,null,57]
[null,null,null,null,null,null,null,null,null,null,null,null,null,53,null,null,null,null,null,null,null,6.1110945390439708E-2,1871,139,53,null,null,null,null,null,null,62]
[null,null,null,null,null,null,null,null,null,null,null,null,null,69,null,null,null,null,null,null,null,0.78678423339071324,445,1909,69,null,null,null,null,null,null,70]
[null,null,null,null,null,null,null,null,null,null,null,null,null,55,null,null,null,null,null,null,null,0.10444841640745584,1796,269,55,null,null,null,null,null,null,60]
[null,null,null,null,null,null,null,null,null,null,null,null,null,55,null,null,null,null,null,null,null,0.91227943589789973,182,269,55,null,null,null,null,null,null,57]
[null,null,null,null,null,null,null,null,null,null,null,null,null,60,null,null,null,null,null,null,null,4.5402900700294069E-2,1895,903,60,null,null,null,null,null,null,64]
[null,null,null,null,null,null,null,null,null,null,null,null,null,59,null,null,null,null,null,null,null,0.11098691192313226,1786,745,59,null,null,null,null,null,null,58]
[null,null,null,null,null,null,null,null,null,null,null,null,null,63,null,null,null,null,null,null,null,0.72931951482317903,564,1349,63,null,null,null,null,null,null,56]
[null,null,null,null,null,null,null,null,null,null,null,null,null,60,null,null,null,null,null,null,null,0.9471166177880892,119,903,60,null,null,null,null,null,null,60]
[null,null,null,null,null,null,null,null,null,null,null,null,null,56,null,null,null,null,null,null,null,0.49974644668062917,1044,362,56,null,null,null,null,null,null,58]
[null,null,null,null,null,null,null,null,null,null,null,null,null,54,null,null,null,null,null,null,null,7.2119130319516223E-2,1847,201,54,null,null,null,null,null,null,55]
[null,null,null,null,null,null,null,null,null,null,null,null,null,64,null,null,null,null,null,null,null,0.31999054378826619,1384,1487,64,null,null,null,null,null,null,53]
[null,null,null,null,null,null,null,null,null,null,null,null,null,66,null,null,null,null,null,null,null,0.8081627715446793,405,1710,66,null,null,null,null,null,null,66]
[null,null,null,null,null,null,null,null,null,null,null,null,null,66,null,null,null,null,null,null,null,0.28751465847999713,1442,1710,66,null,null,null,null,null,null,63]
[null,null,null,null,null,null,null,null,null,null,null,null,null,64,null,null,null,null,null,null,null,0.9681534364507689,71,1487,64,null,null,null,null,null,null,66]
[null,null,null,null,null,null,null,null,null,null,null,null,null,68,null,null,null,null,null,null,null,0.47970310219510304,1091,1857,68,null,null,null,null,null,null,70]
[null,null,null,null,null,null,null,null,null,null,null,null,null,64,null,null,null,null,null,null,null,5.2668325706223929E-2,1882,1487,64,null,null,null,null,null,null,64]
[null,null,null,null,null,null,null,null,null,null,null,null,null,64,null,null,null,null,null,null,null,0.59277832912299533,858,1487,64,null,null,null,null,null,null,61]
[null,null,null,null,null,null,null,null,null,null,null,null,null,59,null,null,null,null,null,null,null,0.48771932811886776,1073,745,59,null,null,null,null,null,null,55]
[null,null,null,null,null,null,null,null,null,null,null,null,null,56,null,null,null,null,null,null,null,0.65575412059704541,729,362,56,null,null,null,null,null,null,54]
[null,null,null,null,null,null,null,null,null,null,null,null,null,64,null,null,null,null,null,null,null,0.46848019512635497,1110,1487,64,null,null,null,null,null,null,57]
[null,null,null,null,null,null,null,null,null,null,null,null,null,57,null,null,null,null,null,null,null,0.95097286840923045,108,487,57,null,null,null,null,null,null,60]
[null,null,null,null,null,null,null,null,null,null,null,null,null,60,null,null,null,null,null,null,null,0.73156343352679487,559,903,60,null,null,null,null,null,null,68]
[null,null,null,null,null,null,null,null,null,null,null,null,null,63,null,null,null,null,null,null,null,0.80618538661182904,410,1349,63,null,null,null,null,null,null,61]
[null,null,null,null,null,null,null,null,null,null,null,null,null,53,null,null,null,null,null,null,null,0.17169347498551357,1676,139,53,null,null,null,null,null,null,62]
[null,null,null,null,null,null,null,null,null,null,null,null,null,64,null,null,null,null,null,null,null,0.68000734727073453,672,1487,64,null,null,null,null,null,null,64]
[null,null,null,null,null,null,null,null,null,null,null,null,null,58,null,null,null,null,null,null,null,0.68324997009166122,664,615,58,null,null,null,null,null,null,54]
[null,null,null,null,null,null,null,null,null,null,null,null,null,57,null,null,null,null,null,null,null,0.85651969223878011,286,487,57,null,null,null,null,null,null,55]
[null,null,null,null,null,null,null,null,null,null,null,null,null,56,null,null,null,null,null,null,null,0.46177552218485385,1120,362,56,null,null,null,null,null,null,57]
[null,null,null,null,null,null,null,null,null,null,null,null,null,63,null,null,null,null,null,null,null,0.96849831915601048,69,1349,63,null,null,null,null,null,null,57]
[null,null,null,null,null,null,null,null,null,null,null,null,null,62,null,null,null,null,null,null,null,5.6621159129164766E-2,1875,1196,62,null,null,null,null,null,null,63]
[null,null,null,null,null,null,null,null,null,null,null,null,null,68,null,null,null,null,null,null,null,0.68222145067196116,666,1857,68,null,null,null,null,null,null,60]
[null,null,null,null,null,null,null,null,null,null,null,null,null,64,null,null,null,null,null,null,null,0.25290374959341699,1519,1487,64,null,null,null,null,null,null,64]
[null,null,null,null,null,null,null,null,null,null,null,null,null,57,null,null,null,null,null,null,null,3.9356675117787732E-2,1907,487,57,null,null,null,null,null,null,60]
[null,null,null,null,null,null,null,null,null,null,null,null,null,60,null,null,null,null,null,null,null,0.54940521417020083,937,903,60,null,null,null,null,null,null,58]
[null,null,null,null,null,null,null,null,null,null,null,null,null,56,null,null,null,null,null,null,null,0.64981287501207419,739,362,56,null,null,null,null,null,null,59]
[null,null,null,null,null,null,null,null,null,null,null,null,null,53,null,null,null,null,null,null,null,0.65769081799101714,721,139,53,null,null,null,null,null,null,60]
[null,null,null,null,null,null,null,null,null,null,null,null,null,66,null,null,null,null,null,null,null,0.99151221673166412,14,1710,66,null,null,null,null,null,null,67]
[null,null,null,null,null,null,null,null,null,null,null,null,null,58,null,null,null,null,null,null,null,0.23095775387300954,1563,615,58,null,null,null,null,null,null,54]
[null,null,null,null,null,null,null,null,null,null,null,null,null,69,null,null,null,null,null,null,null,0.63716220367950771,772,1909,69,null,null,null,null,null,null,64]
[null,null,null,null,null,null,null,null,null,null,null,null,null,50,null,null,null,null,null,null,null,0.97253584212149269,57,37,50,null,null,null,null,null,null,49]
[null,null,null,null,null,null,null,null,null,null,null,null,null,66,null,null,null,null,null,null,null,0.6644884818900253,706,1710,66,null,null,null,null,null,null,56]
[null,null,null,null,null,null,null,null,null,null,null,null,null,60,null,null,null,null,null,null,null,0.49651829081048793,1051,903,60,null,null,null,null,null,null,64]
[null,null,null,null,null,null,null,null,null,null,null,null,null,57,null,null,null,null,null,null,null,0.27312003813284869,1473,487,57,null,null,null,null,null,null,69]
[null,null,null,null,null,null,null,null,null,null,null,null,null,56,null,null,null,null,null,null,null,0.44381223472107412,1158,362,56,null,null,null,null,null,null,55]
[null,null,null,null,null,null,null,null,null,null,null,null,null,57,null,null,null,null,null,null,null,0.85231397560380096,299,487,57,null,null,null,null,null,null,55]
[null,null,null,null,null,null,null,null,null,null,null,null,null,55,null,null,null,null,null,null,null,0.60553695578225497,830,269,55,null,null,null,null,null,null,60]
[null,null,null,null,null,null,null,null,null,null,null,null,null,65,null,null,null,null,null,null,null,0.12119961084092523,1768,1609,65,null,null,null,null,null,null,60]
[null,null,null,null,null,null,null,null,null,null,null,null,null,52,null,null,null,null,null,null,null,{"$f":"IF(N1154=\"\",\"\",RAND())","v":0.59762667807970615},850,95,{"$f":"N1154","v":52},null,null,null,null,null,null,{"$f":"ROUND(NORMINV(RAND(),mean,stddev),0)","v":63}]
[null,null,null,null,null,null,null,null,null,null,null,null,null,56,null,null,null,null,null,null,null,0.95185537495568384,{"$f":"RANK(V1155,$V:$V)","v":106},{"$f":"RANK(Y1155,Y:Y,1)","v":362},56,null,null,null,null,null,null,50]
[null,null,null,null,null,null,null,null,null,null,null,null,null,62,null,null,null,null,null,null,null,0.81285354721102199,396,1196,62,null,null,null,null,null,null,64]
[null,null,null,null,null,null,null,null,null,null,null,null,null,59,null,null,null,null,null,null,null,0.54313464733665484,950,745,59,null,null,null,null,null,null,63]
[null,null,null,null,null,null,null,null,null,null,null,null,null,63,null,null,null,null,null,null,null,8.8677398237500427E-2,1821,1349,63,null,null,null,null,null,null,59]
[null,null,null,null,null,null,null,null,null,null,null,null,null,61,null,null,null,null,null,null,null,0.23898521665433503,1548,1058,61,null,null,null,null,null,null,56]
[null,null,null,null,null,null,null,null,null,null,null,null,null,68,null,null,null,null,null,null,null,0.16237915332807229,1692,1857,68,null,null,null,null,null,null,59]
[null,null,null,null,null,null,null,null,null,null,null,null,null,57,null,null,null,null,null,null,null,0.45286127622659944,1141,487,57,null,null,null,null,null,null,55]
[null,null,null,null,null,null,null,null,null,null,null,null,null,60,null,null,null,null,null,null,null,0.11269217502556272,1784,903,60,null,null,null,null,null,null,54]
[null,null,null,null,null,null,null,null,null,null,null,null,null,59,null,null,null,null,null,null,null,0.37940819209130439,1275,745,59,null,null,null,null,null,null,62]
[null,null,null,null,null,null,null,null,null,null,null,null,null,58,null,null,null,null,null,null,null,0.83213258239552323,345,615,58,null,null,null,null,null,null,61]
[null,null,null,null,null,null,null,null,null,null,null,null,null,67,null,null,null,null,null,null,null,0.59215941050990795,862,1791,67,null,null,null,null,null,null,63]
[null,null,null,null,null,null,null,null,null,null,null,null,null,57,null,null,null,null,null,null,null,0.10697541665809651,1793,487,57,null,null,null,null,null,null,52]
[null,null,null,null,null,null,null,null,null,null,null,null,null,63,null,null,null,null,null,null,null,0.45619269537355656,1131,1349,63,null,null,null,null,null,null,59]
[null,null,null,null,null,null,null,null,null,null,null,null,null,66,null,null,null,null,null,null,null,0.6702510975861129,688,1710,66,null,null,null,null,null,null,58]
[null,null,null,null,null,null,null,null,null,null,null,null,null,52,null,null,null,null,null,null,null,0.80537098851813094,412,95,52,null,null,null,null,null,null,60]
[null,null,null,null,null,null,null,null,null,null,null,null,null,67,null,null,null,null,null,null,null,9.4351070248882563E-3,1984,1791,67,null,null,null,null,null,null,59]
[null,null,null,null,null,null,null,null,null,null,null,null,null,65,null,null,null,null,null,null,null,0.25393006555134201,1517,1609,65,null,null,null,null,null,null,56]
[null,null,null,null,null,null,null,null,null,null,null,null,null,65,null,null,null,null,null,null,null,0.62297994567199733,793,1609,65,null,null,null,null,null,null,62]
[null,null,null,null,null,null,null,null,null,null,null,null,null,63,null,null,null,null,null,null,null,0.89582303450601741,214,1349,63,null,null,null,null,null,null,64]
[null,null,null,null,null,null,null,null,null,null,null,null,null,59,null,null,null,null,null,null,null,0.59373203510714656,857,745,59,null,null,null,null,null,null,67]
[null,null,null,null,null,null,null,null,null,null,null,null,null,53,null,null,null,null,null,null,null,0.13907349682783221,1739,139,53,null,null,null,null,null,null,63]
[null,null,null,null,null,null,null,null,null,null,null,null,null,66,null,null,null,null,null,null,null,0.47679803449013347,1097,1710,66,null,null,null,null,null,null,53]
[null,null,null,null,null,null,null,null,null,null,null,null,null,58,null,null,null,null,null,null,null,0.33191045826418397,1364,615,58,null,null,null,null,null,null,60]
[null,null,null,null,null,null,null,null,null,null,null,null,null,63,null,null,null,null,null,null,null,0.76461043188022249,495,1349,63,null,null,null,null,null,null,65]
[null,null,null,null,null,null,null,null,null,null,null,null,null,65,null,null,null,null,null,null,null,0.78980262998621698,440,1609,65,null,null,null,null,null,null,67]
[null,null,null,null,null,null,null,null,null,null,null,null,null,57,null,null,null,null,null,null,null,0.36272337004845656,1308,487,57,null,null,null,null,null,null,64]
[null,null,null,null,null,null,null,null,null,null,null,null,null,50,null,null,null,null,null,null,null,0.16444953477185109,1688,37,50,null,null,null,null,null,null,60]
[null,null,null,null,null,null,null,null,null,null,null,null,null,59,null,null,null,null,null,null,null,0.25690877450082028,1512,745,59,null,null,null,null,null,null,62]
[null,null,null,null,null,null,null,null,null,null,null,null,null,55,null,null,null,null,null,null,null,0.61753115132326686,802,269,55,null,null,null,null,null,null,51]
[null,null,null,null,null,null,null,null,null,null,null,null,null,56,null,null,null,null,null,null,null,0.33041970630266881,1366,362,56,null,null,null,null,null,null,55]
[null,null,null,null,null,null,null,null,null,null,null,null,null,57,null,null,null,null,null,null,null,0.37129844500262021,1287,487,57,null,null,null,null,null,null,54]
[null,null,null,null,null,null,null,null,null,null,null,null,null,57,null,null,null,null,null,null,null,8.9966795043699643E-2,1819,487,57,null,null,null,null,null,null,62]
[null,null,null,null,null,null,null,null,null,null,null,null,null,55,null,null,null,null,null,null,null,0.73133996178896121,560,269,55,null,null,null,null,null,null,55]
[null,null,null,null,null,null,null,null,null,null,null,null,null,58,null,null,null,null,null,null,null,0.94151663486570181,128,615,58,null,null,null,null,null,null,63]
[null,null,null,null,null,null,null,null,null,null,null,null,null,56,null,null,null,null,null,null,null,0.68516870553274223,657,362,56,null,null,null,null,null,null,57]
[null,null,null,null,null,null,null,null,null,null,null,null,null,68,null,null,null,null,null,null,null,0.89356901481421425,217,1857,68,null,null,null,null,null,null,64]
[null,null,null,null,null,null,null,null,null,null,null,null,null,61,null,null,null,null,null,null,null,5.1100080125315861E-2,1885,1058,61,null,null,null,null,null,null,56]
[null,null,null,null,null,null,null,null,null,null,null,null,null,63,null,null,null,null,null,null,null,0.24256070676663377,1541,1349,63,null,null,null,null,null,null,56]
[null,null,null,null,null,null,null,null,null,null,null,null,null,59,null,null,null,null,null,null,null,0.98854055293243515,23,745,59,null,null,null,null,null,null,48]
[null,null,null,null,null,null,null,null,null,null,null,null,null,55,null,null,null,null,null,null,null,0.48872667963357597,1067,269,55,null,null,null,null,null,null,67]
[null,null,null,null,null,null,null,null,null,null,null,null,null,58,null,null,null,null,null,null,null,0.67586140965886743,680,615,58,null,null,null,null,null,null,66]
[null,null,null,null,null,null,null,null,null,null,null,null,null,52,null,null,null,null,null,null,null,0.26693598479845859,1481,95,52,null,null,null,null,null,null,55]
[null,null,null,null,null,null,null,null,null,null,null,null,null,62,null,null,null,null,null,null,null,0.61919833924970757,800,1196,62,null,null,null,null,null,null,60]
[null,null,null,null,null,null,null,null,null,null,null,null,null,65,null,null,null,null,null,null,null,0.36797246335813749,1295,1609,65,null,null,null,null,null,null,61]
[null,null,null,null,null,null,null,null,null,null,null,null,null,64,null,null,null,null,null,null,null,0.429129741114184,1182,1487,64,null,null,null,null,null,null,58]
[null,null,null,null,null,null,null,null,null,null,null,null,null,58,null,null,null,null,null,null,null,0.32514224508845868,1375,615,58,null,null,null,null,null,null,61]
[null,null,null,null,null,null,null,null,null,null,null,null,null,67,null,null,null,null,null,null,null,0.38373880312281483,1268,1791,67,null,null,null,null,null,null,60]
[null,null,null,null,null,null,null,null,null,null,null,null,null,59,null,null,null,null,null,null,null,0.2124147747101196,1599,745,59,null,null,null,null,null,null,61]
[null,null,null,null,null,null,null,null,null,null,null,null,null,62,null,null,null,null,null,null,null,0.72160318171611659,585,1196,62,null,null,null,null,null,null,56]
[null,null,null,null,null,null,null,null,null,null,null,null,null,67,null,null,null,null,null,null,null,0.25774421415754589,1508,1791,67,null,null,null,null,null,null,61]
[null,null,null,null,null,null,null,null,null,null,null,null,null,55,null,null,null,null,null,null,null,0.55430653510561712,928,269,55,null,null,null,null,null,null,57]
[null,null,null,null,null,null,null,null,null,null,null,null,null,67,null,null,null,null,null,null,null,7.199261124131684E-2,1849,1791,67,null,null,null,null,null,null,66]
[null,null,null,null,null,null,null,null,null,null,null,null,null,61,null,null,null,null,null,null,null,0.29054445149606656,1435,1058,61,null,null,null,null,null,null,54]
[null,null,null,null,null,null,null,null,null,null,null,null,null,64,null,null,null,null,null,null,null,0.19612432369968202,1638,1487,64,null,null,null,null,null,null,59]
[null,null,null,null,null,null,null,null,null,null,null,null,null,55,null,null,null,null,null,null,null,0.82861532078295774,354,269,55,null,null,null,null,null,null,65]
[null,null,null,null,null,null,null,null,null,null,null,null,null,56,null,null,null,null,null,null,null,0.94983377575765482,111,362,56,null,null,null,null,null,null,62]
[null,null,null,null,null,null,null,null,null,null,null,null,null,52,null,null,null,null,null,null,null,6.705969753049823E-2,1859,95,52,null,null,null,null,null,null,62]
[null,null,null,null,null,null,null,null,null,null,null,null,null,57,null,null,null,null,null,null,null,0.65595643471703946,728,487,57,null,null,null,null,null,null,66]
[null,null,null,null,null,null,null,null,null,null,null,null,null,61,null,null,null,null,null,null,null,0.20195962310337723,1626,1058,61,null,null,null,null,null,null,66]
[null,null,null,null,null,null,null,null,null,null,null,null,null,64,null,null,null,null,null,null,null,0.21147624850571267,1601,1487,64,null,null,null,null,null,null,64]
[null,null,null,null,null,null,null,null,null,null,null,null,null,62,null,null,null,null,null,null,null,0.39769891586649564,1243,1196,62,null,null,null,null,null,null,61]
[null,null,null,null,null,null,null,null,null,null,null,null,null,63,null,null,null,null,null,null,null,0.69869727262429115,630,1349,63,null,null,null,null,null,null,58]
[null,null,null,null,null,null,null,null,null,null,null,null,null,61,null,null,null,null,null,null,null,0.3818477119254734,1271,1058,61,null,null,null,null,null,null,65]
[null,null,null,null,null,null,null,null,null,null,null,null,null,64,null,null,null,null,null,null,null,{"$f":"IF(N1218=\"\",\"\",RAND())","v":0.87159993731753826},265,1487,{"$f":"N1218","v":64},null,null,null,null,null,null,{"$f":"ROUND(NORMINV(RAND(),mean,stddev),0)","v":51}]
[null,null,null,null,null,null,null,null,null,null,null,null,null,58,null,null,null,null,null,null,null,0.74447035542919882,{"$f":"RANK(V1219,$V:$V)","v":540},{"$f":"RANK(Y1219,Y:Y,1)","v":615},58,null,null,null,null,null,null,55]
[null,null,null,null,null,null,null,null,null,null,null,null,null,57,null,null,null,null,null,null,null,0.64324023111873596,755,487,57,null,null,null,null,null,null,55]
[null,null,null,null,null,null,null,null,null,null,null,null,null,66,null,null,null,null,null,null,null,0.6849202312991306,660,1710,66,null,null,null,null,null,null,58]
[null,null,null,null,null,null,null,null,null,null,null,null,null,71,null,null,null,null,null,null,null,0.3561598942195574,1323,1971,71,null,null,null,null,null,null,71]
[null,null,null,null,null,null,null,null,null,null,null,null,null,57,null,null,null,null,null,null,null,0.92451856724577408,157,487,57,null,null,null,null,null,null,54]
[null,null,null,null,null,null,null,null,null,null,null,null,null,63,null,null,null,null,null,null,null,0.60373080204519625,835,1349,63,null,null,null,null,null,null,59]
[null,null,null,null,null,null,null,null,null,null,null,null,null,56,null,null,null,null,null,null,null,5.2383367817831372E-2,1883,362,56,null,null,null,null,null,null,63]
[null,null,null,null,null,null,null,null,null,null,null,null,null,66,null,null,null,null,null,null,null,0.82306572459127436,372,1710,66,null,null,null,null,null,null,51]
[null,null,null,null,null,null,null,null,null,null,null,null,null,58,null,null,null,null,null,null,null,0.41421112060767862,1206,615,58,null,null,null,null,null,null,64]
[null,null,null,null,null,null,null,null,null,null,null,null,null,53,null,null,null,null,null,null,null,0.79447353257875664,429,139,53,null,null,null,null,null,null,60]
[null,null,null,null,null,null,null,null,null,null,null,null,null,49,null,null,null,null,null,null,null,0.99868273906317673,2,19,49,null,null,null,null,null,null,58]
[null,null,null,null,null,null,null,null,null,null,null,null,null,65,null,null,null,null,null,null,null,0.52116754910443619,995,1609,65,null,null,null,null,null,null,60]
[null,null,null,null,null,null,null,null,null,null,null,null,null,60,null,null,null,null,null,null,null,0.86500936340669354,274,903,60,null,null,null,null,null,null,52]
[null,null,null,null,null,null,null,null,null,null,null,null,null,59,null,null,null,null,null,null,null,0.7009926414505826,621,745,59,null,null,null,null,null,null,63]
[null,null,null,null,null,null,null,null,null,null,null,null,null,50,null,null,null,null,null,null,null,0.11951163942937826,1771,37,50,null,null,null,null,null,null,56]
[null,null,null,null,null,null,null,null,null,null,null,null,null,64,null,null,null,null,null,null,null,0.31327151871156578,1398,1487,64,null,null,null,null,null,null,63]
[null,null,null,null,null,null,null,null,null,null,null,null,null,67,null,null,null,null,null,null,null,0.6657398322972965,703,1791,67,null,null,null,null,null,null,66]
[null,null,null,null,null,null,null,null,null,null,null,null,null,60,null,null,null,null,null,null,null,0.17207577771214644,1675,903,60,null,null,null,null,null,null,57]
[null,null,null,null,null,null,null,null,null,null,null,null,null,53,null,null,null,null,null,null,null,0.52780852007053036,981,139,53,null,null,null,null,null,null,59]
[null,null,null,null,null,null,null,null,null,null,null,null,null,61,null,null,null,null,null,null,null,0.52917785129503903,976,1058,61,null,null,null,null,null,null,65]
[null,null,null,null,null,null,null,null,null,null,null,null,null,62,null,null,null,null,null,null,null,0.57150022312690518,903,1196,62,null,null,null,null,null,null,60]
[null,null,null,null,null,null,null,null,null,null,null,null,null,63,null,null,null,null,null,null,null,0.88435999753002548,236,1349,63,null,null,null,null,null,null,62]
[null,null,null,null,null,null,null,null,null,null,null,null,null,64,null,null,null,null,null,null,null,0.91216825710131,183,1487,64,null,null,null,null,null,null,60]
[null,null,null,null,null,null,null,null,null,null,null,null,null,66,null,null,null,null,null,null,null,0.142987632276523,1726,1710,66,null,null,null,null,null,null,60]
[null,null,null,null,null,null,null,null,null,null,null,null,null,60,null,null,null,null,null,null,null,0.62511353923050306,791,903,60,null,null,null,null,null,null,65]
[null,null,null,null,null,null,null,null,null,null,null,null,null,63,null,null,null,null,null,null,null,0.26891421377800129,1480,1349,63,null,null,null,null,null,null,50]
[null,null,null,null,null,null,null,null,null,null,null,null,null,52,null,null,null,null,null,null,null,0.57991408238774877,886,95,52,null,null,null,null,null,null,54]
[null,null,null,null,null,null,null,null,null,null,null,null,null,66,null,null,null,null,null,null,null,0.12550637276339871,1756,1710,66,null,null,null,null,null,null,63]
[null,null,null,null,null,null,null,null,null,null,null,null,null,47,null,null,null,null,null,null,null,0.11451435879629279,1782,4,47,null,null,null,null,null,null,51]
[null,null,null,null,null,null,null,null,null,null,null,null,null,48,null,null,null,null,null,null,null,0.28736468965101414,1443,13,48,null,null,null,null,null,null,57]
[null,null,null,null,null,null,null,null,null,null,null,null,null,63,null,null,null,null,null,null,null,0.73631320450501614,551,1349,63,null,null,null,null,null,null,57]
[null,null,null,null,null,null,null,null,null,null,null,null,null,57,null,null,null,null,null,null,null,0.48165012799455109,1088,487,57,null,null,null,null,null,null,66]
[null,null,null,null,null,null,null,null,null,null,null,null,null,53,null,null,null,null,null,null,null,0.78864497420480129,443,139,53,null,null,null,null,null,null,53]
[null,null,null,null,null,null,null,null,null,null,null,null,null,60,null,null,null,null,null,null,null,0.89318822236342066,218,903,60,null,null,null,null,null,null,54]
[null,null,null,null,null,null,null,null,null,null,null,null,null,52,null,null,null,null,null,null,null,0.94727071486889047,118,95,52,null,null,null,null,null,null,65]
[null,null,null,null,null,null,null,null,null,null,null,null,null,61,null,null,null,null,null,null,null,0.27954387767934696,1456,1058,61,null,null,null,null,null,null,60]
[null,null,null,null,null,null,null,null,null,null,null,null,null,65,null,null,null,null,null,null,null,3.5843882653996295E-2,1918,1609,65,null,null,null,null,null,null,55]
[null,null,null,null,null,null,null,null,null,null,null,null,null,59,null,null,null,null,null,null,null,0.21093237219955308,1603,745,59,null,null,null,null,null,null,56]
[null,null,null,null,null,null,null,null,null,null,null,null,null,59,null,null,null,null,null,null,null,2.3472027423995678E-2,1948,745,59,null,null,null,null,null,null,60]
[null,null,null,null,null,null,null,null,null,null,null,null,null,70,null,null,null,null,null,null,null,0.93553659316770399,140,1946,70,null,null,null,null,null,null,56]
[null,null,null,null,null,null,null,null,null,null,null,null,null,60,null,null,null,null,null,null,null,9.1348036102042118E-2,1817,903,60,null,null,null,null,null,null,57]
[null,null,null,null,null,null,null,null,null,null,null,null,null,63,null,null,null,null,null,null,null,0.29016884036881874,1437,1349,63,null,null,null,null,null,null,60]
[null,null,null,null,null,null,null,null,null,null,null,null,null,55,null,null,null,null,null,null,null,2.8408105551905649E-2,1941,269,55,null,null,null,null,null,null,61]
[null,null,null,null,null,null,null,null,null,null,null,null,null,71,null,null,null,null,null,null,null,0.57259036251143836,899,1971,71,null,null,null,null,null,null,64]
[null,null,null,null,null,null,null,null,null,null,null,null,null,59,null,null,null,null,null,null,null,0.14090330431420406,1732,745,59,null,null,null,null,null,null,63]
[null,null,null,null,null,null,null,null,null,null,null,null,null,65,null,null,null,null,null,null,null,0.24721791112453739,1530,1609,65,null,null,null,null,null,null,61]
[null,null,null,null,null,null,null,null,null,null,null,null,null,65,null,null,null,null,null,null,null,0.20016855275649814,1630,1609,65,null,null,null,null,null,null,67]
[null,null,null,null,null,null,null,null,null,null,null,null,null,66,null,null,null,null,null,null,null,0.26223794964652303,1495,1710,66,null,null,null,null,null,null,64]
[null,null,null,null,null,null,null,null,null,null,null,null,null,56,null,null,null,null,null,null,null,0.60569057747765775,829,362,56,null,null,null,null,null,null,62]
[null,null,null,null,null,null,null,null,null,null,null,null,null,52,null,null,null,null,null,null,null,0.8012192670425089,419,95,52,null,null,null,null,null,null,56]
[null,null,null,null,null,null,null,null,null,null,null,null,null,65,null,null,null,null,null,null,null,0.18828141641726859,1648,1609,65,null,null,null,null,null,null,61]
[null,null,null,null,null,null,null,null,null,null,null,null,null,66,null,null,null,null,null,null,null,0.42806587171806099,1185,1710,66,null,null,null,null,null,null,70]
[null,null,null,null,null,null,null,null,null,null,null,null,null,59,null,null,null,null,null,null,null,0.66352253266241934,709,745,59,null,null,null,null,null,null,70]
[null,null,null,null,null,null,null,null,null,null,null,null,null,62,null,null,null,null,null,null,null,0.26082667207701948,1496,1196,62,null,null,null,null,null,null,67]
[null,null,null,null,null,null,null,null,null,null,null,null,null,70,null,null,null,null,null,null,null,4.3374974086431872E-2,1899,1946,70,null,null,null,null,null,null,65]
[null,null,null,null,null,null,null,null,null,null,null,null,null,58,null,null,null,null,null,null,null,0.30734185044074258,1408,615,58,null,null,null,null,null,null,57]
[null,null,null,null,null,null,null,null,null,null,null,null,null,54,null,null,null,null,null,null,null,0.36487171865819645,1302,201,54,null,null,null,null,null,null,60]
[null,null,null,null,null,null,null,null,null,null,null,null,null,54,null,null,null,null,null,null,null,0.38533227922274282,1264,201,54,null,null,null,null,null,null,57]
[null,null,null,null,null,null,null,null,null,null,null,null,null,51,null,null,null,null,null,null,null,0.98823593744728411,25,63,51,null,null,null,null,null,null,56]
[null,null,null,null,null,null,null,null,null,null,null,null,null,66,null,null,null,null,null,null,null,3.8087279640716676E-2,1911,1710,66,null,null,null,null,null,null,53]
[null,null,null,null,null,null,null,null,null,null,null,null,null,63,null,null,null,null,null,null,null,0.63022595270939352,786,1349,63,null,null,null,null,null,null,59]
[null,null,null,null,null,null,null,null,null,null,null,null,null,64,null,null,null,null,null,null,null,0.9035574866339483,199,1487,64,null,null,null,null,null,null,55]
[null,null,null,null,null,null,null,null,null,null,null,null,null,60,null,null,null,null,null,null,null,0.50630782668086305,1028,903,60,null,null,null,null,null,null,57]
[null,null,null,null,null,null,null,null,null,null,null,null,null,57,null,null,null,null,null,null,null,{"$f":"IF(N1282=\"\",\"\",RAND())","v":0.35137524516789465},1330,487,{"$f":"N1282","v":57},null,null,null,null,null,null,{"$f":"ROUND(NORMINV(RAND(),mean,stddev),0)","v":45}]
[null,null,null,null,null,null,null,null,null,null,null,null,null,63,null,null,null,null,null,null,null,0.34516085381847494,{"$f":"RANK(V1283,$V:$V)","v":1343},{"$f":"RANK(Y1283,Y:Y,1)","v":1349},63,null,null,null,null,null,null,63]
[null,null,null,null,null,null,null,null,null,null,null,null,null,59,null,null,null,null,null,null,null,0.40625827761539912,1226,745,59,null,null,null,null,null,null,58]
[null,null,null,null,null,null,null,null,null,null,null,null,null,61,null,null,null,null,null,null,null,0.34638094779538686,1339,1058,61,null,null,null,null,null,null,56]
[null,null,null,null,null,null,null,null,null,null,null,null,null,56,null,null,null,null,null,null,null,0.80608800581964946,411,362,56,null,null,null,null,null,null,62]
[null,null,null,null,null,null,null,null,null,null,null,null,null,68,null,null,null,null,null,null,null,0.15799589703219341,1704,1857,68,null,null,null,null,null,null,58]
[null,null,null,null,null,null,null,null,null,null,null,null,null,64,null,null,null,null,null,null,null,0.17060836005050328,1680,1487,64,null,null,null,null,null,null,63]
[null,null,null,null,null,null,null,null,null,null,null,null,null,55,null,null,null,null,null,null,null,0.51759881414626618,1008,269,55,null,null,null,null,null,null,60]
[null,null,null,null,null,null,null,null,null,null,null,null,null,56,null,null,null,null,null,null,null,0.32058808656209092,1382,362,56,null,null,null,null,null,null,71]
[null,null,null,null,null,null,null,null,null,null,null,null,null,63,null,null,null,null,null,null,null,0.37499697633709661,1281,1349,63,null,null,null,null,null,null,59]
[null,null,null,null,null,null,null,null,null,null,null,null,null,57,null,null,null,null,null,null,null,0.68167932410633991,668,487,57,null,null,null,null,null,null,67]
[null,null,null,null,null,null,null,null,null,null,null,null,null,51,null,null,null,null,null,null,null,0.31979384016026469,1385,63,51,null,null,null,null,null,null,58]
[null,null,null,null,null,null,null,null,null,null,null,null,null,66,null,null,null,null,null,null,null,6.4288534037017064E-2,1864,1710,66,null,null,null,null,null,null,57]
[null,null,null,null,null,null,null,null,null,null,null,null,null,54,null,null,null,null,null,null,null,0.89132105687378527,223,201,54,null,null,null,null,null,null,61]
[null,null,null,null,null,null,null,null,null,null,null,null,null,59,null,null,null,null,null,null,null,0.81941321118201804,378,745,59,null,null,null,null,null,null,59]
[null,null,null,null,null,null,null,null,null,null,null,null,null,55,null,null,null,null,null,null,null,7.1932642312651618E-2,1850,269,55,null,null,null,null,null,null,60]
[null,null,null,null,null,null,null,null,null,null,null,null,null,74,null,null,null,null,null,null,null,0.37478985552041222,1282,1992,74,null,null,null,null,null,null,71]
[null,null,null,null,null,null,null,null,null,null,null,null,null,58,null,null,null,null,null,null,null,0.6834855869011095,663,615,58,null,null,null,null,null,null,60]
[null,null,null,null,null,null,null,null,null,null,null,null,null,58,null,null,null,null,null,null,null,0.41460203531820972,1204,615,58,null,null,null,null,null,null,62]
[null,null,null,null,null,null,null,null,null,null,null,null,null,66,null,null,null,null,null,null,null,0.63065518230733675,784,1710,66,null,null,null,null,null,null,62]
[null,null,null,null,null,null,null,null,null,null,null,null,null,57,null,null,null,null,null,null,null,0.72804960362089122,571,487,57,null,null,null,null,null,null,58]
[null,null,null,null,null,null,null,null,null,null,null,null,null,55,null,null,null,null,null,null,null,0.96924355417272789,68,269,55,null,null,null,null,null,null,60]
[null,null,null,null,null,null,null,null,null,null,null,null,null,53,null,null,null,null,null,null,null,6.5498596481919136E-2,1861,139,53,null,null,null,null,null,null,66]
[null,null,null,null,null,null,null,null,null,null,null,null,null,62,null,null,null,null,null,null,null,0.74794799747897511,530,1196,62,null,null,null,null,null,null,57]
[null,null,null,null,null,null,null,null,null,null,null,null,null,62,null,null,null,null,null,null,null,0.51594621917181949,1009,1196,62,null,null,null,null,null,null,63]
[null,null,null,null,null,null,null,null,null,null,null,null,null,60,null,null,null,null,null,null,null,0.35471075742456537,1325,903,60,null,null,null,null,null,null,64]
[null,null,null,null,null,null,null,null,null,null,null,null,null,56,null,null,null,null,null,null,null,0.68655659011747605,654,362,56,null,null,null,null,null,null,58]
[null,null,null,null,null,null,null,null,null,null,null,null,null,65,null,null,null,null,null,null,null,0.84376717535795365,319,1609,65,null,null,null,null,null,null,60]
[null,null,null,null,null,null,null,null,null,null,null,null,null,48,null,null,null,null,null,null,null,0.5820086939733371,882,13,48,null,null,null,null,null,null,60]
[null,null,null,null,null,null,null,null,null,null,null,null,null,60,null,null,null,null,null,null,null,0.10659071048174706,1794,903,60,null,null,null,null,null,null,60]
[null,null,null,null,null,null,null,null,null,null,null,null,null,60,null,null,null,null,null,null,null,0.34842731859975729,1333,903,60,null,null,null,null,null,null,49]
[null,null,null,null,null,null,null,null,null,null,null,null,null,56,null,null,null,null,null,null,null,0.82103708973610834,375,362,56,null,null,null,null,null,null,58]
[null,null,null,null,null,null,null,null,null,null,null,null,null,63,null,null,null,null,null,null,null,0.8685383057965822,271,1349,63,null,null,null,null,null,null,62]
[null,null,null,null,null,null,null,null,null,null,null,null,null,56,null,null,null,null,null,null,null,0.72013002378797775,587,362,56,null,null,null,null,null,null,64]
[null,null,null,null,null,null,null,null,null,null,null,null,null,49,null,null,null,null,null,null,null,0.55754331655652078,922,19,49,null,null,null,null,null,null,62]
[null,null,null,null,null,null,null,null,null,null,null,null,null,58,null,null,null,null,null,null,null,0.69132496427584056,645,615,58,null,null,null,null,null,null,53]
[null,null,null,null,null,null,null,null,null,null,null,null,null,60,null,null,null,null,null,null,null,0.18547208081460798,1650,903,60,null,null,null,null,null,null,60]
[null,null,null,null,null,null,null,null,null,null,null,null,null,63,null,null,null,null,null,null,null,0.37868381140051854,1276,1349,63,null,null,null,null,null,null,58]
[null,null,null,null,null,null,null,null,null,null,null,null,null,51,null,null,null,null,null,null,null,0.40032699699447116,1239,63,51,null,null,null,null,null,null,61]
[null,null,null,null,null,null,null,null,null,null,null,null,null,59,null,null,null,null,null,null,null,0.40201339013680493,1236,745,59,null,null,null,null,null,null,62]
[null,null,null,null,null,null,null,null,null,null,null,null,null,65,null,null,null,null,null,null,null,9.9414551478328783E-2,1805,1609,65,null,null,null,null,null,null,53]
[null,null,null,null,null,null,null,null,null,null,null,null,null,66,null,null,null,null,null,null,null,0.60687454644640237,825,1710,66,null,null,null,null,null,null,57]
[null,null,null,null,null,null,null,null,null,null,null,null,null,62,null,null,null,null,null,null,null,0.20210982275505573,1625,1196,62,null,null,null,null,null,null,54]
[null,null,null,null,null,null,null,null,null,null,null,null,null,61,null,null,null,null,null,null,null,0.56669778551106176,912,1058,61,null,null,null,null,null,null,71]
[null,null,null,null,null,null,null,null,null,null,null,null,null,56,null,null,null,null,null,null,null,0.88976879962642974,227,362,56,null,null,null,null,null,null,62]
[null,null,null,null,null,null,null,null,null,null,null,null,null,63,null,null,null,null,null,null,null,0.94924156664253978,112,1349,63,null,null,null,null,null,null,60]
[null,null,null,null,null,null,null,null,null,null,null,null,null,68,null,null,null,null,null,null,null,0.94229015425870033,125,1857,68,null,null,null,null,null,null,63]
[null,null,null,null,null,null,null,null,null,null,null,null,null,65,null,null,null,null,null,null,null,0.90972607567351982,193,1609,65,null,null,null,null,null,null,55]
[null,null,null,null,null,null,null,null,null,null,null,null,null,63,null,null,null,null,null,null,null,0.64025796778246025,764,1349,63,null,null,null,null,null,null,61]
[null,null,null,null,null,null,null,null,null,null,null,null,null,61,null,null,null,null,null,null,null,7.6058118674539932E-2,1840,1058,61,null,null,null,null,null,null,55]
[null,null,null,null,null,null,null,null,null,null,null,null,null,61,null,null,null,null,null,null,null,0.50158625628049802,1040,1058,61,null,null,null,null,null,null,59]
[null,null,null,null,null,null,null,null,null,null,null,null,null,68,null,null,null,null,null,null,null,0.86493041256053871,275,1857,68,null,null,null,null,null,null,59]
[null,null,null,null,null,null,null,null,null,null,null,null,null,60,null,null,null,null,null,null,null,0.931450500705434,145,903,60,null,null,null,null,null,null,56]
[null,null,null,null,null,null,null,null,null,null,null,null,null,63,null,null,null,null,null,null,null,0.558472676087297,920,1349,63,null,null,null,null,null,null,62]
[null,null,null,null,null,null,null,null,null,null,null,null,null,62,null,null,null,null,null,null,null,0.32795421399399016,1371,1196,62,null,null,null,null,null,null,60]
[null,null,null,null,null,null,null,null,null,null,null,null,null,57,null,null,null,null,null,null,null,0.60715814637617616,824,487,57,null,null,null,null,null,null,64]
[null,null,null,null,null,null,null,null,null,null,null,null,null,63,null,null,null,null,null,null,null,0.7742529226780015,475,1349,63,null,null,null,null,null,null,59]
[null,null,null,null,null,null,null,null,null,null,null,null,null,60,null,null,null,null,null,null,null,0.12967212851087195,1752,903,60,null,null,null,null,null,null,68]
[null,null,null,null,null,null,null,null,null,null,null,null,null,65,null,null,null,null,null,null,null,0.57599313755813442,892,1609,65,null,null,null,null,null,null,56]
[null,null,null,null,null,null,null,null,null,null,null,null,null,53,null,null,null,null,null,null,null,0.40947295229270342,1218,139,53,null,null,null,null,null,null,59]
[null,null,null,null,null,null,null,null,null,null,null,null,null,58,null,null,null,null,null,null,null,0.9583083139638795,91,615,58,null,null,null,null,null,null,64]
[null,null,null,null,null,null,null,null,null,null,null,null,null,68,null,null,null,null,null,null,null,0.88364452402547755,237,1857,68,null,null,null,null,null,null,70]
[null,null,null,null,null,null,null,null,null,null,null,null,null,67,null,null,null,null,null,null,null,0.64466871762608857,753,1791,67,null,null,null,null,null,null,64]
[null,null,null,null,null,null,null,null,null,null,null,null,null,60,null,null,null,null,null,null,null,0.28669713698680843,1444,903,60,null,null,null,null,null,null,67]
[null,null,null,null,null,null,null,null,null,null,null,null,null,60,null,null,null,null,null,null,null,{"$f":"IF(N1346=\"\",\"\",RAND())","v":0.14819418066743684},1719,903,{"$f":"N1346","v":60},null,null,null,null,null,null,{"$f":"ROUND(NORMINV(RAND(),mean,stddev),0)","v":58}]
[null,null,null,null,null,null,null,null,null,null,null,null,null,53,null,null,null,null,null,null,null,0.50692726632301111,{"$f":"RANK(V1347,$V:$V)","v":1027},{"$f":"RANK(Y1347,Y:Y,1)","v":139},53,null,null,null,null,null,null,61]
[null,null,null,null,null,null,null,null,null,null,null,null,null,58,null,null,null,null,null,null,null,0.95994869642086655,88,615,58,null,null,null,null,null,null,65]
[null,null,null,null,null,null,null,null,null,null,null,null,null,65,null,null,null,null,null,null,null,0.69752135214085753,634,1609,65,null,null,null,null,null,null,62]
[null,null,null,null,null,null,null,null,null,null,null,null,null,64,null,null,null,null,null,null,null,0.12163392550405194,1763,1487,64,null,null,null,null,null,null,67]
[null,null,null,null,null,null,null,null,null,null,null,null,null,62,null,null,null,null,null,null,null,0.5705596708863806,905,1196,62,null,null,null,null,null,null,58]
[null,null,null,null,null,null,null,null,null,null,null,null,null,53,null,null,null,null,null,null,null,0.11999168163256346,1770,139,53,null,null,null,null,null,null,58]
[null,null,null,null,null,null,null,null,null,null,null,null,null,59,null,null,null,null,null,null,null,0.4338326050115906,1173,745,59,null,null,null,null,null,null,62]
[null,null,null,null,null,null,null,null,null,null,null,null,null,56,null,null,null,null,null,null,null,0.26277313689133908,1492,362,56,null,null,null,null,null,null,54]
[null,null,null,null,null,null,null,null,null,null,null,null,null,58,null,null,null,null,null,null,null,0.81792922884076369,381,615,58,null,null,null,null,null,null,55]
[null,null,null,null,null,null,null,null,null,null,null,null,null,69,null,null,null,null,null,null,null,0.75409145033904923,516,1909,69,null,null,null,null,null,null,57]
[null,null,null,null,null,null,null,null,null,null,null,null,null,52,null,null,null,null,null,null,null,0.94999108007429534,110,95,52,null,null,null,null,null,null,54]
[null,null,null,null,null,null,null,null,null,null,null,null,null,60,null,null,null,null,null,null,null,0.22352799573869508,1576,903,60,null,null,null,null,null,null,62]
[null,null,null,null,null,null,null,null,null,null,null,null,null,55,null,null,null,null,null,null,null,0.45787469962928518,1125,269,55,null,null,null,null,null,null,55]
[null,null,null,null,null,null,null,null,null,null,null,null,null,61,null,null,null,null,null,null,null,0.95569526016775885,98,1058,61,null,null,null,null,null,null,62]
[null,null,null,null,null,null,null,null,null,null,null,null,null,51,null,null,null,null,null,null,null,0.13947499478063774,1737,63,51,null,null,null,null,null,null,54]
[null,null,null,null,null,null,null,null,null,null,null,null,null,60,null,null,null,null,null,null,null,0.49898655656406121,1045,903,60,null,null,null,null,null,null,64]
[null,null,null,null,null,null,null,null,null,null,null,null,null,65,null,null,null,null,null,null,null,0.49470978711894809,1058,1609,65,null,null,null,null,null,null,57]
[null,null,null,null,null,null,null,null,null,null,null,null,null,60,null,null,null,null,null,null,null,0.52838750700843973,978,903,60,null,null,null,null,null,null,60]
[null,null,null,null,null,null,null,null,null,null,null,null,null,62,null,null,null,null,null,null,null,0.50863707360012567,1023,1196,62,null,null,null,null,null,null,59]
[null,null,null,null,null,null,null,null,null,null,null,null,null,65,null,null,null,null,null,null,null,0.78006417793417959,456,1609,65,null,null,null,null,null,null,61]
[null,null,null,null,null,null,null,null,null,null,null,null,null,58,null,null,null,null,null,null,null,0.9926089233573745,12,615,58,null,null,null,null,null,null,51]
[null,null,null,null,null,null,null,null,null,null,null,null,null,59,null,null,null,null,null,null,null,0.21906215176658539,1584,745,59,null,null,null,null,null,null,60]
[null,null,null,null,null,null,null,null,null,null,null,null,null,68,null,null,null,null,null,null,null,0.8547698381911446,292,1857,68,null,null,null,null,null,null,54]
[null,null,null,null,null,null,null,null,null,null,null,null,null,59,null,null,null,null,null,null,null,0.31669985445529447,1393,745,59,null,null,null,null,null,null,55]
[null,null,null,null,null,null,null,null,null,null,null,null,null,63,null,null,null,null,null,null,null,0.5413872048230608,956,1349,63,null,null,null,null,null,null,60]
[null,null,null,null,null,null,null,null,null,null,null,null,null,58,null,null,null,null,null,null,null,0.77697312537850782,465,615,58,null,null,null,null,null,null,59]
[null,null,null,null,null,null,null,null,null,null,null,null,null,56,null,null,null,null,null,null,null,0.71254251763731169,601,362,56,null,null,null,null,null,null,59]
[null,null,null,null,null,null,null,null,null,null,null,null,null,60,null,null,null,null,null,null,null,6.577495045731907E-3,1990,903,60,null,null,null,null,null,null,63]
[null,null,null,null,null,null,null,null,null,null,null,null,null,63,null,null,null,null,null,null,null,0.66865251974068829,696,1349,63,null,null,null,null,null,null,57]
[null,null,null,null,null,null,null,null,null,null,null,null,null,48,null,null,null,null,null,null,null,0.64561504531141256,749,13,48,null,null,null,null,null,null,66]
[null,null,null,null,null,null,null,null,null,null,null,null,null,59,null,null,null,null,null,null,null,0.8294946376923491,353,745,59,null,null,null,null,null,null,56]
[null,null,null,null,null,null,null,null,null,null,null,null,null,55,null,null,null,null,null,null,null,0.22765085008335217,1570,269,55,null,null,null,null,null,null,58]
[null,null,null,null,null,null,null,null,null,null,null,null,null,58,null,null,null,null,null,null,null,0.56889860111627066,910,615,58,null,null,null,null,null,null,62]
[null,null,null,null,null,null,null,null,null,null,null,null,null,61,null,null,null,null,null,null,null,0.68934851097334626,648,1058,61,null,null,null,null,null,null,60]
[null,null,null,null,null,null,null,null,null,null,null,null,null,61,null,null,null,null,null,null,null,0.65168435353015974,733,1058,61,null,null,null,null,null,null,66]
[null,null,null,null,null,null,null,null,null,null,null,null,null,61,null,null,null,null,null,null,null,0.15678247195817785,1706,1058,61,null,null,null,null,null,null,66]
[null,null,null,null,null,null,null,null,null,null,null,null,null,58,null,null,null,null,null,null,null,0.40720183759839712,1224,615,58,null,null,null,null,null,null,62]
[null,null,null,null,null,null,null,null,null,null,null,null,null,61,null,null,null,null,null,null,null,0.23765379655400742,1550,1058,61,null,null,null,null,null,null,66]
[null,null,null,null,null,null,null,null,null,null,null,null,null,59,null,null,null,null,null,null,null,0.49518702943683079,1056,745,59,null,null,null,null,null,null,59]
[null,null,null,null,null,null,null,null,null,null,null,null,null,60,null,null,null,null,null,null,null,0.44709122829709957,1152,903,60,null,null,null,null,null,null,57]
[null,null,null,null,null,null,null,null,null,null,null,null,null,64,null,null,null,null,null,null,null,0.14920754540790271,1715,1487,64,null,null,null,null,null,null,52]
[null,null,null,null,null,null,null,null,null,null,null,null,null,60,null,null,null,null,null,null,null,3.6119299520920856E-2,1917,903,60,null,null,null,null,null,null,54]
[null,null,null,null,null,null,null,null,null,null,null,null,null,57,null,null,null,null,null,null,null,0.27469625734540615,1470,487,57,null,null,null,null,null,null,49]
[null,null,null,null,null,null,null,null,null,null,null,null,null,61,null,null,null,null,null,null,null,3.0455828526381179E-2,1932,1058,61,null,null,null,null,null,null,64]
[null,null,null,null,null,null,null,null,null,null,null,null,null,58,null,null,null,null,null,null,null,0.35886468667192628,1319,615,58,null,null,null,null,null,null,57]
[null,null,null,null,null,null,null,null,null,null,null,null,null,64,null,null,null,null,null,null,null,0.44017548688100161,1163,1487,64,null,null,null,null,null,null,62]
[null,null,null,null,null,null,null,null,null,null,null,null,null,61,null,null,null,null,null,null,null,0.66441935910251382,707,1058,61,null,null,null,null,null,null,52]
[null,null,null,null,null,null,null,null,null,null,null,null,null,53,null,null,null,null,null,null,null,0.34334769545557087,1346,139,53,null,null,null,null,null,null,58]
[null,null,null,null,null,null,null,null,null,null,null,null,null,61,null,null,null,null,null,null,null,0.17470710596201966,1669,1058,61,null,null,null,null,null,null,64]
[null,null,null,null,null,null,null,null,null,null,null,null,null,58,null,null,null,null,null,null,null,8.2204726403214634E-2,1831,615,58,null,null,null,null,null,null,61]
[null,null,null,null,null,null,null,null,null,null,null,null,null,57,null,null,null,null,null,null,null,6.611264830680752E-3,1989,487,57,null,null,null,null,null,null,69]
[null,null,null,null,null,null,null,null,null,null,null,null,null,61,null,null,null,null,null,null,null,0.70551532424436836,613,1058,61,null,null,null,null,null,null,51]
[null,null,null,null,null,null,null,null,null,null,null,null,null,60,null,null,null,null,null,null,null,0.63126370925948783,781,903,60,null,null,null,null,null,null,66]
[null,null,null,null,null,null,null,null,null,null,null,null,null,53,null,null,null,null,null,null,null,0.72014083846499699,586,139,53,null,null,null,null,null,null,56]
[null,null,null,null,null,null,null,null,null,null,null,null,null,53,null,null,null,null,null,null,null,1.815587556754561E-2,1963,139,53,null,null,null,null,null,null,56]
[null,null,null,null,null,null,null,null,null,null,null,null,null,58,null,null,null,null,null,null,null,0.74665005113154748,534,615,58,null,null,null,null,null,null,55]
[null,null,null,null,null,null,null,null,null,null,null,null,null,59,null,null,null,null,null,null,null,4.2527483069175087E-2,1901,745,59,null,null,null,null,null,null,52]
[null,null,null,null,null,null,null,null,null,null,null,null,null,60,null,null,null,null,null,null,null,0.46410066739645794,1116,903,60,null,null,null,null,null,null,60]
[null,null,null,null,null,null,null,null,null,null,null,null,null,64,null,null,null,null,null,null,null,0.46846100356310783,1111,1487,64,null,null,null,null,null,null,59]
[null,null,null,null,null,null,null,null,null,null,null,null,null,58,null,null,null,null,null,null,null,0.27693762531168797,1463,615,58,null,null,null,null,null,null,55]
[null,null,null,null,null,null,null,null,null,null,null,null,null,50,null,null,null,null,null,null,null,0.63311048707547701,777,37,50,null,null,null,null,null,null,68]
[null,null,null,null,null,null,null,null,null,null,null,null,null,54,null,null,null,null,null,null,null,0.25126145194841909,1522,201,54,null,null,null,null,null,null,62]
[null,null,null,null,null,null,null,null,null,null,null,null,null,56,null,null,null,null,null,null,null,0.85456576686731645,293,362,56,null,null,null,null,null,null,59]
[null,null,null,null,null,null,null,null,null,null,null,null,null,56,null,null,null,null,null,null,null,{"$f":"IF(N1410=\"\",\"\",RAND())","v":1.4056471993105002E-2},1977,362,{"$f":"N1410","v":56},null,null,null,null,null,null,{"$f":"ROUND(NORMINV(RAND(),mean,stddev),0)","v":57}]
[null,null,null,null,null,null,null,null,null,null,null,null,null,55,null,null,null,null,null,null,null,0.44361925450067363,{"$f":"RANK(V1411,$V:$V)","v":1159},{"$f":"RANK(Y1411,Y:Y,1)","v":269},55,null,null,null,null,null,null,62]
[null,null,null,null,null,null,null,null,null,null,null,null,null,67,null,null,null,null,null,null,null,0.5208891760359059,996,1791,67,null,null,null,null,null,null,58]
[null,null,null,null,null,null,null,null,null,null,null,null,null,64,null,null,null,null,null,null,null,0.20980742197603042,1607,1487,64,null,null,null,null,null,null,64]
[null,null,null,null,null,null,null,null,null,null,null,null,null,59,null,null,null,null,null,null,null,2.6744061595501023E-2,1942,745,59,null,null,null,null,null,null,73]
[null,null,null,null,null,null,null,null,null,null,null,null,null,63,null,null,null,null,null,null,null,0.77607342016120018,469,1349,63,null,null,null,null,null,null,66]
[null,null,null,null,null,null,null,null,null,null,null,null,null,67,null,null,null,null,null,null,null,3.2405893014511689E-2,1926,1791,67,null,null,null,null,null,null,51]
[null,null,null,null,null,null,null,null,null,null,null,null,null,61,null,null,null,null,null,null,null,0.11792176735455506,1773,1058,61,null,null,null,null,null,null,66]
[null,null,null,null,null,null,null,null,null,null,null,null,null,54,null,null,null,null,null,null,null,0.36920086185306311,1293,201,54,null,null,null,null,null,null,57]
[null,null,null,null,null,null,null,null,null,null,null,null,null,57,null,null,null,null,null,null,null,4.8790895194324113E-2,1891,487,57,null,null,null,null,null,null,65]
[null,null,null,null,null,null,null,null,null,null,null,null,null,63,null,null,null,null,null,null,null,0.33202553401733281,1363,1349,63,null,null,null,null,null,null,68]
[null,null,null,null,null,null,null,null,null,null,null,null,null,66,null,null,null,null,null,null,null,0.58509981154125223,876,1710,66,null,null,null,null,null,null,63]
[null,null,null,null,null,null,null,null,null,null,null,null,null,62,null,null,null,null,null,null,null,0.44938557780107313,1148,1196,62,null,null,null,null,null,null,61]
[null,null,null,null,null,null,null,null,null,null,null,null,null,68,null,null,null,null,null,null,null,0.93916445328343201,133,1857,68,null,null,null,null,null,null,58]
[null,null,null,null,null,null,null,null,null,null,null,null,null,65,null,null,null,null,null,null,null,0.89250448148927108,219,1609,65,null,null,null,null,null,null,57]
[null,null,null,null,null,null,null,null,null,null,null,null,null,57,null,null,null,null,null,null,null,0.79277660686982043,434,487,57,null,null,null,null,null,null,61]
[null,null,null,null,null,null,null,null,null,null,null,null,null,51,null,null,null,null,null,null,null,0.51593465359383028,1010,63,51,null,null,null,null,null,null,56]
[null,null,null,null,null,null,null,null,null,null,null,null,null,61,null,null,null,null,null,null,null,0.45756456205815144,1126,1058,61,null,null,null,null,null,null,60]
[null,null,null,null,null,null,null,null,null,null,null,null,null,53,null,null,null,null,null,null,null,0.52035817443771304,998,139,53,null,null,null,null,null,null,54]
[null,null,null,null,null,null,null,null,null,null,null,null,null,63,null,null,null,null,null,null,null,0.53537728913656457,969,1349,63,null,null,null,null,null,null,62]
[null,null,null,null,null,null,null,null,null,null,null,null,null,64,null,null,null,null,null,null,null,0.74557544927994457,537,1487,64,null,null,null,null,null,null,56]
[null,null,null,null,null,null,null,null,null,null,null,null,null,54,null,null,null,null,null,null,null,0.38656887160655806,1259,201,54,null,null,null,null,null,null,68]
[null,null,null,null,null,null,null,null,null,null,null,null,null,65,null,null,null,null,null,null,null,0.67262812071336475,682,1609,65,null,null,null,null,null,null,65]
[null,null,null,null,null,null,null,null,null,null,null,null,null,64,null,null,null,null,null,null,null,0.82436385779301313,368,1487,64,null,null,null,null,null,null,71]
[null,null,null,null,null,null,null,null,null,null,null,null,null,58,null,null,null,null,null,null,null,8.525857986143548E-2,1827,615,58,null,null,null,null,null,null,66]
[null,null,null,null,null,null,null,null,null,null,null,null,null,58,null,null,null,null,null,null,null,2.5380693040838231E-2,1944,615,58,null,null,null,null,null,null,70]
[null,null,null,null,null,null,null,null,null,null,null,null,null,67,null,null,null,null,null,null,null,0.29770442624192883,1426,1791,67,null,null,null,null,null,null,54]
[null,null,null,null,null,null,null,null,null,null,null,null,null,58,null,null,null,null,null,null,null,0.62789427198091041,787,615,58,null,null,null,null,null,null,58]
[null,null,null,null,null,null,null,null,null,null,null,null,null,65,null,null,null,null,null,null,null,0.89744859816542966,213,1609,65,null,null,null,null,null,null,65]
[null,null,null,null,null,null,null,null,null,null,null,null,null,63,null,null,null,null,null,null,null,0.96706507615983728,73,1349,63,null,null,null,null,null,null,69]
[null,null,null,null,null,null,null,null,null,null,null,null,null,59,null,null,null,null,null,null,null,0.28921499240847004,1439,745,59,null,null,null,null,null,null,60]
[null,null,null,null,null,null,null,null,null,null,null,null,null,56,null,null,null,null,null,null,null,0.49307872069777592,1061,362,56,null,null,null,null,null,null,56]
[null,null,null,null,null,null,null,null,null,null,null,null,null,59,null,null,null,null,null,null,null,0.17613180103214388,1665,745,59,null,null,null,null,null,null,54]
[null,null,null,null,null,null,null,null,null,null,null,null,null,61,null,null,null,null,null,null,null,0.17848022427136268,1660,1058,61,null,null,null,null,null,null,64]
[null,null,null,null,null,null,null,null,null,null,null,null,null,61,null,null,null,null,null,null,null,0.91308408311511313,181,1058,61,null,null,null,null,null,null,64]
[null,null,null,null,null,null,null,null,null,null,null,null,null,56,null,null,null,null,null,null,null,0.6759607653609031,679,362,56,null,null,null,null,null,null,60]
[null,null,null,null,null,null,null,null,null,null,null,null,null,54,null,null,null,null,null,null,null,0.54002244480516504,959,201,54,null,null,null,null,null,null,64]
[null,null,null,null,null,null,null,null,null,null,null,null,null,61,null,null,null,null,null,null,null,0.3487028404301511,1332,1058,61,null,null,null,null,null,null,60]
[null,null,null,null,null,null,null,null,null,null,null,null,null,61,null,null,null,null,null,null,null,0.51119887749300341,1018,1058,61,null,null,null,null,null,null,52]
[null,null,null,null,null,null,null,null,null,null,null,null,null,63,null,null,null,null,null,null,null,0.36500126155983792,1301,1349,63,null,null,null,null,null,null,64]
[null,null,null,null,null,null,null,null,null,null,null,null,null,59,null,null,null,null,null,null,null,0.85061051580043578,304,745,59,null,null,null,null,null,null,62]
[null,null,null,null,null,null,null,null,null,null,null,null,null,55,null,null,null,null,null,null,null,0.67125222127495787,685,269,55,null,null,null,null,null,null,46]
[null,null,null,null,null,null,null,null,null,null,null,null,null,58,null,null,null,null,null,null,null,3.9390831731923481E-2,1906,615,58,null,null,null,null,null,null,58]
[null,null,null,null,null,null,null,null,null,null,null,null,null,60,null,null,null,null,null,null,null,0.45087432237058089,1145,903,60,null,null,null,null,null,null,55]
[null,null,null,null,null,null,null,null,null,null,null,null,null,60,null,null,null,null,null,null,null,0.67009821376170975,690,903,60,null,null,null,null,null,null,59]
[null,null,null,null,null,null,null,null,null,null,null,null,null,67,null,null,null,null,null,null,null,0.63110370872535893,782,1791,67,null,null,null,null,null,null,61]
[null,null,null,null,null,null,null,null,null,null,null,null,null,57,null,null,null,null,null,null,null,0.4025196713767738,1234,487,57,null,null,null,null,null,null,62]
[null,null,null,null,null,null,null,null,null,null,null,null,null,52,null,null,null,null,null,null,null,0.58891810480261919,867,95,52,null,null,null,null,null,null,48]
[null,null,null,null,null,null,null,null,null,null,null,null,null,56,null,null,null,null,null,null,null,8.759146681354768E-2,1824,362,56,null,null,null,null,null,null,62]
[null,null,null,null,null,null,null,null,null,null,null,null,null,58,null,null,null,null,null,null,null,0.5879490700408414,869,615,58,null,null,null,null,null,null,54]
[null,null,null,null,null,null,null,null,null,null,null,null,null,64,null,null,null,null,null,null,null,0.32717295942303271,1372,1487,64,null,null,null,null,null,null,50]
[null,null,null,null,null,null,null,null,null,null,null,null,null,60,null,null,null,null,null,null,null,0.39606836268744072,1247,903,60,null,null,null,null,null,null,60]
[null,null,null,null,null,null,null,null,null,null,null,null,null,61,null,null,null,null,null,null,null,0.17826086874036418,1662,1058,61,null,null,null,null,null,null,61]
[null,null,null,null,null,null,null,null,null,null,null,null,null,54,null,null,null,null,null,null,null,0.91680683968934029,175,201,54,null,null,null,null,null,null,62]
[null,null,null,null,null,null,null,null,null,null,null,null,null,61,null,null,null,null,null,null,null,0.99432986077450358,9,1058,61,null,null,null,null,null,null,57]
[null,null,null,null,null,null,null,null,null,null,null,null,null,60,null,null,null,null,null,null,null,2.3036536377605388E-2,1949,903,60,null,null,null,null,null,null,55]
[null,null,null,null,null,null,null,null,null,null,null,null,null,57,null,null,null,null,null,null,null,1.7386615302090513E-2,1968,487,57,null,null,null,null,null,null,57]
[null,null,null,null,null,null,null,null,null,null,null,null,null,58,null,null,null,null,null,null,null,0.55219447178151726,933,615,58,null,null,null,null,null,null,67]
[null,null,null,null,null,null,null,null,null,null,null,null,null,57,null,null,null,null,null,null,null,0.49756844220666585,1050,487,57,null,null,null,null,null,null,59]
[null,null,null,null,null,null,null,null,null,null,null,null,null,54,null,null,null,null,null,null,null,7.8891826981760782E-2,1835,201,54,null,null,null,null,null,null,58]
[null,null,null,null,null,null,null,null,null,null,null,null,null,62,null,null,null,null,null,null,null,0.87288299333440611,260,1196,62,null,null,null,null,null,null,68]
[null,null,null,null,null,null,null,null,null,null,null,null,null,54,null,null,null,null,null,null,null,0.65022008050910329,737,201,54,null,null,null,null,null,null,57]
[null,null,null,null,null,null,null,null,null,null,null,null,null,73,null,null,null,null,null,null,null,0.98349621838322465,31,1989,73,null,null,null,null,null,null,55]
[null,null,null,null,null,null,null,null,null,null,null,null,null,59,null,null,null,null,null,null,null,0.48246123837319388,1085,745,59,null,null,null,null,null,null,62]
[null,null,null,null,null,null,null,null,null,null,null,null,null,69,null,null,null,null,null,null,null,{"$f":"IF(N1474=\"\",\"\",RAND())","v":0.9775998347572582},46,1909,{"$f":"N1474","v":69},null,null,null,null,null,null,{"$f":"ROUND(NORMINV(RAND(),mean,stddev),0)","v":58}]
[null,null,null,null,null,null,null,null,null,null,null,null,null,68,null,null,null,null,null,null,null,0.8275405706897192,{"$f":"RANK(V1475,$V:$V)","v":357},{"$f":"RANK(Y1475,Y:Y,1)","v":1857},68,null,null,null,null,null,null,67]
[null,null,null,null,null,null,null,null,null,null,null,null,null,67,null,null,null,null,null,null,null,0.50435189454160856,1030,1791,67,null,null,null,null,null,null,62]
[null,null,null,null,null,null,null,null,null,null,null,null,null,60,null,null,null,null,null,null,null,0.3588749825008124,1318,903,60,null,null,null,null,null,null,56]
[null,null,null,null,null,null,null,null,null,null,null,null,null,47,null,null,null,null,null,null,null,0.85729208084912045,285,4,47,null,null,null,null,null,null,46]
[null,null,null,null,null,null,null,null,null,null,null,null,null,59,null,null,null,null,null,null,null,0.28302910930990599,1453,745,59,null,null,null,null,null,null,50]
[null,null,null,null,null,null,null,null,null,null,null,null,null,61,null,null,null,null,null,null,null,0.2576705323573949,1510,1058,61,null,null,null,null,null,null,66]
[null,null,null,null,null,null,null,null,null,null,null,null,null,65,null,null,null,null,null,null,null,0.12239310879887177,1761,1609,65,null,null,null,null,null,null,53]
[null,null,null,null,null,null,null,null,null,null,null,null,null,60,null,null,null,null,null,null,null,0.13110838785205436,1751,903,60,null,null,null,null,null,null,55]
[null,null,null,null,null,null,null,null,null,null,null,null,null,65,null,null,null,null,null,null,null,0.5204391794788944,997,1609,65,null,null,null,null,null,null,59]
[null,null,null,null,null,null,null,null,null,null,null,null,null,57,null,null,null,null,null,null,null,0.18257937867248497,1655,487,57,null,null,null,null,null,null,53]
[null,null,null,null,null,null,null,null,null,null,null,null,null,56,null,null,null,null,null,null,null,0.76835496080691124,490,362,56,null,null,null,null,null,null,63]
[null,null,null,null,null,null,null,null,null,null,null,null,null,60,null,null,null,null,null,null,null,0.76349588258089107,498,903,60,null,null,null,null,null,null,57]
[null,null,null,null,null,null,null,null,null,null,null,null,null,54,null,null,null,null,null,null,null,5.4252744257025975E-2,1879,201,54,null,null,null,null,null,null,60]
[null,null,null,null,null,null,null,null,null,null,null,null,null,66,null,null,null,null,null,null,null,0.25509763578657718,1515,1710,66,null,null,null,null,null,null,62]
[null,null,null,null,null,null,null,null,null,null,null,null,null,52,null,null,null,null,null,null,null,0.95693211972952774,97,95,52,null,null,null,null,null,null,58]
[null,null,null,null,null,null,null,null,null,null,null,null,null,54,null,null,null,null,null,null,null,0.62561478054789632,789,201,54,null,null,null,null,null,null,61]
[null,null,null,null,null,null,null,null,null,null,null,null,null,67,null,null,null,null,null,null,null,0.57882248039926043,888,1791,67,null,null,null,null,null,null,59]
[null,null,null,null,null,null,null,null,null,null,null,null,null,58,null,null,null,null,null,null,null,0.22042442277699326,1581,615,58,null,null,null,null,null,null,60]
[null,null,null,null,null,null,null,null,null,null,null,null,null,55,null,null,null,null,null,null,null,0.76698220417609053,494,269,55,null,null,null,null,null,null,60]
[null,null,null,null,null,null,null,null,null,null,null,null,null,59,null,null,null,null,null,null,null,0.52749535486420152,982,745,59,null,null,null,null,null,null,55]
[null,null,null,null,null,null,null,null,null,null,null,null,null,65,null,null,null,null,null,null,null,0.54762792820348782,942,1609,65,null,null,null,null,null,null,61]
[null,null,null,null,null,null,null,null,null,null,null,null,null,62,null,null,null,null,null,null,null,0.14866226613160893,1718,1196,62,null,null,null,null,null,null,64]
[null,null,null,null,null,null,null,null,null,null,null,null,null,58,null,null,null,null,null,null,null,0.15135586549091928,1711,615,58,null,null,null,null,null,null,58]
[null,null,null,null,null,null,null,null,null,null,null,null,null,57,null,null,null,null,null,null,null,0.3053943275479748,1414,487,57,null,null,null,null,null,null,65]
[null,null,null,null,null,null,null,null,null,null,null,null,null,62,null,null,null,null,null,null,null,0.69584597657597058,636,1196,62,null,null,null,null,null,null,56]
[null,null,null,null,null,null,null,null,null,null,null,null,null,65,null,null,null,null,null,null,null,0.40943320419569407,1219,1609,65,null,null,null,null,null,null,64]
[null,null,null,null,null,null,null,null,null,null,null,null,null,64,null,null,null,null,null,null,null,0.89468250371928126,215,1487,64,null,null,null,null,null,null,64]
[null,null,null,null,null,null,null,null,null,null,null,null,null,63,null,null,null,null,null,null,null,0.80049950626654598,420,1349,63,null,null,null,null,null,null,66]
[null,null,null,null,null,null,null,null,null,null,null,null,null,58,null,null,null,null,null,null,null,0.48799961213327303,1071,615,58,null,null,null,null,null,null,58]
[null,null,null,null,null,null,null,null,null,null,null,null,null,53,null,null,null,null,null,null,null,0.30023195679821635,1422,139,53,null,null,null,null,null,null,57]
[null,null,null,null,null,null,null,null,null,null,null,null,null,57,null,null,null,null,null,null,null,0.23355016890956726,1557,487,57,null,null,null,null,null,null,61]
[null,null,null,null,null,null,null,null,null,null,null,null,null,68,null,null,null,null,null,null,null,8.9140005556306301E-2,1820,1857,68,null,null,null,null,null,null,54]
[null,null,null,null,null,null,null,null,null,null,null,null,null,70,null,null,null,null,null,null,null,0.4255439023776304,1189,1946,70,null,null,null,null,null,null,62]
[null,null,null,null,null,null,null,null,null,null,null,null,null,68,null,null,null,null,null,null,null,0.88253676764177535,238,1857,68,null,null,null,null,null,null,67]
[null,null,null,null,null,null,null,null,null,null,null,null,null,58,null,null,null,null,null,null,null,0.54790854482181572,940,615,58,null,null,null,null,null,null,62]
[null,null,null,null,null,null,null,null,null,null,null,null,null,62,null,null,null,null,null,null,null,0.44135589450503554,1162,1196,62,null,null,null,null,null,null,60]
[null,null,null,null,null,null,null,null,null,null,null,null,null,61,null,null,null,null,null,null,null,0.35662884831501418,1322,1058,61,null,null,null,null,null,null,67]
[null,null,null,null,null,null,null,null,null,null,null,null,null,64,null,null,null,null,null,null,null,0.66807493008857521,697,1487,64,null,null,null,null,null,null,58]
[null,null,null,null,null,null,null,null,null,null,null,null,null,54,null,null,null,null,null,null,null,0.39942558183817556,1240,201,54,null,null,null,null,null,null,61]
[null,null,null,null,null,null,null,null,null,null,null,null,null,64,null,null,null,null,null,null,null,0.94899130251124353,113,1487,64,null,null,null,null,null,null,55]
[null,null,null,null,null,null,null,null,null,null,null,null,null,62,null,null,null,null,null,null,null,0.8388754839805993,329,1196,62,null,null,null,null,null,null,62]
[null,null,null,null,null,null,null,null,null,null,null,null,null,63,null,null,null,null,null,null,null,0.22676321861112303,1572,1349,63,null,null,null,null,null,null,58]
[null,null,null,null,null,null,null,null,null,null,null,null,null,54,null,null,null,null,null,null,null,0.69448805977106864,640,201,54,null,null,null,null,null,null,57]
[null,null,null,null,null,null,null,null,null,null,null,null,null,55,null,null,null,null,null,null,null,0.53918987939681107,962,269,55,null,null,null,null,null,null,63]
[null,null,null,null,null,null,null,null,null,null,null,null,null,52,null,null,null,null,null,null,null,0.56984258641805752,908,95,52,null,null,null,null,null,null,61]
[null,null,null,null,null,null,null,null,null,null,null,null,null,61,null,null,null,null,null,null,null,0.40438867946021806,1230,1058,61,null,null,null,null,null,null,57]
[null,null,null,null,null,null,null,null,null,null,null,null,null,69,null,null,null,null,null,null,null,0.51784481762685064,1005,1909,69,null,null,null,null,null,null,63]
[null,null,null,null,null,null,null,null,null,null,null,null,null,59,null,null,null,null,null,null,null,0.64547450786714966,750,745,59,null,null,null,null,null,null,49]
[null,null,null,null,null,null,null,null,null,null,null,null,null,62,null,null,null,null,null,null,null,0.10428580140772026,1797,1196,62,null,null,null,null,null,null,66]
[null,null,null,null,null,null,null,null,null,null,null,null,null,65,null,null,null,null,null,null,null,0.6701950562720691,689,1609,65,null,null,null,null,null,null,62]
[null,null,null,null,null,null,null,null,null,null,null,null,null,58,null,null,null,null,null,null,null,0.5550669200552939,926,615,58,null,null,null,null,null,null,66]
[null,null,null,null,null,null,null,null,null,null,null,null,null,58,null,null,null,null,null,null,null,0.69582479962353938,637,615,58,null,null,null,null,null,null,67]
[null,null,null,null,null,null,null,null,null,null,null,null,null,61,null,null,null,null,null,null,null,1.6818756414996749E-2,1969,1058,61,null,null,null,null,null,null,65]
[null,null,null,null,null,null,null,null,null,null,null,null,null,55,null,null,null,null,null,null,null,6.2369413366978654E-2,1870,269,55,null,null,null,null,null,null,68]
[null,null,null,null,null,null,null,null,null,null,null,null,null,59,null,null,null,null,null,null,null,9.39281059109216E-2,1812,745,59,null,null,null,null,null,null,61]
[null,null,null,null,null,null,null,null,null,null,null,null,null,57,null,null,null,null,null,null,null,0.31678003263617638,1392,487,57,null,null,null,null,null,null,63]
[null,null,null,null,null,null,null,null,null,null,null,null,null,64,null,null,null,null,null,null,null,0.8870276604741153,231,1487,64,null,null,null,null,null,null,64]
[null,null,null,null,null,null,null,null,null,null,null,null,null,57,null,null,null,null,null,null,null,1.813553279443092E-2,1964,487,57,null,null,null,null,null,null,57]
[null,null,null,null,null,null,null,null,null,null,null,null,null,72,null,null,null,null,null,null,null,0.60302085884198031,836,1979,72,null,null,null,null,null,null,61]
[null,null,null,null,null,null,null,null,null,null,null,null,null,62,null,null,null,null,null,null,null,0.93739896304160752,135,1196,62,null,null,null,null,null,null,45]
[null,null,null,null,null,null,null,null,null,null,null,null,null,58,null,null,null,null,null,null,null,6.9317539948414719E-3,1987,615,58,null,null,null,null,null,null,58]
[null,null,null,null,null,null,null,null,null,null,null,null,null,57,null,null,null,null,null,null,null,0.56859791832110562,911,487,57,null,null,null,null,null,null,54]
[null,null,null,null,null,null,null,null,null,null,null,null,null,59,null,null,null,null,null,null,null,0.60019741043132258,844,745,59,null,null,null,null,null,null,57]
[null,null,null,null,null,null,null,null,null,null,null,null,null,51,null,null,null,null,null,null,null,{"$f":"IF(N1538=\"\",\"\",RAND())","v":0.29825844379651612},1424,63,{"$f":"N1538","v":51},null,null,null,null,null,null,{"$f":"ROUND(NORMINV(RAND(),mean,stddev),0)","v":58}]
[null,null,null,null,null,null,null,null,null,null,null,null,null,61,null,null,null,null,null,null,null,0.68023984216126376,{"$f":"RANK(V1539,$V:$V)","v":671},{"$f":"RANK(Y1539,Y:Y,1)","v":1058},61,null,null,null,null,null,null,64]
[null,null,null,null,null,null,null,null,null,null,null,null,null,63,null,null,null,null,null,null,null,0.81308827577234877,395,1349,63,null,null,null,null,null,null,60]
[null,null,null,null,null,null,null,null,null,null,null,null,null,59,null,null,null,null,null,null,null,0.81776591047400182,382,745,59,null,null,null,null,null,null,58]
[null,null,null,null,null,null,null,null,null,null,null,null,null,56,null,null,null,null,null,null,null,0.81330716857529617,393,362,56,null,null,null,null,null,null,59]
[null,null,null,null,null,null,null,null,null,null,null,null,null,59,null,null,null,null,null,null,null,0.53114517989515442,972,745,59,null,null,null,null,null,null,61]
[null,null,null,null,null,null,null,null,null,null,null,null,null,68,null,null,null,null,null,null,null,0.71459915679038521,595,1857,68,null,null,null,null,null,null,53]
[null,null,null,null,null,null,null,null,null,null,null,null,null,59,null,null,null,null,null,null,null,1.0895804939988984E-2,1979,745,59,null,null,null,null,null,null,59]
[null,null,null,null,null,null,null,null,null,null,null,null,null,53,null,null,null,null,null,null,null,0.80277045157925042,415,139,53,null,null,null,null,null,null,53]
[null,null,null,null,null,null,null,null,null,null,null,null,null,61,null,null,null,null,null,null,null,0.2535765028658904,1518,1058,61,null,null,null,null,null,null,62]
[null,null,null,null,null,null,null,null,null,null,null,null,null,59,null,null,null,null,null,null,null,0.79398835726978356,431,745,59,null,null,null,null,null,null,49]
[null,null,null,null,null,null,null,null,null,null,null,null,null,60,null,null,null,null,null,null,null,0.12524420287718663,1758,903,60,null,null,null,null,null,null,64]
[null,null,null,null,null,null,null,null,null,null,null,null,null,58,null,null,null,null,null,null,null,0.2602060809683342,1497,615,58,null,null,null,null,null,null,58]
[null,null,null,null,null,null,null,null,null,null,null,null,null,65,null,null,null,null,null,null,null,2.0315544464011848E-2,1958,1609,65,null,null,null,null,null,null,66]
[null,null,null,null,null,null,null,null,null,null,null,null,null,63,null,null,null,null,null,null,null,0.24015850694459151,1545,1349,63,null,null,null,null,null,null,66]
[null,null,null,null,null,null,null,null,null,null,null,null,null,66,null,null,null,null,null,null,null,0.61305611622648026,810,1710,66,null,null,null,null,null,null,56]
[null,null,null,null,null,null,null,null,null,null,null,null,null,60,null,null,null,null,null,null,null,0.71567474610615234,593,903,60,null,null,null,null,null,null,60]
[null,null,null,null,null,null,null,null,null,null,null,null,null,56,null,null,null,null,null,null,null,0.4652892469108193,1114,362,56,null,null,null,null,null,null,62]
[null,null,null,null,null,null,null,null,null,null,null,null,null,62,null,null,null,null,null,null,null,0.45743485167012987,1127,1196,62,null,null,null,null,null,null,60]
[null,null,null,null,null,null,null,null,null,null,null,null,null,52,null,null,null,null,null,null,null,0.83143257143672678,347,95,52,null,null,null,null,null,null,62]
[null,null,null,null,null,null,null,null,null,null,null,null,null,62,null,null,null,null,null,null,null,0.39523348940701775,1249,1196,62,null,null,null,null,null,null,61]
[null,null,null,null,null,null,null,null,null,null,null,null,null,59,null,null,null,null,null,null,null,7.8283330850717148E-2,1836,745,59,null,null,null,null,null,null,67]
[null,null,null,null,null,null,null,null,null,null,null,null,null,59,null,null,null,null,null,null,null,0.54321676868032187,949,745,59,null,null,null,null,null,null,63]
[null,null,null,null,null,null,null,null,null,null,null,null,null,59,null,null,null,null,null,null,null,0.96205894498754507,84,745,59,null,null,null,null,null,null,64]
[null,null,null,null,null,null,null,null,null,null,null,null,null,65,null,null,null,null,null,null,null,0.17088541127836399,1679,1609,65,null,null,null,null,null,null,54]
[null,null,null,null,null,null,null,null,null,null,null,null,null,62,null,null,null,null,null,null,null,0.24334289898831296,1539,1196,62,null,null,null,null,null,null,55]
[null,null,null,null,null,null,null,null,null,null,null,null,null,57,null,null,null,null,null,null,null,0.68500125470181705,659,487,57,null,null,null,null,null,null,56]
[null,null,null,null,null,null,null,null,null,null,null,null,null,63,null,null,null,null,null,null,null,0.33852153795926943,1352,1349,63,null,null,null,null,null,null,63]
[null,null,null,null,null,null,null,null,null,null,null,null,null,57,null,null,null,null,null,null,null,0.38366834295820429,1269,487,57,null,null,null,null,null,null,58]
[null,null,null,null,null,null,null,null,null,null,null,null,null,58,null,null,null,null,null,null,null,0.59983769930540753,846,615,58,null,null,null,null,null,null,59]
[null,null,null,null,null,null,null,null,null,null,null,null,null,53,null,null,null,null,null,null,null,0.25592541246153411,1513,139,53,null,null,null,null,null,null,59]
[null,null,null,null,null,null,null,null,null,null,null,null,null,62,null,null,null,null,null,null,null,0.72932227683042194,563,1196,62,null,null,null,null,null,null,61]
[null,null,null,null,null,null,null,null,null,null,null,null,null,59,null,null,null,null,null,null,null,0.72339279257337019,581,745,59,null,null,null,null,null,null,63]
[null,null,null,null,null,null,null,null,null,null,null,null,null,61,null,null,null,null,null,null,null,0.10306417089961561,1799,1058,61,null,null,null,null,null,null,57]
[null,null,null,null,null,null,null,null,null,null,null,null,null,72,null,null,null,null,null,null,null,0.48582845578209743,1077,1979,72,null,null,null,null,null,null,54]
[null,null,null,null,null,null,null,null,null,null,null,null,null,66,null,null,null,null,null,null,null,0.95539896960256221,101,1710,66,null,null,null,null,null,null,64]
[null,null,null,null,null,null,null,null,null,null,null,null,null,57,null,null,null,null,null,null,null,0.778599872877759,460,487,57,null,null,null,null,null,null,61]
[null,null,null,null,null,null,null,null,null,null,null,null,null,59,null,null,null,null,null,null,null,0.62067428525044288,797,745,59,null,null,null,null,null,null,61]
[null,null,null,null,null,null,null,null,null,null,null,null,null,62,null,null,null,null,null,null,null,0.2108735852032424,1604,1196,62,null,null,null,null,null,null,57]
[null,null,null,null,null,null,null,null,null,null,null,null,null,59,null,null,null,null,null,null,null,3.3742486270853522E-2,1922,745,59,null,null,null,null,null,null,58]
[null,null,null,null,null,null,null,null,null,null,null,null,null,58,null,null,null,null,null,null,null,0.47125541634768831,1105,615,58,null,null,null,null,null,null,63]
[null,null,null,null,null,null,null,null,null,null,null,null,null,52,null,null,null,null,null,null,null,0.83653632339195949,332,95,52,null,null,null,null,null,null,56]
[null,null,null,null,null,null,null,null,null,null,null,null,null,54,null,null,null,null,null,null,null,0.17262928175611258,1672,201,54,null,null,null,null,null,null,58]
[null,null,null,null,null,null,null,null,null,null,null,null,null,60,null,null,null,null,null,null,null,0.89998566305433392,205,903,60,null,null,null,null,null,null,64]
[null,null,null,null,null,null,null,null,null,null,null,null,null,55,null,null,null,null,null,null,null,0.70813845870008929,608,269,55,null,null,null,null,null,null,58]
[null,null,null,null,null,null,null,null,null,null,null,null,null,51,null,null,null,null,null,null,null,0.66160690605017547,713,63,51,null,null,null,null,null,null,66]
[null,null,null,null,null,null,null,null,null,null,null,null,null,63,null,null,null,null,null,null,null,0.72891795175615459,567,1349,63,null,null,null,null,null,null,68]
[null,null,null,null,null,null,null,null,null,null,null,null,null,56,null,null,null,null,null,null,null,0.91802735699751192,172,362,56,null,null,null,null,null,null,65]
[null,null,null,null,null,null,null,null,null,null,null,null,null,62,null,null,null,null,null,null,null,5.0143097644699597E-2,1888,1196,62,null,null,null,null,null,null,59]
[null,null,null,null,null,null,null,null,null,null,null,null,null,59,null,null,null,null,null,null,null,0.11304818243368409,1783,745,59,null,null,null,null,null,null,58]
[null,null,null,null,null,null,null,null,null,null,null,null,null,68,null,null,null,null,null,null,null,0.64572778976221834,748,1857,68,null,null,null,null,null,null,58]
[null,null,null,null,null,null,null,null,null,null,null,null,null,68,null,null,null,null,null,null,null,0.48325794713570747,1083,1857,68,null,null,null,null,null,null,62]
[null,null,null,null,null,null,null,null,null,null,null,null,null,58,null,null,null,null,null,null,null,0.39269445800399838,1253,615,58,null,null,null,null,null,null,66]
[null,null,null,null,null,null,null,null,null,null,null,null,null,59,null,null,null,null,null,null,null,0.91526696315394696,177,745,59,null,null,null,null,null,null,63]
[null,null,null,null,null,null,null,null,null,null,null,null,null,59,null,null,null,null,null,null,null,0.13142941489925875,1750,745,59,null,null,null,null,null,null,64]
[null,null,null,null,null,null,null,null,null,null,null,null,null,65,null,null,null,null,null,null,null,0.52806418829032786,979,1609,65,null,null,null,null,null,null,54]
[null,null,null,null,null,null,null,null,null,null,null,null,null,62,null,null,null,null,null,null,null,0.97816779281606347,44,1196,62,null,null,null,null,null,null,62]
[null,null,null,null,null,null,null,null,null,null,null,null,null,55,null,null,null,null,null,null,null,0.2039426236900217,1620,269,55,null,null,null,null,null,null,63]
[null,null,null,null,null,null,null,null,null,null,null,null,null,54,null,null,null,null,null,null,null,0.91406880311629823,180,201,54,null,null,null,null,null,null,52]
[null,null,null,null,null,null,null,null,null,null,null,null,null,60,null,null,null,null,null,null,null,0.99433531618489879,8,903,60,null,null,null,null,null,null,65]
[null,null,null,null,null,null,null,null,null,null,null,null,null,66,null,null,null,null,null,null,null,0.58666758615738634,874,1710,66,null,null,null,null,null,null,64]
[null,null,null,null,null,null,null,null,null,null,null,null,null,55,null,null,null,null,null,null,null,0.21685595400673785,1589,269,55,null,null,null,null,null,null,67]
[null,null,null,null,null,null,null,null,null,null,null,null,null,60,null,null,null,null,null,null,null,0.76905534760869643,487,903,60,null,null,null,null,null,null,58]
[null,null,null,null,null,null,null,null,null,null,null,null,null,62,null,null,null,null,null,null,null,6.3729278916346277E-2,1866,1196,62,null,null,null,null,null,null,61]
[null,null,null,null,null,null,null,null,null,null,null,null,null,61,null,null,null,null,null,null,null,{"$f":"IF(N1602=\"\",\"\",RAND())","v":0.68194403913849322},667,1058,{"$f":"N1602","v":61},null,null,null,null,null,null,{"$f":"ROUND(NORMINV(RAND(),mean,stddev),0)","v":52}]
[null,null,null,null,null,null,null,null,null,null,null,null,null,59,null,null,null,null,null,null,null,0.17251246925760633,{"$f":"RANK(V1603,$V:$V)","v":1674},{"$f":"RANK(Y1603,Y:Y,1)","v":745},59,null,null,null,null,null,null,66]
[null,null,null,null,null,null,null,null,null,null,null,null,null,66,null,null,null,null,null,null,null,0.95820436806579179,92,1710,66,null,null,null,null,null,null,57]
[null,null,null,null,null,null,null,null,null,null,null,null,null,63,null,null,null,null,null,null,null,0.81808283993769049,380,1349,63,null,null,null,null,null,null,54]
[null,null,null,null,null,null,null,null,null,null,null,null,null,64,null,null,null,null,null,null,null,0.36959226907249132,1291,1487,64,null,null,null,null,null,null,65]
[null,null,null,null,null,null,null,null,null,null,null,null,null,69,null,null,null,null,null,null,null,0.50004659832780185,1043,1909,69,null,null,null,null,null,null,58]
[null,null,null,null,null,null,null,null,null,null,null,null,null,64,null,null,null,null,null,null,null,0.89809401092831875,212,1487,64,null,null,null,null,null,null,67]
[null,null,null,null,null,null,null,null,null,null,null,null,null,60,null,null,null,null,null,null,null,0.48356313438600773,1082,903,60,null,null,null,null,null,null,68]
[null,null,null,null,null,null,null,null,null,null,null,null,null,64,null,null,null,null,null,null,null,0.80912732479052307,403,1487,64,null,null,null,null,null,null,53]
[null,null,null,null,null,null,null,null,null,null,null,null,null,58,null,null,null,null,null,null,null,0.76122213142431172,503,615,58,null,null,null,null,null,null,65]
[null,null,null,null,null,null,null,null,null,null,null,null,null,71,null,null,null,null,null,null,null,0.79687124827835731,427,1971,71,null,null,null,null,null,null,66]
[null,null,null,null,null,null,null,null,null,null,null,null,null,64,null,null,null,null,null,null,null,6.2667897836166886E-2,1869,1487,64,null,null,null,null,null,null,58]
[null,null,null,null,null,null,null,null,null,null,null,null,null,64,null,null,null,null,null,null,null,0.96148002514835418,86,1487,64,null,null,null,null,null,null,58]
[null,null,null,null,null,null,null,null,null,null,null,null,null,65,null,null,null,null,null,null,null,0.6823905147465601,665,1609,65,null,null,null,null,null,null,62]
[null,null,null,null,null,null,null,null,null,null,null,null,null,57,null,null,null,null,null,null,null,0.33506134035107438,1359,487,57,null,null,null,null,null,null,66]
[null,null,null,null,null,null,null,null,null,null,null,null,null,51,null,null,null,null,null,null,null,0.64299529605684835,757,63,51,null,null,null,null,null,null,58]
[null,null,null,null,null,null,null,null,null,null,null,null,null,71,null,null,null,null,null,null,null,0.45464911091133131,1134,1971,71,null,null,null,null,null,null,62]
[null,null,null,null,null,null,null,null,null,null,null,null,null,56,null,null,null,null,null,null,null,0.22785508453390868,1569,362,56,null,null,null,null,null,null,61]
[null,null,null,null,null,null,null,null,null,null,null,null,null,69,null,null,null,null,null,null,null,0.15125488220240535,1712,1909,69,null,null,null,null,null,null,62]
[null,null,null,null,null,null,null,null,null,null,null,null,null,50,null,null,null,null,null,null,null,0.38174872085659506,1272,37,50,null,null,null,null,null,null,59]
[null,null,null,null,null,null,null,null,null,null,null,null,null,58,null,null,null,null,null,null,null,0.66172100802368772,712,615,58,null,null,null,null,null,null,61]
[null,null,null,null,null,null,null,null,null,null,null,null,null,56,null,null,null,null,null,null,null,0.10563752863994891,1795,362,56,null,null,null,null,null,null,59]
[null,null,null,null,null,null,null,null,null,null,null,null,null,64,null,null,null,null,null,null,null,3.7977789857297384E-2,1912,1487,64,null,null,null,null,null,null,58]
[null,null,null,null,null,null,null,null,null,null,null,null,null,65,null,null,null,null,null,null,null,0.24204721814318053,1542,1609,65,null,null,null,null,null,null,59]
[null,null,null,null,null,null,null,null,null,null,null,null,null,59,null,null,null,null,null,null,null,3.6204886205754572E-2,1916,745,59,null,null,null,null,null,null,63]
[null,null,null,null,null,null,null,null,null,null,null,null,null,63,null,null,null,null,null,null,null,0.89986199550619306,207,1349,63,null,null,null,null,null,null,61]
[null,null,null,null,null,null,null,null,null,null,null,null,null,69,null,null,null,null,null,null,null,0.95464273772064012,104,1909,69,null,null,null,null,null,null,59]
[null,null,null,null,null,null,null,null,null,null,null,null,null,60,null,null,null,null,null,null,null,7.9759556386833297E-2,1834,903,60,null,null,null,null,null,null,67]
[null,null,null,null,null,null,null,null,null,null,null,null,null,65,null,null,null,null,null,null,null,0.6079039297822858,820,1609,65,null,null,null,null,null,null,56]
[null,null,null,null,null,null,null,null,null,null,null,null,null,59,null,null,null,null,null,null,null,0.19966580634677888,1632,745,59,null,null,null,null,null,null,58]
[null,null,null,null,null,null,null,null,null,null,null,null,null,56,null,null,null,null,null,null,null,3.5356038921764865E-2,1920,362,56,null,null,null,null,null,null,56]
[null,null,null,null,null,null,null,null,null,null,null,null,null,51,null,null,null,null,null,null,null,0.64018652869244264,765,63,51,null,null,null,null,null,null,66]
[null,null,null,null,null,null,null,null,null,null,null,null,null,63,null,null,null,null,null,null,null,0.52205000785231903,994,1349,63,null,null,null,null,null,null,58]
[null,null,null,null,null,null,null,null,null,null,null,null,null,56,null,null,null,null,null,null,null,0.71029101202662548,604,362,56,null,null,null,null,null,null,63]
[null,null,null,null,null,null,null,null,null,null,null,null,null,62,null,null,null,null,null,null,null,0.23127657924021461,1562,1196,62,null,null,null,null,null,null,61]
[null,null,null,null,null,null,null,null,null,null,null,null,null,59,null,null,null,null,null,null,null,0.71143445324151866,603,745,59,null,null,null,null,null,null,50]
[null,null,null,null,null,null,null,null,null,null,null,null,null,60,null,null,null,null,null,null,null,0.37693363651394862,1279,903,60,null,null,null,null,null,null,56]
[null,null,null,null,null,null,null,null,null,null,null,null,null,57,null,null,null,null,null,null,null,0.42624899150640294,1188,487,57,null,null,null,null,null,null,58]
[null,null,null,null,null,null,null,null,null,null,null,null,null,59,null,null,null,null,null,null,null,0.93725833643936307,136,745,59,null,null,null,null,null,null,61]
[null,null,null,null,null,null,null,null,null,null,null,null,null,65,null,null,null,null,null,null,null,0.2174261543773226,1588,1609,65,null,null,null,null,null,null,68]
[null,null,null,null,null,null,null,null,null,null,null,null,null,57,null,null,null,null,null,null,null,0.90138184356190365,201,487,57,null,null,null,null,null,null,53]
[null,null,null,null,null,null,null,null,null,null,null,null,null,63,null,null,null,null,null,null,null,1.8259455056840457E-2,1962,1349,63,null,null,null,null,null,null,66]
[null,null,null,null,null,null,null,null,null,null,null,null,null,55,null,null,null,null,null,null,null,0.89953576524843493,209,269,55,null,null,null,null,null,null,55]
[null,null,null,null,null,null,null,null,null,null,null,null,null,69,null,null,null,null,null,null,null,0.38243889364147077,1270,1909,69,null,null,null,null,null,null,48]
[null,null,null,null,null,null,null,null,null,null,null,null,null,55,null,null,null,null,null,null,null,0.48070049419263072,1090,269,55,null,null,null,null,null,null,55]
[null,null,null,null,null,null,null,null,null,null,null,null,null,54,null,null,null,null,null,null,null,0.87034931025321294,268,201,54,null,null,null,null,null,null,65]
[null,null,null,null,null,null,null,null,null,null,null,null,null,63,null,null,null,null,null,null,null,2.4577116798108145E-2,1945,1349,63,null,null,null,null,null,null,55]
[null,null,null,null,null,null,null,null,null,null,null,null,null,63,null,null,null,null,null,null,null,0.57163826587338429,902,1349,63,null,null,null,null,null,null,61]
[null,null,null,null,null,null,null,null,null,null,null,null,null,62,null,null,null,null,null,null,null,0.71588980078536624,592,1196,62,null,null,null,null,null,null,61]
[null,null,null,null,null,null,null,null,null,null,null,null,null,59,null,null,null,null,null,null,null,0.54180864608608625,953,745,59,null,null,null,null,null,null,65]
[null,null,null,null,null,null,null,null,null,null,null,null,null,64,null,null,null,null,null,null,null,0.10780352093102541,1792,1487,64,null,null,null,null,null,null,61]
[null,null,null,null,null,null,null,null,null,null,null,null,null,57,null,null,null,null,null,null,null,0.40367127068931152,1232,487,57,null,null,null,null,null,null,61]
[null,null,null,null,null,null,null,null,null,null,null,null,null,54,null,null,null,null,null,null,null,0.84752897595129006,310,201,54,null,null,null,null,null,null,69]
[null,null,null,null,null,null,null,null,null,null,null,null,null,65,null,null,null,null,null,null,null,0.87188983096013439,264,1609,65,null,null,null,null,null,null,67]
[null,null,null,null,null,null,null,null,null,null,null,null,null,55,null,null,null,null,null,null,null,0.65937802497757658,717,269,55,null,null,null,null,null,null,59]
[null,null,null,null,null,null,null,null,null,null,null,null,null,53,null,null,null,null,null,null,null,0.81710310221733684,384,139,53,null,null,null,null,null,null,64]
[null,null,null,null,null,null,null,null,null,null,null,null,null,74,null,null,null,null,null,null,null,9.6452671243368537E-2,1808,1992,74,null,null,null,null,null,null,63]
[null,null,null,null,null,null,null,null,null,null,null,null,null,64,null,null,null,null,null,null,null,0.16639745558306407,1684,1487,64,null,null,null,null,null,null,59]
[null,null,null,null,null,null,null,null,null,null,null,null,null,62,null,null,null,null,null,null,null,0.76138227245208345,502,1196,62,null,null,null,null,null,null,62]
[null,null,null,null,null,null,null,null,null,null,null,null,null,60,null,null,null,null,null,null,null,2.4382888240878198E-2,1946,903,60,null,null,null,null,null,null,64]
[null,null,null,null,null,null,null,null,null,null,null,null,null,60,null,null,null,null,null,null,null,0.44679065610839852,1153,903,60,null,null,null,null,null,null,59]
[null,null,null,null,null,null,null,null,null,null,null,null,null,56,null,null,null,null,null,null,null,0.677292449286649,676,362,56,null,null,null,null,null,null,62]
[null,null,null,null,null,null,null,null,null,null,null,null,null,62,null,null,null,null,null,null,null,0.2524680247498492,1520,1196,62,null,null,null,null,null,null,66]
[null,null,null,null,null,null,null,null,null,null,null,null,null,52,null,null,null,null,null,null,null,0.65723301703577708,724,95,52,null,null,null,null,null,null,61]
[null,null,null,null,null,null,null,null,null,null,null,null,null,69,null,null,null,null,null,null,null,{"$f":"IF(N1666=\"\",\"\",RAND())","v":0.65729307576091778},723,1909,{"$f":"N1666","v":69},null,null,null,null,null,null,{"$f":"ROUND(NORMINV(RAND(),mean,stddev),0)","v":63}]
[null,null,null,null,null,null,null,null,null,null,null,null,null,69,null,null,null,null,null,null,null,0.27903664864238897,{"$f":"RANK(V1667,$V:$V)","v":1458},{"$f":"RANK(Y1667,Y:Y,1)","v":1909},69,null,null,null,null,null,null,57]
[null,null,null,null,null,null,null,null,null,null,null,null,null,58,null,null,null,null,null,null,null,0.77478636797574818,472,615,58,null,null,null,null,null,null,52]
[null,null,null,null,null,null,null,null,null,null,null,null,null,59,null,null,null,null,null,null,null,0.40552227809951091,1228,745,59,null,null,null,null,null,null,56]
[null,null,null,null,null,null,null,null,null,null,null,null,null,59,null,null,null,null,null,null,null,0.90536367272883511,197,745,59,null,null,null,null,null,null,59]
[null,null,null,null,null,null,null,null,null,null,null,null,null,56,null,null,null,null,null,null,null,0.94829681107008756,116,362,56,null,null,null,null,null,null,47]
[null,null,null,null,null,null,null,null,null,null,null,null,null,59,null,null,null,null,null,null,null,0.43994349610540884,1164,745,59,null,null,null,null,null,null,66]
[null,null,null,null,null,null,null,null,null,null,null,null,null,59,null,null,null,null,null,null,null,0.11557032538083234,1778,745,59,null,null,null,null,null,null,66]
[null,null,null,null,null,null,null,null,null,null,null,null,null,64,null,null,null,null,null,null,null,0.4733363608183504,1103,1487,64,null,null,null,null,null,null,63]
[null,null,null,null,null,null,null,null,null,null,null,null,null,69,null,null,null,null,null,null,null,0.8364390468949513,333,1909,69,null,null,null,null,null,null,52]
[null,null,null,null,null,null,null,null,null,null,null,null,null,56,null,null,null,null,null,null,null,0.214288203296369,1595,362,56,null,null,null,null,null,null,61]
[null,null,null,null,null,null,null,null,null,null,null,null,null,57,null,null,null,null,null,null,null,0.20523286546644359,1619,487,57,null,null,null,null,null,null,59]
[null,null,null,null,null,null,null,null,null,null,null,null,null,51,null,null,null,null,null,null,null,0.77886205433971312,459,63,51,null,null,null,null,null,null,64]
[null,null,null,null,null,null,null,null,null,null,null,null,null,56,null,null,null,null,null,null,null,0.19729319196119521,1635,362,56,null,null,null,null,null,null,68]
[null,null,null,null,null,null,null,null,null,null,null,null,null,67,null,null,null,null,null,null,null,0.48902471159827954,1066,1791,67,null,null,null,null,null,null,67]
[null,null,null,null,null,null,null,null,null,null,null,null,null,60,null,null,null,null,null,null,null,0.77273299496199699,478,903,60,null,null,null,null,null,null,62]
[null,null,null,null,null,null,null,null,null,null,null,null,null,55,null,null,null,null,null,null,null,0.88231242052649694,239,269,55,null,null,null,null,null,null,68]
[null,null,null,null,null,null,null,null,null,null,null,null,null,70,null,null,null,null,null,null,null,0.20224410754960997,1624,1946,70,null,null,null,null,null,null,61]
[null,null,null,null,null,null,null,null,null,null,null,null,null,68,null,null,null,null,null,null,null,0.40969280341232006,1217,1857,68,null,null,null,null,null,null,55]
[null,null,null,null,null,null,null,null,null,null,null,null,null,67,null,null,null,null,null,null,null,0.18287034112056422,1654,1791,67,null,null,null,null,null,null,61]
[null,null,null,null,null,null,null,null,null,null,null,null,null,53,null,null,null,null,null,null,null,0.67006233313696406,691,139,53,null,null,null,null,null,null,58]
[null,null,null,null,null,null,null,null,null,null,null,null,null,61,null,null,null,null,null,null,null,0.12127199736309635,1767,1058,61,null,null,null,null,null,null,58]
[null,null,null,null,null,null,null,null,null,null,null,null,null,63,null,null,null,null,null,null,null,0.75179171166170111,525,1349,63,null,null,null,null,null,null,59]
[null,null,null,null,null,null,null,null,null,null,null,null,null,67,null,null,null,null,null,null,null,0.8303092082800233,350,1791,67,null,null,null,null,null,null,51]
[null,null,null,null,null,null,null,null,null,null,null,null,null,59,null,null,null,null,null,null,null,0.92533572287973564,155,745,59,null,null,null,null,null,null,69]
[null,null,null,null,null,null,null,null,null,null,null,null,null,65,null,null,null,null,null,null,null,0.20635088389135281,1613,1609,65,null,null,null,null,null,null,64]
[null,null,null,null,null,null,null,null,null,null,null,null,null,62,null,null,null,null,null,null,null,0.59745059557606772,851,1196,62,null,null,null,null,null,null,59]
[null,null,null,null,null,null,null,null,null,null,null,null,null,64,null,null,null,null,null,null,null,0.58530131433032073,875,1487,64,null,null,null,null,null,null,59]
[null,null,null,null,null,null,null,null,null,null,null,null,null,66,null,null,null,null,null,null,null,0.95811595782945425,93,1710,66,null,null,null,null,null,null,61]
[null,null,null,null,null,null,null,null,null,null,null,null,null,69,null,null,null,null,null,null,null,0.80908688711459698,404,1909,69,null,null,null,null,null,null,64]
[null,null,null,null,null,null,null,null,null,null,null,null,null,63,null,null,null,null,null,null,null,0.96582714405942438,75,1349,63,null,null,null,null,null,null,64]
[null,null,null,null,null,null,null,null,null,null,null,null,null,66,null,null,null,null,null,null,null,0.75484326234732313,514,1710,66,null,null,null,null,null,null,58]
[null,null,null,null,null,null,null,null,null,null,null,null,null,55,null,null,null,null,null,null,null,0.7678061559640561,492,269,55,null,null,null,null,null,null,52]
[null,null,null,null,null,null,null,null,null,null,null,null,null,59,null,null,null,null,null,null,null,0.21102282929394744,1602,745,59,null,null,null,null,null,null,60]
[null,null,null,null,null,null,null,null,null,null,null,null,null,58,null,null,null,null,null,null,null,0.11233200569661872,1785,615,58,null,null,null,null,null,null,67]
[null,null,null,null,null,null,null,null,null,null,null,null,null,50,null,null,null,null,null,null,null,0.2063543115838451,1612,37,50,null,null,null,null,null,null,57]
[null,null,null,null,null,null,null,null,null,null,null,null,null,54,null,null,null,null,null,null,null,0.28063049084393388,1455,201,54,null,null,null,null,null,null,58]
[null,null,null,null,null,null,null,null,null,null,null,null,null,61,null,null,null,null,null,null,null,0.98853666564428633,24,1058,61,null,null,null,null,null,null,57]
[null,null,null,null,null,null,null,null,null,null,null,null,null,66,null,null,null,null,null,null,null,0.61500690975467165,808,1710,66,null,null,null,null,null,null,60]
[null,null,null,null,null,null,null,null,null,null,null,null,null,58,null,null,null,null,null,null,null,0.72290043840750917,582,615,58,null,null,null,null,null,null,73]
[null,null,null,null,null,null,null,null,null,null,null,null,null,60,null,null,null,null,null,null,null,4.4489501516603247E-2,1896,903,60,null,null,null,null,null,null,59]
[null,null,null,null,null,null,null,null,null,null,null,null,null,61,null,null,null,null,null,null,null,0.33524094571429774,1358,1058,61,null,null,null,null,null,null,57]
[null,null,null,null,null,null,null,null,null,null,null,null,null,57,null,null,null,null,null,null,null,0.88051960596358358,248,487,57,null,null,null,null,null,null,60]
[null,null,null,null,null,null,null,null,null,null,null,null,null,60,null,null,null,null,null,null,null,7.6067068178423236E-2,1839,903,60,null,null,null,null,null,null,65]
[null,null,null,null,null,null,null,null,null,null,null,null,null,64,null,null,null,null,null,null,null,0.32300711770670398,1377,1487,64,null,null,null,null,null,null,56]
[null,null,null,null,null,null,null,null,null,null,null,null,null,51,null,null,null,null,null,null,null,0.86433407104080728,278,63,51,null,null,null,null,null,null,58]
[null,null,null,null,null,null,null,null,null,null,null,null,null,57,null,null,null,null,null,null,null,0.1977280182261778,1633,487,57,null,null,null,null,null,null,59]
[null,null,null,null,null,null,null,null,null,null,null,null,null,51,null,null,null,null,null,null,null,0.77165611466037276,479,63,51,null,null,null,null,null,null,51]
[null,null,null,null,null,null,null,null,null,null,null,null,null,54,null,null,null,null,null,null,null,0.76793407134767389,491,201,54,null,null,null,null,null,null,58]
[null,null,null,null,null,null,null,null,null,null,null,null,null,53,null,null,null,null,null,null,null,5.2997376897536697E-2,1881,139,53,null,null,null,null,null,null,62]
[null,null,null,null,null,null,null,null,null,null,null,null,null,59,null,null,null,null,null,null,null,0.35564756134431275,1324,745,59,null,null,null,null,null,null,64]
[null,null,null,null,null,null,null,null,null,null,null,null,null,55,null,null,null,null,null,null,null,2.0818351569047766E-2,1954,269,55,null,null,null,null,null,null,57]
[null,null,null,null,null,null,null,null,null,null,null,null,null,52,null,null,null,null,null,null,null,0.81676502767132353,385,95,52,null,null,null,null,null,null,59]
[null,null,null,null,null,null,null,null,null,null,null,null,null,48,null,null,null,null,null,null,null,0.18487587660418892,1651,13,48,null,null,null,null,null,null,67]
[null,null,null,null,null,null,null,null,null,null,null,null,null,68,null,null,null,null,null,null,null,0.34761042622021121,1336,1857,68,null,null,null,null,null,null,61]
[null,null,null,null,null,null,null,null,null,null,null,null,null,64,null,null,null,null,null,null,null,0.92263314048758704,162,1487,64,null,null,null,null,null,null,65]
[null,null,null,null,null,null,null,null,null,null,null,null,null,62,null,null,null,null,null,null,null,0.61758762227499608,801,1196,62,null,null,null,null,null,null,64]
[null,null,null,null,null,null,null,null,null,null,null,null,null,52,null,null,null,null,null,null,null,0.57186621094406165,901,95,52,null,null,null,null,null,null,59]
[null,null,null,null,null,null,null,null,null,null,null,null,null,55,null,null,null,null,null,null,null,0.27497190366327084,1468,269,55,null,null,null,null,null,null,57]
[null,null,null,null,null,null,null,null,null,null,null,null,null,63,null,null,null,null,null,null,null,0.86464987765688217,276,1349,63,null,null,null,null,null,null,66]
[null,null,null,null,null,null,null,null,null,null,null,null,null,69,null,null,null,null,null,null,null,2.0613864067656307E-2,1957,1909,69,null,null,null,null,null,null,71]
[null,null,null,null,null,null,null,null,null,null,null,null,null,68,null,null,null,null,null,null,null,0.62204535002641925,794,1857,68,null,null,null,null,null,null,61]
[null,null,null,null,null,null,null,null,null,null,null,null,null,55,null,null,null,null,null,null,null,0.91172801807043979,185,269,55,null,null,null,null,null,null,62]
[null,null,null,null,null,null,null,null,null,null,null,null,null,52,null,null,null,null,null,null,null,0.57920426675156189,887,95,52,null,null,null,null,null,null,57]
[null,null,null,null,null,null,null,null,null,null,null,null,null,59,null,null,null,null,null,null,null,{"$f":"IF(N1730=\"\",\"\",RAND())","v":0.45174421227377737},1143,745,{"$f":"N1730","v":59},null,null,null,null,null,null,{"$f":"ROUND(NORMINV(RAND(),mean,stddev),0)","v":62}]
[null,null,null,null,null,null,null,null,null,null,null,null,null,65,null,null,null,null,null,null,null,0.21651564983438421,{"$f":"RANK(V1731,$V:$V)","v":1590},{"$f":"RANK(Y1731,Y:Y,1)","v":1609},65,null,null,null,null,null,null,63]
[null,null,null,null,null,null,null,null,null,null,null,null,null,59,null,null,null,null,null,null,null,0.49492047984574206,1057,745,59,null,null,null,null,null,null,62]
[null,null,null,null,null,null,null,null,null,null,null,null,null,61,null,null,null,null,null,null,null,0.41375139640085357,1207,1058,61,null,null,null,null,null,null,71]
[null,null,null,null,null,null,null,null,null,null,null,null,null,64,null,null,null,null,null,null,null,0.53557067457374774,966,1487,64,null,null,null,null,null,null,54]
[null,null,null,null,null,null,null,null,null,null,null,null,null,62,null,null,null,null,null,null,null,0.2749413977090287,1469,1196,62,null,null,null,null,null,null,58]
[null,null,null,null,null,null,null,null,null,null,null,null,null,55,null,null,null,null,null,null,null,0.95434080909343277,105,269,55,null,null,null,null,null,null,65]
[null,null,null,null,null,null,null,null,null,null,null,null,null,59,null,null,null,null,null,null,null,0.66344736393102022,710,745,59,null,null,null,null,null,null,62]
[null,null,null,null,null,null,null,null,null,null,null,null,null,62,null,null,null,null,null,null,null,0.85299481296392932,298,1196,62,null,null,null,null,null,null,62]
[null,null,null,null,null,null,null,null,null,null,null,null,null,59,null,null,null,null,null,null,null,0.32277292100625521,1378,745,59,null,null,null,null,null,null,64]
[null,null,null,null,null,null,null,null,null,null,null,null,null,66,null,null,null,null,null,null,null,0.15192597997778035,1710,1710,66,null,null,null,null,null,null,68]
[null,null,null,null,null,null,null,null,null,null,null,null,null,41,null,null,null,null,null,null,null,0.84694941508246468,313,1,41,null,null,null,null,null,null,58]
[null,null,null,null,null,null,null,null,null,null,null,null,null,57,null,null,null,null,null,null,null,0.92145585318426593,165,487,57,null,null,null,null,null,null,65]
[null,null,null,null,null,null,null,null,null,null,null,null,null,65,null,null,null,null,null,null,null,0.77412330687585873,476,1609,65,null,null,null,null,null,null,61]
[null,null,null,null,null,null,null,null,null,null,null,null,null,57,null,null,null,null,null,null,null,0.50557485442917727,1029,487,57,null,null,null,null,null,null,58]
[null,null,null,null,null,null,null,null,null,null,null,null,null,61,null,null,null,null,null,null,null,0.56908111589116794,909,1058,61,null,null,null,null,null,null,55]
[null,null,null,null,null,null,null,null,null,null,null,null,null,61,null,null,null,null,null,null,null,0.7134431478259412,599,1058,61,null,null,null,null,null,null,59]
[null,null,null,null,null,null,null,null,null,null,null,null,null,62,null,null,null,null,null,null,null,1.9789466509339326E-2,1960,1196,62,null,null,null,null,null,null,54]
[null,null,null,null,null,null,null,null,null,null,null,null,null,50,null,null,null,null,null,null,null,0.99807769312448313,5,37,50,null,null,null,null,null,null,47]
[null,null,null,null,null,null,null,null,null,null,null,null,null,63,null,null,null,null,null,null,null,0.73790907420732654,547,1349,63,null,null,null,null,null,null,63]
[null,null,null,null,null,null,null,null,null,null,null,null,null,57,null,null,null,null,null,null,null,5.0710245186678771E-2,1886,487,57,null,null,null,null,null,null,62]
[null,null,null,null,null,null,null,null,null,null,null,null,null,53,null,null,null,null,null,null,null,0.74734222388663107,531,139,53,null,null,null,null,null,null,52]
[null,null,null,null,null,null,null,null,null,null,null,null,null,64,null,null,null,null,null,null,null,0.32967233224441328,1367,1487,64,null,null,null,null,null,null,58]
[null,null,null,null,null,null,null,null,null,null,null,null,null,56,null,null,null,null,null,null,null,0.87475249942873901,256,362,56,null,null,null,null,null,null,54]
[null,null,null,null,null,null,null,null,null,null,null,null,null,52,null,null,null,null,null,null,null,0.68850882691597559,650,95,52,null,null,null,null,null,null,62]
[null,null,null,null,null,null,null,null,null,null,null,null,null,62,null,null,null,null,null,null,null,0.75403564901540088,517,1196,62,null,null,null,null,null,null,55]
[null,null,null,null,null,null,null,null,null,null,null,null,null,55,null,null,null,null,null,null,null,0.89013720285248232,225,269,55,null,null,null,null,null,null,60]
[null,null,null,null,null,null,null,null,null,null,null,null,null,64,null,null,null,null,null,null,null,0.28419751309815566,1450,1487,64,null,null,null,null,null,null,56]
[null,null,null,null,null,null,null,null,null,null,null,null,null,71,null,null,null,null,null,null,null,0.61079468133090498,815,1971,71,null,null,null,null,null,null,55]
[null,null,null,null,null,null,null,null,null,null,null,null,null,49,null,null,null,null,null,null,null,0.83759951144824818,330,19,49,null,null,null,null,null,null,66]
[null,null,null,null,null,null,null,null,null,null,null,null,null,61,null,null,null,null,null,null,null,9.6875658939657772E-2,1806,1058,61,null,null,null,null,null,null,52]
[null,null,null,null,null,null,null,null,null,null,null,null,null,64,null,null,null,null,null,null,null,0.99322536584588061,11,1487,64,null,null,null,null,null,null,65]
[null,null,null,null,null,null,null,null,null,null,null,null,null,59,null,null,null,null,null,null,null,0.50854302214771319,1024,745,59,null,null,null,null,null,null,54]
[null,null,null,null,null,null,null,null,null,null,null,null,null,62,null,null,null,null,null,null,null,0.52906881220762758,977,1196,62,null,null,null,null,null,null,55]
[null,null,null,null,null,null,null,null,null,null,null,null,null,63,null,null,null,null,null,null,null,0.69802972159418808,633,1349,63,null,null,null,null,null,null,59]
[null,null,null,null,null,null,null,null,null,null,null,null,null,58,null,null,null,null,null,null,null,0.26638752497572193,1484,615,58,null,null,null,null,null,null,55]
[null,null,null,null,null,null,null,null,null,null,null,null,null,63,null,null,null,null,null,null,null,0.19657548773656963,1637,1349,63,null,null,null,null,null,null,59]
[null,null,null,null,null,null,null,null,null,null,null,null,null,60,null,null,null,null,null,null,null,0.73629345560293014,552,903,60,null,null,null,null,null,null,61]
[null,null,null,null,null,null,null,null,null,null,null,null,null,64,null,null,null,null,null,null,null,0.15990639402784212,1699,1487,64,null,null,null,null,null,null,65]
[null,null,null,null,null,null,null,null,null,null,null,null,null,72,null,null,null,null,null,null,null,0.25440399311274742,1516,1979,72,null,null,null,null,null,null,56]
[null,null,null,null,null,null,null,null,null,null,null,null,null,50,null,null,null,null,null,null,null,0.10181449213630522,1802,37,50,null,null,null,null,null,null,59]
[null,null,null,null,null,null,null,null,null,null,null,null,null,53,null,null,null,null,null,null,null,0.76393012887469725,496,139,53,null,null,null,null,null,null,60]
[null,null,null,null,null,null,null,null,null,null,null,null,null,55,null,null,null,null,null,null,null,0.60222018317926507,839,269,55,null,null,null,null,null,null,63]
[null,null,null,null,null,null,null,null,null,null,null,null,null,63,null,null,null,null,null,null,null,0.50070658395389112,1041,1349,63,null,null,null,null,null,null,57]
[null,null,null,null,null,null,null,null,null,null,null,null,null,59,null,null,null,null,null,null,null,0.94443019438429598,122,745,59,null,null,null,null,null,null,62]
[null,null,null,null,null,null,null,null,null,null,null,null,null,72,null,null,null,null,null,null,null,0.25771531340220455,1509,1979,72,null,null,null,null,null,null,58]
[null,null,null,null,null,null,null,null,null,null,null,null,null,50,null,null,null,null,null,null,null,0.25950206872258064,1500,37,50,null,null,null,null,null,null,61]
[null,null,null,null,null,null,null,null,null,null,null,null,null,60,null,null,null,null,null,null,null,0.57221544003452662,900,903,60,null,null,null,null,null,null,58]
[null,null,null,null,null,null,null,null,null,null,null,null,null,66,null,null,null,null,null,null,null,0.83737027028957367,331,1710,66,null,null,null,null,null,null,61]
[null,null,null,null,null,null,null,null,null,null,null,null,null,62,null,null,null,null,null,null,null,0.46928967781008291,1108,1196,62,null,null,null,null,null,null,58]
[null,null,null,null,null,null,null,null,null,null,null,null,null,58,null,null,null,null,null,null,null,0.92015821143174337,167,615,58,null,null,null,null,null,null,64]
[null,null,null,null,null,null,null,null,null,null,null,null,null,57,null,null,null,null,null,null,null,0.92494158327776621,156,487,57,null,null,null,null,null,null,63]
[null,null,null,null,null,null,null,null,null,null,null,null,null,66,null,null,null,null,null,null,null,0.48316097554826298,1084,1710,66,null,null,null,null,null,null,65]
[null,null,null,null,null,null,null,null,null,null,null,null,null,64,null,null,null,null,null,null,null,0.84836153363642863,308,1487,64,null,null,null,null,null,null,64]
[null,null,null,null,null,null,null,null,null,null,null,null,null,61,null,null,null,null,null,null,null,0.98904686007572151,21,1058,61,null,null,null,null,null,null,50]
[null,null,null,null,null,null,null,null,null,null,null,null,null,55,null,null,null,null,null,null,null,9.0934444747398202E-2,1818,269,55,null,null,null,null,null,null,68]
[null,null,null,null,null,null,null,null,null,null,null,null,null,54,null,null,null,null,null,null,null,0.13536844449846119,1744,201,54,null,null,null,null,null,null,64]
[null,null,null,null,null,null,null,null,null,null,null,null,null,59,null,null,null,null,null,null,null,0.94368010634140331,123,745,59,null,null,null,null,null,null,58]
[null,null,null,null,null,null,null,null,null,null,null,null,null,62,null,null,null,null,null,null,null,0.94890001473577457,114,1196,62,null,null,null,null,null,null,60]
[null,null,null,null,null,null,null,null,null,null,null,null,null,58,null,null,null,null,null,null,null,0.14936622243266218,1713,615,58,null,null,null,null,null,null,60]
[null,null,null,null,null,null,null,null,null,null,null,null,null,59,null,null,null,null,null,null,null,0.70261763695030222,619,745,59,null,null,null,null,null,null,68]
[null,null,null,null,null,null,null,null,null,null,null,null,null,56,null,null,null,null,null,null,null,0.88065908960877359,247,362,56,null,null,null,null,null,null,60]
[null,null,null,null,null,null,null,null,null,null,null,null,null,51,null,null,null,null,null,null,null,0.73727695130332827,549,63,51,null,null,null,null,null,null,56]
[null,null,null,null,null,null,null,null,null,null,null,null,null,64,null,null,null,null,null,null,null,0.74856631453006739,528,1487,64,null,null,null,null,null,null,58]
[null,null,null,null,null,null,null,null,null,null,null,null,null,63,null,null,null,null,null,null,null,{"$f":"IF(N1794=\"\",\"\",RAND())","v":0.85117459586082522},301,1349,{"$f":"N1794","v":63},null,null,null,null,null,null,{"$f":"ROUND(NORMINV(RAND(),mean,stddev),0)","v":59}]
[null,null,null,null,null,null,null,null,null,null,null,null,null,56,null,null,null,null,null,null,null,4.0739451434145257E-2,{"$f":"RANK(V1795,$V:$V)","v":1903},{"$f":"RANK(Y1795,Y:Y,1)","v":362},56,null,null,null,null,null,null,56]
[null,null,null,null,null,null,null,null,null,null,null,null,null,58,null,null,null,null,null,null,null,0.97525918837926162,51,615,58,null,null,null,null,null,null,70]
[null,null,null,null,null,null,null,null,null,null,null,null,null,67,null,null,null,null,null,null,null,0.34788381480745645,1335,1791,67,null,null,null,null,null,null,56]
[null,null,null,null,null,null,null,null,null,null,null,null,null,57,null,null,null,null,null,null,null,0.39067574223102863,1255,487,57,null,null,null,null,null,null,59]
[null,null,null,null,null,null,null,null,null,null,null,null,null,58,null,null,null,null,null,null,null,0.64112380960424442,763,615,58,null,null,null,null,null,null,59]
[null,null,null,null,null,null,null,null,null,null,null,null,null,65,null,null,null,null,null,null,null,0.60225997216704452,838,1609,65,null,null,null,null,null,null,64]
[null,null,null,null,null,null,null,null,null,null,null,null,null,60,null,null,null,null,null,null,null,0.14710416393457948,1721,903,60,null,null,null,null,null,null,69]
[null,null,null,null,null,null,null,null,null,null,null,null,null,62,null,null,null,null,null,null,null,0.49582856988513546,1054,1196,62,null,null,null,null,null,null,59]
[null,null,null,null,null,null,null,null,null,null,null,null,null,69,null,null,null,null,null,null,null,0.31901067768238567,1387,1909,69,null,null,null,null,null,null,55]
[null,null,null,null,null,null,null,null,null,null,null,null,null,64,null,null,null,null,null,null,null,0.50422334615242459,1032,1487,64,null,null,null,null,null,null,57]
[null,null,null,null,null,null,null,null,null,null,null,null,null,69,null,null,null,null,null,null,null,0.81981170610255005,377,1909,69,null,null,null,null,null,null,51]
[null,null,null,null,null,null,null,null,null,null,null,null,null,57,null,null,null,null,null,null,null,0.62527268070303321,790,487,57,null,null,null,null,null,null,53]
[null,null,null,null,null,null,null,null,null,null,null,null,null,66,null,null,null,null,null,null,null,0.45294394965294982,1140,1710,66,null,null,null,null,null,null,57]
[null,null,null,null,null,null,null,null,null,null,null,null,null,62,null,null,null,null,null,null,null,0.24298269944185225,1540,1196,62,null,null,null,null,null,null,61]
[null,null,null,null,null,null,null,null,null,null,null,null,null,62,null,null,null,null,null,null,null,0.48824368383760497,1070,1196,62,null,null,null,null,null,null,63]
[null,null,null,null,null,null,null,null,null,null,null,null,null,57,null,null,null,null,null,null,null,0.23469324135695768,1555,487,57,null,null,null,null,null,null,60]
[null,null,null,null,null,null,null,null,null,null,null,null,null,63,null,null,null,null,null,null,null,0.30390249276734449,1418,1349,63,null,null,null,null,null,null,59]
[null,null,null,null,null,null,null,null,null,null,null,null,null,58,null,null,null,null,null,null,null,0.83431168920165955,340,615,58,null,null,null,null,null,null,63]
[null,null,null,null,null,null,null,null,null,null,null,null,null,56,null,null,null,null,null,null,null,0.16693973318959432,1683,362,56,null,null,null,null,null,null,53]
[null,null,null,null,null,null,null,null,null,null,null,null,null,60,null,null,null,null,null,null,null,0.53538318772365834,968,903,60,null,null,null,null,null,null,64]
[null,null,null,null,null,null,null,null,null,null,null,null,null,64,null,null,null,null,null,null,null,0.60436609396149155,834,1487,64,null,null,null,null,null,null,59]
[null,null,null,null,null,null,null,null,null,null,null,null,null,59,null,null,null,null,null,null,null,0.22930791367148318,1566,745,59,null,null,null,null,null,null,66]
[null,null,null,null,null,null,null,null,null,null,null,null,null,56,null,null,null,null,null,null,null,6.4881037243665451E-2,1863,362,56,null,null,null,null,null,null,55]
[null,null,null,null,null,null,null,null,null,null,null,null,null,63,null,null,null,null,null,null,null,0.60911068800464729,817,1349,63,null,null,null,null,null,null,62]
[null,null,null,null,null,null,null,null,null,null,null,null,null,70,null,null,null,null,null,null,null,0.15964906854880556,1701,1946,70,null,null,null,null,null,null,64]
[null,null,null,null,null,null,null,null,null,null,null,null,null,63,null,null,null,null,null,null,null,0.78506530135729335,450,1349,63,null,null,null,null,null,null,58]
[null,null,null,null,null,null,null,null,null,null,null,null,null,58,null,null,null,null,null,null,null,0.42730321890161871,1186,615,58,null,null,null,null,null,null,66]
[null,null,null,null,null,null,null,null,null,null,null,null,null,57,null,null,null,null,null,null,null,0.78587282841666817,448,487,57,null,null,null,null,null,null,59]
[null,null,null,null,null,null,null,null,null,null,null,null,null,65,null,null,null,null,null,null,null,0.92097110441185692,166,1609,65,null,null,null,null,null,null,62]
[null,null,null,null,null,null,null,null,null,null,null,null,null,67,null,null,null,null,null,null,null,0.16514852319819806,1686,1791,67,null,null,null,null,null,null,68]
[null,null,null,null,null,null,null,null,null,null,null,null,null,68,null,null,null,null,null,null,null,0.35973919766752294,1316,1857,68,null,null,null,null,null,null,58]
[null,null,null,null,null,null,null,null,null,null,null,null,null,59,null,null,null,null,null,null,null,1.0590767795092271E-2,1980,745,59,null,null,null,null,null,null,61]
[null,null,null,null,null,null,null,null,null,null,null,null,null,68,null,null,null,null,null,null,null,0.98325977941396581,33,1857,68,null,null,null,null,null,null,69]
[null,null,null,null,null,null,null,null,null,null,null,null,null,60,null,null,null,null,null,null,null,0.54875383687778256,939,903,60,null,null,null,null,null,null,65]
[null,null,null,null,null,null,null,null,null,null,null,null,null,54,null,null,null,null,null,null,null,0.7264174738564485,573,201,54,null,null,null,null,null,null,62]
[null,null,null,null,null,null,null,null,null,null,null,null,null,61,null,null,null,null,null,null,null,0.30685393207725387,1411,1058,61,null,null,null,null,null,null,56]
[null,null,null,null,null,null,null,null,null,null,null,null,null,61,null,null,null,null,null,null,null,0.12151457654725062,1764,1058,61,null,null,null,null,null,null,55]
[null,null,null,null,null,null,null,null,null,null,null,null,null,62,null,null,null,null,null,null,null,0.57440505284699428,894,1196,62,null,null,null,null,null,null,56]
[null,null,null,null,null,null,null,null,null,null,null,null,null,63,null,null,null,null,null,null,null,0.83067958321783508,349,1349,63,null,null,null,null,null,null,66]
[null,null,null,null,null,null,null,null,null,null,null,null,null,56,null,null,null,null,null,null,null,0.46144011405954521,1121,362,56,null,null,null,null,null,null,57]
[null,null,null,null,null,null,null,null,null,null,null,null,null,48,null,null,null,null,null,null,null,0.51910077134400678,1000,13,48,null,null,null,null,null,null,52]
[null,null,null,null,null,null,null,null,null,null,null,null,null,56,null,null,null,null,null,null,null,0.25743654290287643,1511,362,56,null,null,null,null,null,null,60]
[null,null,null,null,null,null,null,null,null,null,null,null,null,57,null,null,null,null,null,null,null,4.9404646966612953E-2,1890,487,57,null,null,null,null,null,null,62]
[null,null,null,null,null,null,null,null,null,null,null,null,null,62,null,null,null,null,null,null,null,0.23266019986447328,1560,1196,62,null,null,null,null,null,null,57]
[null,null,null,null,null,null,null,null,null,null,null,null,null,55,null,null,null,null,null,null,null,0.73335161808224103,555,269,55,null,null,null,null,null,null,59]
[null,null,null,null,null,null,null,null,null,null,null,null,null,71,null,null,null,null,null,null,null,3.2875845446677099E-2,1925,1971,71,null,null,null,null,null,null,67]
[null,null,null,null,null,null,null,null,null,null,null,null,null,67,null,null,null,null,null,null,null,0.22884995389361829,1568,1791,67,null,null,null,null,null,null,71]
[null,null,null,null,null,null,null,null,null,null,null,null,null,61,null,null,null,null,null,null,null,0.14060173653420427,1733,1058,61,null,null,null,null,null,null,62]
[null,null,null,null,null,null,null,null,null,null,null,null,null,61,null,null,null,null,null,null,null,0.64288117315279492,758,1058,61,null,null,null,null,null,null,51]
[null,null,null,null,null,null,null,null,null,null,null,null,null,62,null,null,null,null,null,null,null,0.82832288346927352,356,1196,62,null,null,null,null,null,null,56]
[null,null,null,null,null,null,null,null,null,null,null,null,null,52,null,null,null,null,null,null,null,0.33641324967095665,1356,95,52,null,null,null,null,null,null,54]
[null,null,null,null,null,null,null,null,null,null,null,null,null,65,null,null,null,null,null,null,null,0.58337515865856493,880,1609,65,null,null,null,null,null,null,63]
[null,null,null,null,null,null,null,null,null,null,null,null,null,59,null,null,null,null,null,null,null,0.58838674612862929,868,745,59,null,null,null,null,null,null,55]
[null,null,null,null,null,null,null,null,null,null,null,null,null,65,null,null,null,null,null,null,null,0.16547853275272706,1685,1609,65,null,null,null,null,null,null,57]
[null,null,null,null,null,null,null,null,null,null,null,null,null,55,null,null,null,null,null,null,null,0.13210697284097728,1749,269,55,null,null,null,null,null,null,56]
[null,null,null,null,null,null,null,null,null,null,null,null,null,64,null,null,null,null,null,null,null,0.16096096254733683,1695,1487,64,null,null,null,null,null,null,54]
[null,null,null,null,null,null,null,null,null,null,null,null,null,66,null,null,null,null,null,null,null,0.24712279999837594,1531,1710,66,null,null,null,null,null,null,56]
[null,null,null,null,null,null,null,null,null,null,null,null,null,66,null,null,null,null,null,null,null,0.20831843162862118,1609,1710,66,null,null,null,null,null,null,59]
[null,null,null,null,null,null,null,null,null,null,null,null,null,54,null,null,null,null,null,null,null,0.85352988605571478,294,201,54,null,null,null,null,null,null,54]
[null,null,null,null,null,null,null,null,null,null,null,null,null,64,null,null,null,null,null,null,null,0.34059453874796031,1350,1487,64,null,null,null,null,null,null,59]
[null,null,null,null,null,null,null,null,null,null,null,null,null,63,null,null,null,null,null,null,null,0.91886762554315704,170,1349,63,null,null,null,null,null,null,62]
[null,null,null,null,null,null,null,null,null,null,null,null,null,56,null,null,null,null,null,null,null,0.26002468142157742,1498,362,56,null,null,null,null,null,null,59]
[null,null,null,null,null,null,null,null,null,null,null,null,null,56,null,null,null,null,null,null,null,0.38627265635707941,1262,362,56,null,null,null,null,null,null,54]
[null,null,null,null,null,null,null,null,null,null,null,null,null,65,null,null,null,null,null,null,null,{"$f":"IF(N1858=\"\",\"\",RAND())","v":0.27424037785159538},1471,1609,{"$f":"N1858","v":65},null,null,null,null,null,null,{"$f":"ROUND(NORMINV(RAND(),mean,stddev),0)","v":66}]
[null,null,null,null,null,null,null,null,null,null,null,null,null,56,null,null,null,null,null,null,null,0.6162401715090835,{"$f":"RANK(V1859,$V:$V)","v":806},{"$f":"RANK(Y1859,Y:Y,1)","v":362},56,null,null,null,null,null,null,54]
[null,null,null,null,null,null,null,null,null,null,null,null,null,55,null,null,null,null,null,null,null,0.99150452954632473,15,269,55,null,null,null,null,null,null,53]
[null,null,null,null,null,null,null,null,null,null,null,null,null,63,null,null,null,null,null,null,null,0.8474694813998872,311,1349,63,null,null,null,null,null,null,60]
[null,null,null,null,null,null,null,null,null,null,null,null,null,67,null,null,null,null,null,null,null,0.65660284427745341,725,1791,67,null,null,null,null,null,null,54]
[null,null,null,null,null,null,null,null,null,null,null,null,null,55,null,null,null,null,null,null,null,0.87563559641773947,253,269,55,null,null,null,null,null,null,57]
[null,null,null,null,null,null,null,null,null,null,null,null,null,57,null,null,null,null,null,null,null,0.98569902255538822,29,487,57,null,null,null,null,null,null,59]
[null,null,null,null,null,null,null,null,null,null,null,null,null,63,null,null,null,null,null,null,null,0.4195912236731586,1196,1349,63,null,null,null,null,null,null,63]
[null,null,null,null,null,null,null,null,null,null,null,null,null,60,null,null,null,null,null,null,null,0.45487554249135931,1133,903,60,null,null,null,null,null,null,53]
[null,null,null,null,null,null,null,null,null,null,null,null,null,60,null,null,null,null,null,null,null,0.69195070676235104,643,903,60,null,null,null,null,null,null,50]
[null,null,null,null,null,null,null,null,null,null,null,null,null,61,null,null,null,null,null,null,null,0.526043744149709,988,1058,61,null,null,null,null,null,null,65]
[null,null,null,null,null,null,null,null,null,null,null,null,null,69,null,null,null,null,null,null,null,0.99002617296527284,19,1909,69,null,null,null,null,null,null,61]
[null,null,null,null,null,null,null,null,null,null,null,null,null,58,null,null,null,null,null,null,null,0.37283645538823429,1284,615,58,null,null,null,null,null,null,62]
[null,null,null,null,null,null,null,null,null,null,null,null,null,61,null,null,null,null,null,null,null,0.73293532948872997,558,1058,61,null,null,null,null,null,null,59]
[null,null,null,null,null,null,null,null,null,null,null,null,null,51,null,null,null,null,null,null,null,0.13721005640124639,1740,63,51,null,null,null,null,null,null,62]
[null,null,null,null,null,null,null,null,null,null,null,null,null,63,null,null,null,null,null,null,null,0.5976581538912551,849,1349,63,null,null,null,null,null,null,56]
[null,null,null,null,null,null,null,null,null,null,null,null,null,65,null,null,null,null,null,null,null,0.61437666017357984,809,1609,65,null,null,null,null,null,null,68]
[null,null,null,null,null,null,null,null,null,null,null,null,null,62,null,null,null,null,null,null,null,0.90030162713038486,204,1196,62,null,null,null,null,null,null,67]
[null,null,null,null,null,null,null,null,null,null,null,null,null,67,null,null,null,null,null,null,null,0.1267939393169859,1754,1791,67,null,null,null,null,null,null,58]
[null,null,null,null,null,null,null,null,null,null,null,null,null,65,null,null,null,null,null,null,null,0.15984551744560049,1700,1609,65,null,null,null,null,null,null,63]
[null,null,null,null,null,null,null,null,null,null,null,null,null,54,null,null,null,null,null,null,null,0.5748093654341746,893,201,54,null,null,null,null,null,null,64]
[null,null,null,null,null,null,null,null,null,null,null,null,null,55,null,null,null,null,null,null,null,0.85759790082117981,284,269,55,null,null,null,null,null,null,58]
[null,null,null,null,null,null,null,null,null,null,null,null,null,62,null,null,null,null,null,null,null,0.37148918122962737,1286,1196,62,null,null,null,null,null,null,54]
[null,null,null,null,null,null,null,null,null,null,null,null,null,66,null,null,null,null,null,null,null,0.82638204371557089,359,1710,66,null,null,null,null,null,null,60]
[null,null,null,null,null,null,null,null,null,null,null,null,null,56,null,null,null,null,null,null,null,0.77434758276519522,474,362,56,null,null,null,null,null,null,56]
[null,null,null,null,null,null,null,null,null,null,null,null,null,69,null,null,null,null,null,null,null,3.9753233763091478E-2,1904,1909,69,null,null,null,null,null,null,54]
[null,null,null,null,null,null,null,null,null,null,null,null,null,57,null,null,null,null,null,null,null,0.20242353768811105,1623,487,57,null,null,null,null,null,null,60]
[null,null,null,null,null,null,null,null,null,null,null,null,null,65,null,null,null,null,null,null,null,0.43632182195870195,1171,1609,65,null,null,null,null,null,null,58]
[null,null,null,null,null,null,null,null,null,null,null,null,null,59,null,null,null,null,null,null,null,0.23586014020950297,1554,745,59,null,null,null,null,null,null,51]
[null,null,null,null,null,null,null,null,null,null,null,null,null,47,null,null,null,null,null,null,null,0.46482090908804374,1115,4,47,null,null,null,null,null,null,53]
[null,null,null,null,null,null,null,null,null,null,null,null,null,53,null,null,null,null,null,null,null,7.5147744253469484E-2,1845,139,53,null,null,null,null,null,null,56]
[null,null,null,null,null,null,null,null,null,null,null,null,null,57,null,null,null,null,null,null,null,0.51839395078055028,1003,487,57,null,null,null,null,null,null,58]
[null,null,null,null,null,null,null,null,null,null,null,null,null,61,null,null,null,null,null,null,null,0.95749968393242457,95,1058,61,null,null,null,null,null,null,62]
[null,null,null,null,null,null,null,null,null,null,null,null,null,55,null,null,null,null,null,null,null,0.49127786953787611,1062,269,55,null,null,null,null,null,null,61]
[null,null,null,null,null,null,null,null,null,null,null,null,null,66,null,null,null,null,null,null,null,0.47771092306080642,1094,1710,66,null,null,null,null,null,null,60]
[null,null,null,null,null,null,null,null,null,null,null,null,null,60,null,null,null,null,null,null,null,0.99165902994845367,13,903,60,null,null,null,null,null,null,56]
[null,null,null,null,null,null,null,null,null,null,null,null,null,63,null,null,null,null,null,null,null,0.98940191070410055,20,1349,63,null,null,null,null,null,null,57]
[null,null,null,null,null,null,null,null,null,null,null,null,null,77,null,null,null,null,null,null,null,0.88095836692535345,245,1999,77,null,null,null,null,null,null,70]
[null,null,null,null,null,null,null,null,null,null,null,null,null,59,null,null,null,null,null,null,null,0.6205311809603592,798,745,59,null,null,null,null,null,null,57]
[null,null,null,null,null,null,null,null,null,null,null,null,null,59,null,null,null,null,null,null,null,0.62459382945930686,792,745,59,null,null,null,null,null,null,58]
[null,null,null,null,null,null,null,null,null,null,null,null,null,58,null,null,null,null,null,null,null,0.72429659201323693,578,615,58,null,null,null,null,null,null,63]
[null,null,null,null,null,null,null,null,null,null,null,null,null,58,null,null,null,null,null,null,null,0.65354422478175334,731,615,58,null,null,null,null,null,null,63]
[null,null,null,null,null,null,null,null,null,null,null,null,null,63,null,null,null,null,null,null,null,0.68922216589478935,649,1349,63,null,null,null,null,null,null,61]
[null,null,null,null,null,null,null,null,null,null,null,null,null,56,null,null,null,null,null,null,null,0.49864995677999502,1047,362,56,null,null,null,null,null,null,68]
[null,null,null,null,null,null,null,null,null,null,null,null,null,63,null,null,null,null,null,null,null,0.14057000854793544,1734,1349,63,null,null,null,null,null,null,65]
[null,null,null,null,null,null,null,null,null,null,null,null,null,59,null,null,null,null,null,null,null,0.5549994030966372,927,745,59,null,null,null,null,null,null,58]
[null,null,null,null,null,null,null,null,null,null,null,null,null,60,null,null,null,null,null,null,null,0.96342000519339577,81,903,60,null,null,null,null,null,null,61]
[null,null,null,null,null,null,null,null,null,null,null,null,null,59,null,null,null,null,null,null,null,0.21485480278128577,1594,745,59,null,null,null,null,null,null,66]
[null,null,null,null,null,null,null,null,null,null,null,null,null,58,null,null,null,null,null,null,null,0.97609897965185943,49,615,58,null,null,null,null,null,null,64]
[null,null,null,null,null,null,null,null,null,null,null,null,null,64,null,null,null,null,null,null,null,0.24335777091193367,1538,1487,64,null,null,null,null,null,null,67]
[null,null,null,null,null,null,null,null,null,null,null,null,null,68,null,null,null,null,null,null,null,0.41135698631727369,1211,1857,68,null,null,null,null,null,null,56]
[null,null,null,null,null,null,null,null,null,null,null,null,null,63,null,null,null,null,null,null,null,6.5449150372201115E-2,1862,1349,63,null,null,null,null,null,null,61]
[null,null,null,null,null,null,null,null,null,null,null,null,null,56,null,null,null,null,null,null,null,0.31664504525428272,1394,362,56,null,null,null,null,null,null,61]
[null,null,null,null,null,null,null,null,null,null,null,null,null,72,null,null,null,null,null,null,null,0.67611076505307222,678,1979,72,null,null,null,null,null,null,54]
[null,null,null,null,null,null,null,null,null,null,null,null,null,65,null,null,null,null,null,null,null,3.0146910331466881E-2,1937,1609,65,null,null,null,null,null,null,61]
[null,null,null,null,null,null,null,null,null,null,null,null,null,60,null,null,null,null,null,null,null,0.83892670755073417,328,903,60,null,null,null,null,null,null,57]
[null,null,null,null,null,null,null,null,null,null,null,null,null,57,null,null,null,null,null,null,null,0.39608255357114308,1246,487,57,null,null,null,null,null,null,64]
[null,null,null,null,null,null,null,null,null,null,null,null,null,60,null,null,null,null,null,null,null,0.94503412926242181,120,903,60,null,null,null,null,null,null,59]
[null,null,null,null,null,null,null,null,null,null,null,null,null,66,null,null,null,null,null,null,null,0.60866673836118257,819,1710,66,null,null,null,null,null,null,62]
[null,null,null,null,null,null,null,null,null,null,null,null,null,65,null,null,null,null,null,null,null,0.98379732965757583,30,1609,65,null,null,null,null,null,null,62]
[null,null,null,null,null,null,null,null,null,null,null,null,null,59,null,null,null,null,null,null,null,0.27409553183793034,1472,745,59,null,null,null,null,null,null,71]
[null,null,null,null,null,null,null,null,null,null,null,null,null,49,null,null,null,null,null,null,null,0.47405185109157155,1100,19,49,null,null,null,null,null,null,51]
[null,null,null,null,null,null,null,null,null,null,null,null,null,58,null,null,null,null,null,null,null,0.59481897226326108,856,615,58,null,null,null,null,null,null,62]
[null,null,null,null,null,null,null,null,null,null,null,null,null,64,null,null,null,null,null,null,null,7.7578770580785883E-2,1837,1487,64,null,null,null,null,null,null,57]
[null,null,null,null,null,null,null,null,null,null,null,null,null,50,null,null,null,null,null,null,null,{"$f":"IF(N1922=\"\",\"\",RAND())","v":0.9712124623554611},61,37,{"$f":"N1922","v":50},null,null,null,null,null,null,{"$f":"ROUND(NORMINV(RAND(),mean,stddev),0)","v":60}]
[null,null,null,null,null,null,null,null,null,null,null,null,null,65,null,null,null,null,null,null,null,0.14180830583950721,{"$f":"RANK(V1923,$V:$V)","v":1731},{"$f":"RANK(Y1923,Y:Y,1)","v":1609},65,null,null,null,null,null,null,65]
[null,null,null,null,null,null,null,null,null,null,null,null,null,52,null,null,null,null,null,null,null,0.24035231171380267,1544,95,52,null,null,null,null,null,null,62]
[null,null,null,null,null,null,null,null,null,null,null,null,null,61,null,null,null,null,null,null,null,0.99114158216899628,16,1058,61,null,null,null,null,null,null,60]
[null,null,null,null,null,null,null,null,null,null,null,null,null,66,null,null,null,null,null,null,null,0.71158276176638746,602,1710,66,null,null,null,null,null,null,67]
[null,null,null,null,null,null,null,null,null,null,null,null,null,59,null,null,null,null,null,null,null,0.70687797840853506,612,745,59,null,null,null,null,null,null,62]
[null,null,null,null,null,null,null,null,null,null,null,null,null,50,null,null,null,null,null,null,null,0.63966648342469401,767,37,50,null,null,null,null,null,null,66]
[null,null,null,null,null,null,null,null,null,null,null,null,null,67,null,null,null,null,null,null,null,0.52231034807426358,992,1791,67,null,null,null,null,null,null,62]
[null,null,null,null,null,null,null,null,null,null,null,null,null,61,null,null,null,null,null,null,null,1.6524132071543463E-2,1970,1058,61,null,null,null,null,null,null,61]
[null,null,null,null,null,null,null,null,null,null,null,null,null,67,null,null,null,null,null,null,null,0.79337132545138189,433,1791,67,null,null,null,null,null,null,58]
[null,null,null,null,null,null,null,null,null,null,null,null,null,57,null,null,null,null,null,null,null,0.60657956550956926,826,487,57,null,null,null,null,null,null,62]
[null,null,null,null,null,null,null,null,null,null,null,null,null,68,null,null,null,null,null,null,null,0.97053458870941878,63,1857,68,null,null,null,null,null,null,71]
[null,null,null,null,null,null,null,null,null,null,null,null,null,61,null,null,null,null,null,null,null,9.3887678672765595E-2,1813,1058,61,null,null,null,null,null,null,62]
[null,null,null,null,null,null,null,null,null,null,null,null,null,58,null,null,null,null,null,null,null,0.31066934939574053,1403,615,58,null,null,null,null,null,null,54]
[null,null,null,null,null,null,null,null,null,null,null,null,null,58,null,null,null,null,null,null,null,0.18466541230315681,1652,615,58,null,null,null,null,null,null,56]
[null,null,null,null,null,null,null,null,null,null,null,null,null,67,null,null,null,null,null,null,null,0.84627899881072022,315,1791,67,null,null,null,null,null,null,53]
[null,null,null,null,null,null,null,null,null,null,null,null,null,57,null,null,null,null,null,null,null,0.4252206316369902,1191,487,57,null,null,null,null,null,null,61]
[null,null,null,null,null,null,null,null,null,null,null,null,null,52,null,null,null,null,null,null,null,0.44628444875838214,1155,95,52,null,null,null,null,null,null,61]
[null,null,null,null,null,null,null,null,null,null,null,null,null,56,null,null,null,null,null,null,null,0.40364824276693745,1233,362,56,null,null,null,null,null,null,51]
[null,null,null,null,null,null,null,null,null,null,null,null,null,64,null,null,null,null,null,null,null,0.76142100526243595,501,1487,64,null,null,null,null,null,null,64]
[null,null,null,null,null,null,null,null,null,null,null,null,null,51,null,null,null,null,null,null,null,0.43920650670158845,1167,63,51,null,null,null,null,null,null,61]
[null,null,null,null,null,null,null,null,null,null,null,null,null,56,null,null,null,null,null,null,null,0.92557021508279502,154,362,56,null,null,null,null,null,null,61]
[null,null,null,null,null,null,null,null,null,null,null,null,null,58,null,null,null,null,null,null,null,0.86724977841223683,272,615,58,null,null,null,null,null,null,70]
[null,null,null,null,null,null,null,null,null,null,null,null,null,56,null,null,null,null,null,null,null,0.54167164684907365,955,362,56,null,null,null,null,null,null,56]
[null,null,null,null,null,null,null,null,null,null,null,null,null,52,null,null,null,null,null,null,null,0.79092249545880089,437,95,52,null,null,null,null,null,null,62]
[null,null,null,null,null,null,null,null,null,null,null,null,null,62,null,null,null,null,null,null,null,0.68480417085525402,661,1196,62,null,null,null,null,null,null,53]
[null,null,null,null,null,null,null,null,null,null,null,null,null,60,null,null,null,null,null,null,null,0.24874402753450342,1527,903,60,null,null,null,null,null,null,57]
[null,null,null,null,null,null,null,null,null,null,null,null,null,59,null,null,null,null,null,null,null,7.5572923773466694E-2,1841,745,59,null,null,null,null,null,null,55]
[null,null,null,null,null,null,null,null,null,null,null,null,null,66,null,null,null,null,null,null,null,0.54382251433910689,945,1710,66,null,null,null,null,null,null,50]
[null,null,null,null,null,null,null,null,null,null,null,null,null,62,null,null,null,null,null,null,null,0.75812215841272423,510,1196,62,null,null,null,null,null,null,55]
[null,null,null,null,null,null,null,null,null,null,null,null,null,54,null,null,null,null,null,null,null,0.48904358669971171,1065,201,54,null,null,null,null,null,null,62]
[null,null,null,null,null,null,null,null,null,null,null,null,null,65,null,null,null,null,null,null,null,0.20181344008147273,1627,1609,65,null,null,null,null,null,null,59]
[null,null,null,null,null,null,null,null,null,null,null,null,null,70,null,null,null,null,null,null,null,3.7081696527180297E-2,1913,1946,70,null,null,null,null,null,null,57]
[null,null,null,null,null,null,null,null,null,null,null,null,null,62,null,null,null,null,null,null,null,0.58027262673676439,885,1196,62,null,null,null,null,null,null,63]
[null,null,null,null,null,null,null,null,null,null,null,null,null,62,null,null,null,null,null,null,null,0.42928921267405318,1180,1196,62,null,null,null,null,null,null,68]
[null,null,null,null,null,null,null,null,null,null,null,null,null,63,null,null,null,null,null,null,null,0.69104010498145796,646,1349,63,null,null,null,null,null,null,59]
[null,null,null,null,null,null,null,null,null,null,null,null,null,60,null,null,null,null,null,null,null,0.89051895684244442,224,903,60,null,null,null,null,null,null,57]
[null,null,null,null,null,null,null,null,null,null,null,null,null,61,null,null,null,null,null,null,null,0.5116504376844595,1016,1058,61,null,null,null,null,null,null,55]
[null,null,null,null,null,null,null,null,null,null,null,null,null,52,null,null,null,null,null,null,null,0.85490150027436729,291,95,52,null,null,null,null,null,null,60]
[null,null,null,null,null,null,null,null,null,null,null,null,null,56,null,null,null,null,null,null,null,0.81815621170339436,379,362,56,null,null,null,null,null,null,64]
[null,null,null,null,null,null,null,null,null,null,null,null,null,61,null,null,null,null,null,null,null,0.94821803914702829,117,1058,61,null,null,null,null,null,null,56]
[null,null,null,null,null,null,null,null,null,null,null,null,null,53,null,null,null,null,null,null,null,0.97005195589512472,64,139,53,null,null,null,null,null,null,66]
[null,null,null,null,null,null,null,null,null,null,null,null,null,64,null,null,null,null,null,null,null,0.96523470034206005,77,1487,64,null,null,null,null,null,null,57]
[null,null,null,null,null,null,null,null,null,null,null,null,null,68,null,null,null,null,null,null,null,4.7478914317660603E-2,1894,1857,68,null,null,null,null,null,null,60]
[null,null,null,null,null,null,null,null,null,null,null,null,null,51,null,null,null,null,null,null,null,0.51850654095609872,1002,63,51,null,null,null,null,null,null,65]
[null,null,null,null,null,null,null,null,null,null,null,null,null,61,null,null,null,null,null,null,null,0.14658922645133132,1722,1058,61,null,null,null,null,null,null,54]
[null,null,null,null,null,null,null,null,null,null,null,null,null,57,null,null,null,null,null,null,null,0.46863568330571903,1109,487,57,null,null,null,null,null,null,63]
[null,null,null,null,null,null,null,null,null,null,null,null,null,69,null,null,null,null,null,null,null,0.71430047028630494,597,1909,69,null,null,null,null,null,null,66]
[null,null,null,null,null,null,null,null,null,null,null,null,null,66,null,null,null,null,null,null,null,3.2001384564264046E-2,1928,1710,66,null,null,null,null,null,null,57]
[null,null,null,null,null,null,null,null,null,null,null,null,null,56,null,null,null,null,null,null,null,0.34121992322731154,1349,362,56,null,null,null,null,null,null,66]
[null,null,null,null,null,null,null,null,null,null,null,null,null,62,null,null,null,null,null,null,null,0.88113625885761637,243,1196,62,null,null,null,null,null,null,61]
[null,null,null,null,null,null,null,null,null,null,null,null,null,61,null,null,null,null,null,null,null,3.6680202749590829E-2,1915,1058,61,null,null,null,null,null,null,58]
[null,null,null,null,null,null,null,null,null,null,null,null,null,57,null,null,null,null,null,null,null,0.45689046988049764,1129,487,57,null,null,null,null,null,null,60]
[null,null,null,null,null,null,null,null,null,null,null,null,null,56,null,null,null,null,null,null,null,0.20728869442451558,1610,362,56,null,null,null,null,null,null,61]
[null,null,null,null,null,null,null,null,null,null,null,null,null,63,null,null,null,null,null,null,null,3.3813573540737885E-2,1921,1349,63,null,null,null,null,null,null,58]
[null,null,null,null,null,null,null,null,null,null,null,null,null,60,null,null,null,null,null,null,null,0.87481723271584177,255,903,60,null,null,null,null,null,null,65]
[null,null,null,null,null,null,null,null,null,null,null,null,null,63,null,null,null,null,null,null,null,7.1144162855203308E-2,1853,1349,63,null,null,null,null,null,null,53]
[null,null,null,null,null,null,null,null,null,null,null,null,null,54,null,null,null,null,null,null,null,0.27672375895101997,1464,201,54,null,null,null,null,null,null,53]
[null,null,null,null,null,null,null,null,null,null,null,null,null,68,null,null,null,null,null,null,null,0.92305264091687433,161,1857,68,null,null,null,null,null,null,58]
[null,null,null,null,null,null,null,null,null,null,null,null,null,57,null,null,null,null,null,null,null,0.26561801644196892,1487,487,57,null,null,null,null,null,null,61]
[null,null,null,null,null,null,null,null,null,null,null,null,null,53,null,null,null,null,null,null,null,0.26486198361432722,1488,139,53,null,null,null,null,null,null,57]
[null,null,null,null,null,null,null,null,null,null,null,null,null,65,null,null,null,null,null,null,null,0.76964598080035884,486,1609,65,null,null,null,null,null,null,54]
[null,null,null,null,null,null,null,null,null,null,null,null,null,52,null,null,null,null,null,null,null,0.56472157793275002,915,95,52,null,null,null,null,null,null,65]
[null,null,null,null,null,null,null,null,null,null,null,null,null,55,null,null,null,null,null,null,null,0.23713881536487325,1551,269,55,null,null,null,null,null,null,58]
[null,null,null,null,null,null,null,null,null,null,null,null,null,62,null,null,null,null,null,null,null,{"$f":"IF(N1986=\"\",\"\",RAND())","v":0.72921915424894301},565,1196,{"$f":"N1986","v":62},null,null,null,null,null,null,{"$f":"ROUND(NORMINV(RAND(),mean,stddev),0)","v":56}]
[null,null,null,null,null,null,null,null,null,null,null,null,null,61,null,null,null,null,null,null,null,4.3425725625778844E-2,{"$f":"RANK(V1987,$V:$V)","v":1898},{"$f":"RANK(Y1987,Y:Y,1)","v":1058},61,null,null,null,null,null,null,59]
[null,null,null,null,null,null,null,null,null,null,null,null,null,60,null,null,null,null,null,null,null,0.28925474704178533,1438,903,60,null,null,null,null,null,null,60]
[null,null,null,null,null,null,null,null,null,null,null,null,null,68,null,null,null,null,null,null,null,0.9802903565005251,37,1857,68,null,null,null,null,null,null,65]
[null,null,null,null,null,null,null,null,null,null,null,null,null,56,null,null,null,null,null,null,null,0.75476744547380237,515,362,56,null,null,null,null,null,null,64]
[null,null,null,null,null,null,null,null,null,null,null,null,null,59,null,null,null,null,null,null,null,0.47741546437459237,1095,745,59,null,null,null,null,null,null,57]
[null,null,null,null,null,null,null,null,null,null,null,null,null,56,null,null,null,null,null,null,null,0.65039210435128592,735,362,56,null,null,null,null,null,null,54]
[null,null,null,null,null,null,null,null,null,null,null,null,null,69,null,null,null,null,null,null,null,0.75490652853620832,513,1909,69,null,null,null,null,null,null,58]
[null,null,null,null,null,null,null,null,null,null,null,null,null,64,null,null,null,null,null,null,null,0.77279418577608816,477,1487,64,null,null,null,null,null,null,56]
[null,null,null,null,null,null,null,null,null,null,null,null,null,58,null,null,null,null,null,null,null,2.1766081014089833E-2,1952,615,58,null,null,null,null,null,null,66]
[null,null,null,null,null,null,null,null,null,null,null,null,null,56,null,null,null,null,null,null,null,0.77631712080373771,468,362,56,null,null,null,null,null,null,59]
[null,null,null,null,null,null,null,null,null,null,null,null,null,54,null,null,null,null,null,null,null,0.23009743740150002,1565,201,54,null,null,null,null,null,null,61]
[null,null,null,null,null,null,null,null,null,null,null,null,null,56,null,null,null,null,null,null,null,0.37733731528180947,1277,362,56,null,null,null,null,null,null,55]
[null,null,null,null,null,null,null,null,null,null,null,null,null,63,null,null,null,null,null,null,null,0.79078519367327416,438,1349,63,null,null,null,null,null,null,67]
[null,null,null,null,null,null,null,null,null,null,null,null,null,54,null,null,null,null,null,null,null,0.78353708559279545,452,201,54,null,null,null,null,null,null,62]
[null,null,null,null,null,null,null,null,null,null,null,null,null,60,null,null,null,null,null,null,null,0.52798879845301627,980,903,60,null,null,null,null,null,null,61]

{"sheet":"Chart","index":2,"n_rows":0,"n_cols":0,"rows_kept":0,"cut":false,"hidden":false,"merged":[]}